Workbook

Sheet Sheet1 (hidden)
G1: технологическая карта | N1: изд | O1: 1 | R1: партия | S1: 4-21
J2: август | L2: 2021
B3: коэф | C3: Ф. И. О. | D3: р/р | E3: 2 | F3: 3 | G3: 4 | H3: 5 | I3: 6 | J3: 9 | K3: 10 | L3: 11 | M3: 12 | N3: 13 | O3: 16 | P3: 17 | Q3: 18 | R3: 19 | S3: 20 | T3: 23 | U3: 24 | V3: 25 | W3: 26 | X3: 27 | Y3: 30 | Z3: 31
C4: работник6 | D4: 3/16 | I4: 1 | L4: 1 | M4: 4 | N4: 3.2 | O4: 2 | P4: 1.2 | AA4: =SUM(E4:Z4) -> 12.4
C5: работник7 | K5: 7.2 | AA5: 7.2
C6: работник1 | E6: 6.7 | I6: 4.7 | O6: 6.7 | P6: 2 | AA6: 20.1
C7: работник8 | E7: 7.2 | G7: 7.2 | H7: 5 | I7: 4.2 | J7: 7.2 | K7: 7.2 | L7: 6.2 | AA7: 44.2
C8: работник9 | E8: 7.2 | F8: 7.2 | AA8: 14.4
C9: работник3 | F9: 2.6 | H9: 7.2 | K9: 7.2 | AA9: 17
C10: работник10 | H10: 7.2 | I10: 7.2 | J10: 4 | K10: 4 | L10: 2 | AA10: 24.4
C11: работник10 | L11: 7.2 | M11: 7.2 | N11: 7.2 | O11: 7.2 | AA11: 28.8
C12: работник5 | K12: 4 | M12: 4 | AA12: 8
C13: работник11 | J13: 7.2 | K13: 7.2 | M13: 7.2 | AA13: 21.6
C14: работник2 | H14: 2.2 | AA14: 2.2
C15: работник4 | E15: 7.2 | F15: 7.2 | AA15: 14.4
B17: 1.1 | C17: работник5 | D17: 3/16 | E17: 7.2 | AA17: 7.2
B18: 1.1 | C18: работник2 | G18: 2 | AA18: 2
E19: =SUM(E4:E18) -> 35.5 | F19: 17 | G19: 9.2 | H19: 21.6 | I19: 17.1 | J19: 18.4 | K19: 36.8 | L19: 16.4 | M19: 22.4 | N19: 10.4 | O19: 15.9 | P19: 3.2 | Q19: 0 | R19: 0 | S19: 0 | T19: 0 | U19: 0 | V19: 0 | W19: 0 | X19: 0 | Y19: 0 | Z19: 0 | AA19: 223.9
G22: технологическая карта | N22: изд | O22: 2 | R22: партия | S22: 33-21
J23: август | L23: 2021
B24: коэф | C24: Ф. И. О. | D24: р/р | E24: 2 | F24: 3 | G24: 4 | H24: 5 | I24: 6 | J24: 9 | K24: 10 | L24: 11 | M24: 12 | N24: 13 | O24: 16 | P24: 17 | Q24: 18 | R24: 19 | S24: 20 | T24: 23 | U24: 24 | V24: 25 | W24: 26 | X24: 27 | Y24: 30 | Z24: 31
C25: работник6 | D25: 3/16 | M25: 2 | N25: 4 | AA25: =SUM(E25:Z25) -> 6
C26: работник10 | N26: 7.2 | O26: 7.2 | AA26: 14.4
C27: работник11 | L27: 7.2 | AA27: 7.2
C28: работник3 | E28: 3.2 | F28: 4.6 | G28: 2.8 | AA28: =SUM(E28:Z28) -> 10.6
C29: работник8 | S29: 7.2 | AA29: 7.2
C30: работник9 | G30: 7.2 | H30: 7.2 | I30: 7.2 | J30: 7.2 | K30: 7.2 | AA30: 36
E31: =SUM(E25:E30) -> 3.2 | F31: 4.6 | G31: 10 | H31: 7.2 | I31: 7.2 | J31: 7.2 | K31: 7.2 | L31: 7.2 | M31: 2 | N31: 11.2 | O31: 7.2 | P31: 0 | Q31: 0 | R31: 0 | S31: 7.2 | T31: 0 | U31: 0 | V31: 0 | W31: 0 | X31: 0 | Y31: 0 | Z31: 0 | AA31: =SUM(AA25:AA30) -> 81.4
G33: технологическая карта | N33: изд | O33: 3 | R33: партия | S33: 27-21
J34: август | L34: 2021
B35: коэф | C35: Ф. И. О. | D35: р/р | E35: 2 | F35: 3 | G35: 4 | H35: 5 | I35: 6 | J35: 9 | K35: 10 | L35: 11 | M35: 12 | N35: 13 | O35: 16 | P35: 17 | Q35: 18 | R35: 19 | S35: 20 | T35: 23 | U35: 24 | V35: 25 | W35: 26 | X35: 27 | Y35: 30 | Z35: 31
C36: работник3 | D36: 2/4 | I36: 2.8 | AA36: =SUM(E36:Z36) -> 2.8
C37: работник7 | Q37: 7.2 | AA37: =SUM(E37:Z37) -> 7.2
C39: работник7 | D39: 3/4 | E39: 3.2 | AA39: =SUM(E39:Z39) -> 3.2
C40: работник12 | E40: 4 | F40: 4 | G40: 4 | H40: 4 | N40: 7 | AA40: =SUM(E40:Z40) -> 23
C41: работник2 | J41: 4.2 | Q41: 2.2 | S41: 7.2 | U41: 7.2 | W41: 3.6 | AA41: =SUM(E41:Z41) -> 24.4
C42: работник13 | P42: 1.2 | AA42: 1.2
C44: работник2 | D44: 3/16 | T44: 1.8 | W44: 3.6 | X44: 7.2 | AA44: 12.6
C45: работник1 | P45: 4.7 | Q45: 6.7 | R45: 2 | U45: 3 | X45: 5.7 | Y45: 6.7 | Z45: 6.7 | AA45: 35.5
C46: работник10 | E46: 7.2 | F46: 7.2 | G46: 7.2 | P46: 7.2 | Q46: 7.2 | AA46: 36
C47: работник11 | F47: 7.2 | H47: 7.2 | I47: 7.2 | O47: 7.2 | P47: 7.2 | U47: 7.2 | V47: 7.2 | AA47: 50.4
C48: работник9 | L48: 7.2 | M48: 7.2 | N48: 7.2 | O48: 7.2 | P48: 7.2 | Q48: 7.2 | R48: 7.2 | S48: 7.2 | AA48: 57.6
C49: работник3 | E49: 4 | AA49: 4
C50: работник12 | E50: 3 | F50: 3 | G50: 3 | H50: 3 | K50: 3 | L50: 3 | AA50: 18
C51: работник5 | K51: 2.2 | M51: 2.2 | O51: 4.2 | S51: 3.2 | AA51: 11.8
C52: работник13 | N52: 7.2 | O52: 7.2 | P52: 6 | AA52: 20.4
C53: работник14 | R53: 6.7 | S53: 6.7 | AA53: 13.4
C54: работник15 | E54: 7.2 | AA54: 7.2
C55: работник6 | F55: 7.2 | H55: 7.2 | I55: 2 | Q55: 2 | AA55: 18.4
C56: работник4 | Y56: 7.2 | Z56: 7.2 | AA56: 14.4
B58: 1.5 | C58: работник7 | D58: 4/8 | E58: 4 | F58: 7.2 | G58: 7.2 | H58: 7.2 | I58: 7.2 | R58: 7.2 | S58: 7.2 | AA58: 47.2
B60: 1.1 | C60: работник5 | D60: 3/16 | J60: 4.2 | L60: 4.2 | AA60: 8.4
B61: 1.1 | C61: работник2 | G61: 5.2 | V61: 7.2 | AA61: 12.4
B62: 1.1 | C62: работник11 | E62: 7.2 | G62: 7.2 | AA62: 14.4
E63: =SUM(E36:E62) -> 39.8 | F63: =SUM(F36:F62) -> 35.8 | G63: 33.8 | H63: 28.6 | I63: 19.2 | J63: 8.4 | K63: 5.2 | L63: 14.4 | M63: 9.4 | N63: 21.4 | O63: 25.8 | P63: 33.5 | Q63: 32.5 | R63: 23.1 | S63: 31.5 | T63: 1.8 | U63: 17.4 | V63: 14.4 | W63: 7.2 | X63: 12.9 | Y63: 13.9 | Z63: 13.9 | AA63: =SUM(AA36:AA62) -> 443.9

Sheet сверхурочка
A1: месяц | B1: год | C1: изд | D1: партия | E1: коэф | F1: Ф. И. О. | G1: р/р | H1: 1 | I1: 2 | J1: 3 | K1: 4 | L1: 5 | M1: 6 | N1: 7 | O1: 8 | P1: 9 | Q1: 10 | R1: 11 | S1: 12 | T1: 13 | U1: 14 | V1: 15 | W1: 16 | X1: 17 | Y1: 18 | Z1: 19 | AA1: 20 | AB1: 21 | AC1: 22 | AD1: 23 | AE1: 24 | AF1: 25 | AG1: 26 | AH1: 27 | AI1: 28 | AJ1: 29 | AK1: 30 | AL1: 31 | AM1: сумма | AN1: Столбец1
A2: Декабрь | B2: 2021 | C2: 8 | D2: 4-21 | E2: 1.5 | F2: работник1 | G2: 4/8 | J2: 3 | K2: 3 | V2: 4 | AM2: =SUM(Таблица18[[#This Row],[1]:[30]]) -> 10 | AN2: =SUM(IF(AND(Таблица18[[#This Row],[р/р]]="3/24",H2>2),((2*1.5*$AR$2*Таблица18[[#This Row],[коэф]])+((Таблица18[[#This Row],[1]]-2)*2*$AR$2*Таблица18[[#This Row],[коэф]])), IF(AND(Таблица18[[#This Row],[р/р]]="3/16",H2>2),((2*1.5*$AR$3*Таблица18[[#This Row],[коэф]])+((Таблица18[[#This Row],[1]]-2)*2*$AR$3*Таблица18[[#This Row],[коэф]])), IF(AND(Таблица18[[#This Row],[р/р]]="4/8",H2>2),((2*1.5*$AR$4*1.5)+((Таблица18[[#This Row],[1]]-2)*2*$AR$4*1.5)), IF(AND(Таблица18[[#This Row],[р/р]]="3/4",H2>2),((2*1.5*$AR$5)+((Таблица18[[#This Row],[1]]-2)*2*$AR$5)),(Таблица18[[#This Row],[1]]*1.5*$AR$5)))))+ IF(AND(Таблица18[[#This Row],[р/р]]="3/24",I2>2),((2*1.5*$AR$2*Таблица18[[#This Row],[коэф]])+((Таблица18[[#This Row],[2]]-2)*2*$AR$2*Таблица18[[#This Row],[коэф]])), IF(AND(Таблица18[[#This Row],[р/р]]="3/16",I2>2),((2*1.5*$AR$3*Таблица18[[#This Row],[коэф]])+((Таблица18[[#This Row],[2]]-2)*2*$AR$3*Таблица18[[#This Row],[коэф]])), IF(AND(Таблица18[[#This Row],[р/р]]="4/8",I2>2),((2*1.5*$AR$4*1.5)+((Таблица18[[#This Row],[2]]-2)*2*$AR$4*1.5)), IF(AND(Таблица18[[#This Row],[р/р]]="3/4",I2>2),((2*1.5*$AR$5)+((Таблица18[[#This Row],[2]]-2)*2*$AR$5)),(Таблица18[[#This Row],[2]]*1.5*$AR$5)))))+ IF(AND(Таблица18[[#This Row],[р/р]]="3/24",J2>2),((2*1.5*$AR$2*Таблица18[[#This Row],[коэф]])+((Таблица18[[#This Row],[3]]-2)*2*$AR$2*Таблица18[[#This Row],[коэф]])), IF(AND(Таблица18[[#This Row],[р/р]]="3/16",J2>2),((2*1.5*$AR$3*Таблица18[[#This Row],[коэф]])+((Таблица18[[#This Row],[3]]-2)*2*$AR$3*Таблица18[[#This Row],[коэф]])), IF(AND(Таблица18[[#This Row],[р/р]]="4/8",J2>2),((2*1.5*$AR$4*1.5)+((Таблица18[[#This Row],[3]]-2)*2*$AR$4*1.5)), IF(AND(Таблица18[[#This Row],[р/р]]="3/4",J2>2),((2*1.5*$AR$5)+((Таблица18[[#This Row],[3]]-2)*2*$AR$5)),(Таблица18[[#This Row],[3]]*1.5*$AR$5)))))+ IF(AND(Таблица18[[#This Row],[р/р]]="3/24",K2>2),((2*1.5*$AR$2*Таблица18[[#This Row],[коэф]])+((Таблица18[[#This Row],[4]]-2)*2*$AR$2*Таблица18[[#This Row],[коэф]])), IF(AND(Таблица18[[#This Row],[р/р]]="3/16",K2>2),((2*1.5*$AR$3*Таблица18[[#This Row],[коэф]])+((Таблица18[[#This Row],[4]]-2)*2*$AR$3*Таблица18[[#This Row],[коэф]])), IF(AND(Таблица18[[#This Row],[р/р]]="4/8",K2>2),((2*1.5*$AR$4*1.5)+((Таблица18[[#This Row],[4]]-2)*2*$AR$4*1.5)), IF(AND(Таблица18[[#This Row],[р/р]]="3/4",K2>2),((2*1.5*$AR$5)+((Таблица18[[#This Row],[4]]-2)*2*$AR$5)),(Таблица18[[#This Row],[4]]*1.5*$AR$5)))))+ IF(AND(Таблица18[[#This Row],[р/р]]="3/24",V2>2),((2*1.5*$AR$2*Таблица18[[#This Row],[коэф]])+((Таблица18[[#This Row],[15]]-2)*2*$AR$2*Таблица18[[#This Row],[коэф]])), IF(AND(Таблица18[[#This Row],[р/р]]="3/16",V2>2),((2*1.5*$AR$3*Таблица18[[#This Row],[коэф]])+((Таблица18[[#This Row],[15]]-2)*2*$AR$3*Таблица18[[#This Row],[коэф]])), IF(AND(Таблица18[[#This Row],[р/р]]="4/8",V2>2),((2*1.5*$AR$4*1.5)+((Таблица18[[#This Row],[15]]-2)*2*$AR$4*1.5)), IF(AND(Таблица18[[#This Row],[р/р]]="3/4",V2>2),((2*1.5*$AR$5)+((Таблица18[[#This Row],[15]]-2)*2*$AR$5)),(Таблица18[[#This Row],[15]]*1.5*$AR$5)))))) -> 4419.66 | AR2: 181.04
A3: Декабрь | B3: 2021 | C3: 61 | D3: 42-21 | E3: 1 | F3: работник3 | G3: 3/24 | J3: 1 | AM3: =SUM(Таблица18[[#This Row],[1]:[30]]) -> 1 | AN3: =SUM(IF(AND(Таблица18[[#This Row],[р/р]]="3/24",H3>2),((2*1.5*$AR$2*Таблица18[[#This Row],[коэф]])+((Таблица18[[#This Row],[1]]-2)*2*$AR$2*Таблица18[[#This Row],[коэф]])), IF(AND(Таблица18[[#This Row],[р/р]]="3/16",H3>2),((2*1.5*$AR$3*Таблица18[[#This Row],[коэф]])+((Таблица18[[#This Row],[1]]-2)*2*$AR$3*Таблица18[[#This Row],[коэф]])), IF(AND(Таблица18[[#This Row],[р/р]]="4/8",H3>2),((2*1.5*$AR$4*1.5)+((Таблица18[[#This Row],[1]]-2)*2*$AR$4*1.5)), IF(AND(Таблица18[[#This Row],[р/р]]="3/4",H3>2),((2*1.5*$AR$5)+((Таблица18[[#This Row],[1]]-2)*2*$AR$5)),(Таблица18[[#This Row],[1]]*1.5*$AR$5)))))+ IF(AND(Таблица18[[#This Row],[р/р]]="3/24",I3>2),((2*1.5*$AR$2*Таблица18[[#This Row],[коэф]])+((Таблица18[[#This Row],[2]]-2)*2*$AR$2*Таблица18[[#This Row],[коэф]])), IF(AND(Таблица18[[#This Row],[р/р]]="3/16",I3>2),((2*1.5*$AR$3*Таблица18[[#This Row],[коэф]])+((Таблица18[[#This Row],[2]]-2)*2*$AR$3*Таблица18[[#This Row],[коэф]])), IF(AND(Таблица18[[#This Row],[р/р]]="4/8",I3>2),((2*1.5*$AR$4*1.5)+((Таблица18[[#This Row],[2]]-2)*2*$AR$4*1.5)), IF(AND(Таблица18[[#This Row],[р/р]]="3/4",I3>2),((2*1.5*$AR$5)+((Таблица18[[#This Row],[2]]-2)*2*$AR$5)),(Таблица18[[#This Row],[2]]*1.5*$AR$5)))))+ IF(AND(Таблица18[[#This Row],[р/р]]="3/24",J3>2),((2*1.5*$AR$2*Таблица18[[#This Row],[коэф]])+((Таблица18[[#This Row],[3]]-2)*2*$AR$2*Таблица18[[#This Row],[коэф]])), IF(AND(Таблица18[[#This Row],[р/р]]="3/16",J3>2),((2*1.5*$AR$3*Таблица18[[#This Row],[коэф]])+((Таблица18[[#This Row],[3]]-2)*2*$AR$3*Таблица18[[#This Row],[коэф]])), IF(AND(Таблица18[[#This Row],[р/р]]="4/8",J3>2),((2*1.5*$AR$4*1.5)+((Таблица18[[#This Row],[3]]-2)*2*$AR$4*1.5)), IF(AND(Таблица18[[#This Row],[р/р]]="3/4",J3>2),((2*1.5*$AR$5)+((Таблица18[[#This Row],[3]]-2)*2*$AR$5)),(Таблица18[[#This Row],[3]]*1.5*$AR$5)))))+ IF(AND(Таблица18[[#This Row],[р/р]]="3/24",K3>2),((2*1.5*$AR$2*Таблица18[[#This Row],[коэф]])+((Таблица18[[#This Row],[4]]-2)*2*$AR$2*Таблица18[[#This Row],[коэф]])), IF(AND(Таблица18[[#This Row],[р/р]]="3/16",K3>2),((2*1.5*$AR$3*Таблица18[[#This Row],[коэф]])+((Таблица18[[#This Row],[4]]-2)*2*$AR$3*Таблица18[[#This Row],[коэф]])), IF(AND(Таблица18[[#This Row],[р/р]]="4/8",K3>2),((2*1.5*$AR$4*1.5)+((Таблица18[[#This Row],[4]]-2)*2*$AR$4*1.5)), IF(AND(Таблица18[[#This Row],[р/р]]="3/4",K3>2),((2*1.5*$AR$5)+((Таблица18[[#This Row],[4]]-2)*2*$AR$5)),(Таблица18[[#This Row],[4]]*1.5*$AR$5)))))+ IF(AND(Таблица18[[#This Row],[р/р]]="3/24",V3>2),((2*1.5*$AR$2*Таблица18[[#This Row],[коэф]])+((Таблица18[[#This Row],[15]]-2)*2*$AR$2*Таблица18[[#This Row],[коэф]])), IF(AND(Таблица18[[#This Row],[р/р]]="3/16",V3>2),((2*1.5*$AR$3*Таблица18[[#This Row],[коэф]])+((Таблица18[[#This Row],[15]]-2)*2*$AR$3*Таблица18[[#This Row],[коэф]])), IF(AND(Таблица18[[#This Row],[р/р]]="4/8",V3>2),((2*1.5*$AR$4*1.5)+((Таблица18[[#This Row],[15]]-2)*2*$AR$4*1.5)), IF(AND(Таблица18[[#This Row],[р/р]]="3/4",V3>2),((2*1.5*$AR$5)+((Таблица18[[#This Row],[15]]-2)*2*$AR$5)),(Таблица18[[#This Row],[15]]*1.5*$AR$5)))))) -> 227.76 | AR3: 169.36
A4: Декабрь | B4: 2021 | C4: 61 | D4: 42-21 | E4: 1 | F4: работник4 | G4: 3/16 | K4: 4.2 | AM4: =SUM(Таблица18[[#This Row],[1]:[30]]) -> 4.2 | AN4: =SUM(IF(AND(Таблица18[[#This Row],[р/р]]="3/24",H4>2),((2*1.5*$AR$2*Таблица18[[#This Row],[коэф]])+((Таблица18[[#This Row],[1]]-2)*2*$AR$2*Таблица18[[#This Row],[коэф]])), IF(AND(Таблица18[[#This Row],[р/р]]="3/16",H4>2),((2*1.5*$AR$3*Таблица18[[#This Row],[коэф]])+((Таблица18[[#This Row],[1]]-2)*2*$AR$3*Таблица18[[#This Row],[коэф]])), IF(AND(Таблица18[[#This Row],[р/р]]="4/8",H4>2),((2*1.5*$AR$4*1.5)+((Таблица18[[#This Row],[1]]-2)*2*$AR$4*1.5)), IF(AND(Таблица18[[#This Row],[р/р]]="3/4",H4>2),((2*1.5*$AR$5)+((Таблица18[[#This Row],[1]]-2)*2*$AR$5)),(Таблица18[[#This Row],[1]]*1.5*$AR$5)))))+ IF(AND(Таблица18[[#This Row],[р/р]]="3/24",I4>2),((2*1.5*$AR$2*Таблица18[[#This Row],[коэф]])+((Таблица18[[#This Row],[2]]-2)*2*$AR$2*Таблица18[[#This Row],[коэф]])), IF(AND(Таблица18[[#This Row],[р/р]]="3/16",I4>2),((2*1.5*$AR$3*Таблица18[[#This Row],[коэф]])+((Таблица18[[#This Row],[2]]-2)*2*$AR$3*Таблица18[[#This Row],[коэф]])), IF(AND(Таблица18[[#This Row],[р/р]]="4/8",I4>2),((2*1.5*$AR$4*1.5)+((Таблица18[[#This Row],[2]]-2)*2*$AR$4*1.5)), IF(AND(Таблица18[[#This Row],[р/р]]="3/4",I4>2),((2*1.5*$AR$5)+((Таблица18[[#This Row],[2]]-2)*2*$AR$5)),(Таблица18[[#This Row],[2]]*1.5*$AR$5)))))+ IF(AND(Таблица18[[#This Row],[р/р]]="3/24",J4>2),((2*1.5*$AR$2*Таблица18[[#This Row],[коэф]])+((Таблица18[[#This Row],[3]]-2)*2*$AR$2*Таблица18[[#This Row],[коэф]])), IF(AND(Таблица18[[#This Row],[р/р]]="3/16",J4>2),((2*1.5*$AR$3*Таблица18[[#This Row],[коэф]])+((Таблица18[[#This Row],[3]]-2)*2*$AR$3*Таблица18[[#This Row],[коэф]])), IF(AND(Таблица18[[#This Row],[р/р]]="4/8",J4>2),((2*1.5*$AR$4*1.5)+((Таблица18[[#This Row],[3]]-2)*2*$AR$4*1.5)), IF(AND(Таблица18[[#This Row],[р/р]]="3/4",J4>2),((2*1.5*$AR$5)+((Таблица18[[#This Row],[3]]-2)*2*$AR$5)),(Таблица18[[#This Row],[3]]*1.5*$AR$5)))))+ IF(AND(Таблица18[[#This Row],[р/р]]="3/24",K4>2),((2*1.5*$AR$2*Таблица18[[#This Row],[коэф]])+((Таблица18[[#This Row],[4]]-2)*2*$AR$2*Таблица18[[#This Row],[коэф]])), IF(AND(Таблица18[[#This Row],[р/р]]="3/16",K4>2),((2*1.5*$AR$3*Таблица18[[#This Row],[коэф]])+((Таблица18[[#This Row],[4]]-2)*2*$AR$3*Таблица18[[#This Row],[коэф]])), IF(AND(Таблица18[[#This Row],[р/р]]="4/8",K4>2),((2*1.5*$AR$4*1.5)+((Таблица18[[#This Row],[4]]-2)*2*$AR$4*1.5)), IF(AND(Таблица18[[#This Row],[р/р]]="3/4",K4>2),((2*1.5*$AR$5)+((Таблица18[[#This Row],[4]]-2)*2*$AR$5)),(Таблица18[[#This Row],[4]]*1.5*$AR$5)))))+ IF(AND(Таблица18[[#This Row],[р/р]]="3/24",V4>2),((2*1.5*$AR$2*Таблица18[[#This Row],[коэф]])+((Таблица18[[#This Row],[15]]-2)*2*$AR$2*Таблица18[[#This Row],[коэф]])), IF(AND(Таблица18[[#This Row],[р/р]]="3/16",V4>2),((2*1.5*$AR$3*Таблица18[[#This Row],[коэф]])+((Таблица18[[#This Row],[15]]-2)*2*$AR$3*Таблица18[[#This Row],[коэф]])), IF(AND(Таблица18[[#This Row],[р/р]]="4/8",V4>2),((2*1.5*$AR$4*1.5)+((Таблица18[[#This Row],[15]]-2)*2*$AR$4*1.5)), IF(AND(Таблица18[[#This Row],[р/р]]="3/4",V4>2),((2*1.5*$AR$5)+((Таблица18[[#This Row],[15]]-2)*2*$AR$5)),(Таблица18[[#This Row],[15]]*1.5*$AR$5)))))) -> 1253.264 | AR4: 173.32
A5: Декабрь | B5: 2021 | C5: 1 | D5: 10-21 | E5: 1.5 | F5: работник6 | G5: 4/8 | I5: 4 | AM5: =SUM(Таблица18[[#This Row],[1]:[30]]) -> 4 | AN5: =SUM(IF(AND(Таблица18[[#This Row],[р/р]]="3/24",H5>2),((2*1.5*$AR$2*Таблица18[[#This Row],[коэф]])+((Таблица18[[#This Row],[1]]-2)*2*$AR$2*Таблица18[[#This Row],[коэф]])), IF(AND(Таблица18[[#This Row],[р/р]]="3/16",H5>2),((2*1.5*$AR$3*Таблица18[[#This Row],[коэф]])+((Таблица18[[#This Row],[1]]-2)*2*$AR$3*Таблица18[[#This Row],[коэф]])), IF(AND(Таблица18[[#This Row],[р/р]]="4/8",H5>2),((2*1.5*$AR$4*1.5)+((Таблица18[[#This Row],[1]]-2)*2*$AR$4*1.5)), IF(AND(Таблица18[[#This Row],[р/р]]="3/4",H5>2),((2*1.5*$AR$5)+((Таблица18[[#This Row],[1]]-2)*2*$AR$5)),(Таблица18[[#This Row],[1]]*1.5*$AR$5)))))+ IF(AND(Таблица18[[#This Row],[р/р]]="3/24",I5>2),((2*1.5*$AR$2*Таблица18[[#This Row],[коэф]])+((Таблица18[[#This Row],[2]]-2)*2*$AR$2*Таблица18[[#This Row],[коэф]])), IF(AND(Таблица18[[#This Row],[р/р]]="3/16",I5>2),((2*1.5*$AR$3*Таблица18[[#This Row],[коэф]])+((Таблица18[[#This Row],[2]]-2)*2*$AR$3*Таблица18[[#This Row],[коэф]])), IF(AND(Таблица18[[#This Row],[р/р]]="4/8",I5>2),((2*1.5*$AR$4*1.5)+((Таблица18[[#This Row],[2]]-2)*2*$AR$4*1.5)), IF(AND(Таблица18[[#This Row],[р/р]]="3/4",I5>2),((2*1.5*$AR$5)+((Таблица18[[#This Row],[2]]-2)*2*$AR$5)),(Таблица18[[#This Row],[2]]*1.5*$AR$5)))))+ IF(AND(Таблица18[[#This Row],[р/р]]="3/24",J5>2),((2*1.5*$AR$2*Таблица18[[#This Row],[коэф]])+((Таблица18[[#This Row],[3]]-2)*2*$AR$2*Таблица18[[#This Row],[коэф]])), IF(AND(Таблица18[[#This Row],[р/р]]="3/16",J5>2),((2*1.5*$AR$3*Таблица18[[#This Row],[коэф]])+((Таблица18[[#This Row],[3]]-2)*2*$AR$3*Таблица18[[#This Row],[коэф]])), IF(AND(Таблица18[[#This Row],[р/р]]="4/8",J5>2),((2*1.5*$AR$4*1.5)+((Таблица18[[#This Row],[3]]-2)*2*$AR$4*1.5)), IF(AND(Таблица18[[#This Row],[р/р]]="3/4",J5>2),((2*1.5*$AR$5)+((Таблица18[[#This Row],[3]]-2)*2*$AR$5)),(Таблица18[[#This Row],[3]]*1.5*$AR$5)))))+ IF(AND(Таблица18[[#This Row],[р/р]]="3/24",K5>2),((2*1.5*$AR$2*Таблица18[[#This Row],[коэф]])+((Таблица18[[#This Row],[4]]-2)*2*$AR$2*Таблица18[[#This Row],[коэф]])), IF(AND(Таблица18[[#This Row],[р/р]]="3/16",K5>2),((2*1.5*$AR$3*Таблица18[[#This Row],[коэф]])+((Таблица18[[#This Row],[4]]-2)*2*$AR$3*Таблица18[[#This Row],[коэф]])), IF(AND(Таблица18[[#This Row],[р/р]]="4/8",K5>2),((2*1.5*$AR$4*1.5)+((Таблица18[[#This Row],[4]]-2)*2*$AR$4*1.5)), IF(AND(Таблица18[[#This Row],[р/р]]="3/4",K5>2),((2*1.5*$AR$5)+((Таблица18[[#This Row],[4]]-2)*2*$AR$5)),(Таблица18[[#This Row],[4]]*1.5*$AR$5)))))+ IF(AND(Таблица18[[#This Row],[р/р]]="3/24",V5>2),((2*1.5*$AR$2*Таблица18[[#This Row],[коэф]])+((Таблица18[[#This Row],[15]]-2)*2*$AR$2*Таблица18[[#This Row],[коэф]])), IF(AND(Таблица18[[#This Row],[р/р]]="3/16",V5>2),((2*1.5*$AR$3*Таблица18[[#This Row],[коэф]])+((Таблица18[[#This Row],[15]]-2)*2*$AR$3*Таблица18[[#This Row],[коэф]])), IF(AND(Таблица18[[#This Row],[р/р]]="4/8",V5>2),((2*1.5*$AR$4*1.5)+((Таблица18[[#This Row],[15]]-2)*2*$AR$4*1.5)), IF(AND(Таблица18[[#This Row],[р/р]]="3/4",V5>2),((2*1.5*$AR$5)+((Таблица18[[#This Row],[15]]-2)*2*$AR$5)),(Таблица18[[#This Row],[15]]*1.5*$AR$5)))))) -> 1819.86 | AR5: 151.84
A6: Декабрь | B6: 2021 | C6: 6 | D6: 45-21 | E6: 1 | F6: работник7 | G6: 3/16 | K6: 3.8 | AM6: =SUM(Таблица18[[#This Row],[1]:[30]]) -> 3.8 | AN6: =SUM(IF(AND(Таблица18[[#This Row],[р/р]]="3/24",H6>2),((2*1.5*$AR$2*Таблица18[[#This Row],[коэф]])+((Таблица18[[#This Row],[1]]-2)*2*$AR$2*Таблица18[[#This Row],[коэф]])), IF(AND(Таблица18[[#This Row],[р/р]]="3/16",H6>2),((2*1.5*$AR$3*Таблица18[[#This Row],[коэф]])+((Таблица18[[#This Row],[1]]-2)*2*$AR$3*Таблица18[[#This Row],[коэф]])), IF(AND(Таблица18[[#This Row],[р/р]]="4/8",H6>2),((2*1.5*$AR$4*1.5)+((Таблица18[[#This Row],[1]]-2)*2*$AR$4*1.5)), IF(AND(Таблица18[[#This Row],[р/р]]="3/4",H6>2),((2*1.5*$AR$5)+((Таблица18[[#This Row],[1]]-2)*2*$AR$5)),(Таблица18[[#This Row],[1]]*1.5*$AR$5)))))+ IF(AND(Таблица18[[#This Row],[р/р]]="3/24",I6>2),((2*1.5*$AR$2*Таблица18[[#This Row],[коэф]])+((Таблица18[[#This Row],[2]]-2)*2*$AR$2*Таблица18[[#This Row],[коэф]])), IF(AND(Таблица18[[#This Row],[р/р]]="3/16",I6>2),((2*1.5*$AR$3*Таблица18[[#This Row],[коэф]])+((Таблица18[[#This Row],[2]]-2)*2*$AR$3*Таблица18[[#This Row],[коэф]])), IF(AND(Таблица18[[#This Row],[р/р]]="4/8",I6>2),((2*1.5*$AR$4*1.5)+((Таблица18[[#This Row],[2]]-2)*2*$AR$4*1.5)), IF(AND(Таблица18[[#This Row],[р/р]]="3/4",I6>2),((2*1.5*$AR$5)+((Таблица18[[#This Row],[2]]-2)*2*$AR$5)),(Таблица18[[#This Row],[2]]*1.5*$AR$5)))))+ IF(AND(Таблица18[[#This Row],[р/р]]="3/24",J6>2),((2*1.5*$AR$2*Таблица18[[#This Row],[коэф]])+((Таблица18[[#This Row],[3]]-2)*2*$AR$2*Таблица18[[#This Row],[коэф]])), IF(AND(Таблица18[[#This Row],[р/р]]="3/16",J6>2),((2*1.5*$AR$3*Таблица18[[#This Row],[коэф]])+((Таблица18[[#This Row],[3]]-2)*2*$AR$3*Таблица18[[#This Row],[коэф]])), IF(AND(Таблица18[[#This Row],[р/р]]="4/8",J6>2),((2*1.5*$AR$4*1.5)+((Таблица18[[#This Row],[3]]-2)*2*$AR$4*1.5)), IF(AND(Таблица18[[#This Row],[р/р]]="3/4",J6>2),((2*1.5*$AR$5)+((Таблица18[[#This Row],[3]]-2)*2*$AR$5)),(Таблица18[[#This Row],[3]]*1.5*$AR$5)))))+ IF(AND(Таблица18[[#This Row],[р/р]]="3/24",K6>2),((2*1.5*$AR$2*Таблица18[[#This Row],[коэф]])+((Таблица18[[#This Row],[4]]-2)*2*$AR$2*Таблица18[[#This Row],[коэф]])), IF(AND(Таблица18[[#This Row],[р/р]]="3/16",K6>2),((2*1.5*$AR$3*Таблица18[[#This Row],[коэф]])+((Таблица18[[#This Row],[4]]-2)*2*$AR$3*Таблица18[[#This Row],[коэф]])), IF(AND(Таблица18[[#This Row],[р/р]]="4/8",K6>2),((2*1.5*$AR$4*1.5)+((Таблица18[[#This Row],[4]]-2)*2*$AR$4*1.5)), IF(AND(Таблица18[[#This Row],[р/р]]="3/4",K6>2),((2*1.5*$AR$5)+((Таблица18[[#This Row],[4]]-2)*2*$AR$5)),(Таблица18[[#This Row],[4]]*1.5*$AR$5)))))+ IF(AND(Таблица18[[#This Row],[р/р]]="3/24",V6>2),((2*1.5*$AR$2*Таблица18[[#This Row],[коэф]])+((Таблица18[[#This Row],[15]]-2)*2*$AR$2*Таблица18[[#This Row],[коэф]])), IF(AND(Таблица18[[#This Row],[р/р]]="3/16",V6>2),((2*1.5*$AR$3*Таблица18[[#This Row],[коэф]])+((Таблица18[[#This Row],[15]]-2)*2*$AR$3*Таблица18[[#This Row],[коэф]])), IF(AND(Таблица18[[#This Row],[р/р]]="4/8",V6>2),((2*1.5*$AR$4*1.5)+((Таблица18[[#This Row],[15]]-2)*2*$AR$4*1.5)), IF(AND(Таблица18[[#This Row],[р/р]]="3/4",V6>2),((2*1.5*$AR$5)+((Таблица18[[#This Row],[15]]-2)*2*$AR$5)),(Таблица18[[#This Row],[15]]*1.5*$AR$5)))))) -> 1117.776
A7: Декабрь | B7: 2021 | C7: 8 | D7: 4-21 | E7: 1 | F7: работник8 | G7: 3/16 | V7: 3 | AM7: =SUM(Таблица18[[#This Row],[1]:[30]]) -> 3 | AN7: =SUM(IF(AND(Таблица18[[#This Row],[р/р]]="3/24",H7>2),((2*1.5*$AR$2*Таблица18[[#This Row],[коэф]])+((Таблица18[[#This Row],[1]]-2)*2*$AR$2*Таблица18[[#This Row],[коэф]])), IF(AND(Таблица18[[#This Row],[р/р]]="3/16",H7>2),((2*1.5*$AR$3*Таблица18[[#This Row],[коэф]])+((Таблица18[[#This Row],[1]]-2)*2*$AR$3*Таблица18[[#This Row],[коэф]])), IF(AND(Таблица18[[#This Row],[р/р]]="4/8",H7>2),((2*1.5*$AR$4*1.5)+((Таблица18[[#This Row],[1]]-2)*2*$AR$4*1.5)), IF(AND(Таблица18[[#This Row],[р/р]]="3/4",H7>2),((2*1.5*$AR$5)+((Таблица18[[#This Row],[1]]-2)*2*$AR$5)),(Таблица18[[#This Row],[1]]*1.5*$AR$5)))))+ IF(AND(Таблица18[[#This Row],[р/р]]="3/24",I7>2),((2*1.5*$AR$2*Таблица18[[#This Row],[коэф]])+((Таблица18[[#This Row],[2]]-2)*2*$AR$2*Таблица18[[#This Row],[коэф]])), IF(AND(Таблица18[[#This Row],[р/р]]="3/16",I7>2),((2*1.5*$AR$3*Таблица18[[#This Row],[коэф]])+((Таблица18[[#This Row],[2]]-2)*2*$AR$3*Таблица18[[#This Row],[коэф]])), IF(AND(Таблица18[[#This Row],[р/р]]="4/8",I7>2),((2*1.5*$AR$4*1.5)+((Таблица18[[#This Row],[2]]-2)*2*$AR$4*1.5)), IF(AND(Таблица18[[#This Row],[р/р]]="3/4",I7>2),((2*1.5*$AR$5)+((Таблица18[[#This Row],[2]]-2)*2*$AR$5)),(Таблица18[[#This Row],[2]]*1.5*$AR$5)))))+ IF(AND(Таблица18[[#This Row],[р/р]]="3/24",J7>2),((2*1.5*$AR$2*Таблица18[[#This Row],[коэф]])+((Таблица18[[#This Row],[3]]-2)*2*$AR$2*Таблица18[[#This Row],[коэф]])), IF(AND(Таблица18[[#This Row],[р/р]]="3/16",J7>2),((2*1.5*$AR$3*Таблица18[[#This Row],[коэф]])+((Таблица18[[#This Row],[3]]-2)*2*$AR$3*Таблица18[[#This Row],[коэф]])), IF(AND(Таблица18[[#This Row],[р/р]]="4/8",J7>2),((2*1.5*$AR$4*1.5)+((Таблица18[[#This Row],[3]]-2)*2*$AR$4*1.5)), IF(AND(Таблица18[[#This Row],[р/р]]="3/4",J7>2),((2*1.5*$AR$5)+((Таблица18[[#This Row],[3]]-2)*2*$AR$5)),(Таблица18[[#This Row],[3]]*1.5*$AR$5)))))+ IF(AND(Таблица18[[#This Row],[р/р]]="3/24",K7>2),((2*1.5*$AR$2*Таблица18[[#This Row],[коэф]])+((Таблица18[[#This Row],[4]]-2)*2*$AR$2*Таблица18[[#This Row],[коэф]])), IF(AND(Таблица18[[#This Row],[р/р]]="3/16",K7>2),((2*1.5*$AR$3*Таблица18[[#This Row],[коэф]])+((Таблица18[[#This Row],[4]]-2)*2*$AR$3*Таблица18[[#This Row],[коэф]])), IF(AND(Таблица18[[#This Row],[р/р]]="4/8",K7>2),((2*1.5*$AR$4*1.5)+((Таблица18[[#This Row],[4]]-2)*2*$AR$4*1.5)), IF(AND(Таблица18[[#This Row],[р/р]]="3/4",K7>2),((2*1.5*$AR$5)+((Таблица18[[#This Row],[4]]-2)*2*$AR$5)),(Таблица18[[#This Row],[4]]*1.5*$AR$5)))))+ IF(AND(Таблица18[[#This Row],[р/р]]="3/24",V7>2),((2*1.5*$AR$2*Таблица18[[#This Row],[коэф]])+((Таблица18[[#This Row],[15]]-2)*2*$AR$2*Таблица18[[#This Row],[коэф]])), IF(AND(Таблица18[[#This Row],[р/р]]="3/16",V7>2),((2*1.5*$AR$3*Таблица18[[#This Row],[коэф]])+((Таблица18[[#This Row],[15]]-2)*2*$AR$3*Таблица18[[#This Row],[коэф]])), IF(AND(Таблица18[[#This Row],[р/р]]="4/8",V7>2),((2*1.5*$AR$4*1.5)+((Таблица18[[#This Row],[15]]-2)*2*$AR$4*1.5)), IF(AND(Таблица18[[#This Row],[р/р]]="3/4",V7>2),((2*1.5*$AR$5)+((Таблица18[[#This Row],[15]]-2)*2*$AR$5)),(Таблица18[[#This Row],[15]]*1.5*$AR$5)))))) -> 846.8
A8: Декабрь | B8: 2021 | C8: 61 | D8: 42-21 | E8: 1 | F8: работник9 | G8: 3/16 | K8: 4 | AM8: =SUM(Таблица18[[#This Row],[1]:[30]]) -> 4 | AN8: =SUM(IF(AND(Таблица18[[#This Row],[р/р]]="3/24",H8>2),((2*1.5*$AR$2*Таблица18[[#This Row],[коэф]])+((Таблица18[[#This Row],[1]]-2)*2*$AR$2*Таблица18[[#This Row],[коэф]])), IF(AND(Таблица18[[#This Row],[р/р]]="3/16",H8>2),((2*1.5*$AR$3*Таблица18[[#This Row],[коэф]])+((Таблица18[[#This Row],[1]]-2)*2*$AR$3*Таблица18[[#This Row],[коэф]])), IF(AND(Таблица18[[#This Row],[р/р]]="4/8",H8>2),((2*1.5*$AR$4*1.5)+((Таблица18[[#This Row],[1]]-2)*2*$AR$4*1.5)), IF(AND(Таблица18[[#This Row],[р/р]]="3/4",H8>2),((2*1.5*$AR$5)+((Таблица18[[#This Row],[1]]-2)*2*$AR$5)),(Таблица18[[#This Row],[1]]*1.5*$AR$5)))))+ IF(AND(Таблица18[[#This Row],[р/р]]="3/24",I8>2),((2*1.5*$AR$2*Таблица18[[#This Row],[коэф]])+((Таблица18[[#This Row],[2]]-2)*2*$AR$2*Таблица18[[#This Row],[коэф]])), IF(AND(Таблица18[[#This Row],[р/р]]="3/16",I8>2),((2*1.5*$AR$3*Таблица18[[#This Row],[коэф]])+((Таблица18[[#This Row],[2]]-2)*2*$AR$3*Таблица18[[#This Row],[коэф]])), IF(AND(Таблица18[[#This Row],[р/р]]="4/8",I8>2),((2*1.5*$AR$4*1.5)+((Таблица18[[#This Row],[2]]-2)*2*$AR$4*1.5)), IF(AND(Таблица18[[#This Row],[р/р]]="3/4",I8>2),((2*1.5*$AR$5)+((Таблица18[[#This Row],[2]]-2)*2*$AR$5)),(Таблица18[[#This Row],[2]]*1.5*$AR$5)))))+ IF(AND(Таблица18[[#This Row],[р/р]]="3/24",J8>2),((2*1.5*$AR$2*Таблица18[[#This Row],[коэф]])+((Таблица18[[#This Row],[3]]-2)*2*$AR$2*Таблица18[[#This Row],[коэф]])), IF(AND(Таблица18[[#This Row],[р/р]]="3/16",J8>2),((2*1.5*$AR$3*Таблица18[[#This Row],[коэф]])+((Таблица18[[#This Row],[3]]-2)*2*$AR$3*Таблица18[[#This Row],[коэф]])), IF(AND(Таблица18[[#This Row],[р/р]]="4/8",J8>2),((2*1.5*$AR$4*1.5)+((Таблица18[[#This Row],[3]]-2)*2*$AR$4*1.5)), IF(AND(Таблица18[[#This Row],[р/р]]="3/4",J8>2),((2*1.5*$AR$5)+((Таблица18[[#This Row],[3]]-2)*2*$AR$5)),(Таблица18[[#This Row],[3]]*1.5*$AR$5)))))+ IF(AND(Таблица18[[#This Row],[р/р]]="3/24",K8>2),((2*1.5*$AR$2*Таблица18[[#This Row],[коэф]])+((Таблица18[[#This Row],[4]]-2)*2*$AR$2*Таблица18[[#This Row],[коэф]])), IF(AND(Таблица18[[#This Row],[р/р]]="3/16",K8>2),((2*1.5*$AR$3*Таблица18[[#This Row],[коэф]])+((Таблица18[[#This Row],[4]]-2)*2*$AR$3*Таблица18[[#This Row],[коэф]])), IF(AND(Таблица18[[#This Row],[р/р]]="4/8",K8>2),((2*1.5*$AR$4*1.5)+((Таблица18[[#This Row],[4]]-2)*2*$AR$4*1.5)), IF(AND(Таблица18[[#This Row],[р/р]]="3/4",K8>2),((2*1.5*$AR$5)+((Таблица18[[#This Row],[4]]-2)*2*$AR$5)),(Таблица18[[#This Row],[4]]*1.5*$AR$5)))))+ IF(AND(Таблица18[[#This Row],[р/р]]="3/24",V8>2),((2*1.5*$AR$2*Таблица18[[#This Row],[коэф]])+((Таблица18[[#This Row],[15]]-2)*2*$AR$2*Таблица18[[#This Row],[коэф]])), IF(AND(Таблица18[[#This Row],[р/р]]="3/16",V8>2),((2*1.5*$AR$3*Таблица18[[#This Row],[коэф]])+((Таблица18[[#This Row],[15]]-2)*2*$AR$3*Таблица18[[#This Row],[коэф]])), IF(AND(Таблица18[[#This Row],[р/р]]="4/8",V8>2),((2*1.5*$AR$4*1.5)+((Таблица18[[#This Row],[15]]-2)*2*$AR$4*1.5)), IF(AND(Таблица18[[#This Row],[р/р]]="3/4",V8>2),((2*1.5*$AR$5)+((Таблица18[[#This Row],[15]]-2)*2*$AR$5)),(Таблица18[[#This Row],[15]]*1.5*$AR$5)))))) -> 1185.52
A9: Декабрь | B9: 2021 | C9: 61 | D9: 42-21 | E9: 1 | F9: работник10 | G9: 3/16 | K9: 4.5 | AM9: =SUM(Таблица18[[#This Row],[1]:[30]]) -> 4.5 | AN9: =SUM(IF(AND(Таблица18[[#This Row],[р/р]]="3/24",H9>2),((2*1.5*$AR$2*Таблица18[[#This Row],[коэф]])+((Таблица18[[#This Row],[1]]-2)*2*$AR$2*Таблица18[[#This Row],[коэф]])), IF(AND(Таблица18[[#This Row],[р/р]]="3/16",H9>2),((2*1.5*$AR$3*Таблица18[[#This Row],[коэф]])+((Таблица18[[#This Row],[1]]-2)*2*$AR$3*Таблица18[[#This Row],[коэф]])), IF(AND(Таблица18[[#This Row],[р/р]]="4/8",H9>2),((2*1.5*$AR$4*1.5)+((Таблица18[[#This Row],[1]]-2)*2*$AR$4*1.5)), IF(AND(Таблица18[[#This Row],[р/р]]="3/4",H9>2),((2*1.5*$AR$5)+((Таблица18[[#This Row],[1]]-2)*2*$AR$5)),(Таблица18[[#This Row],[1]]*1.5*$AR$5)))))+ IF(AND(Таблица18[[#This Row],[р/р]]="3/24",I9>2),((2*1.5*$AR$2*Таблица18[[#This Row],[коэф]])+((Таблица18[[#This Row],[2]]-2)*2*$AR$2*Таблица18[[#This Row],[коэф]])), IF(AND(Таблица18[[#This Row],[р/р]]="3/16",I9>2),((2*1.5*$AR$3*Таблица18[[#This Row],[коэф]])+((Таблица18[[#This Row],[2]]-2)*2*$AR$3*Таблица18[[#This Row],[коэф]])), IF(AND(Таблица18[[#This Row],[р/р]]="4/8",I9>2),((2*1.5*$AR$4*1.5)+((Таблица18[[#This Row],[2]]-2)*2*$AR$4*1.5)), IF(AND(Таблица18[[#This Row],[р/р]]="3/4",I9>2),((2*1.5*$AR$5)+((Таблица18[[#This Row],[2]]-2)*2*$AR$5)),(Таблица18[[#This Row],[2]]*1.5*$AR$5)))))+ IF(AND(Таблица18[[#This Row],[р/р]]="3/24",J9>2),((2*1.5*$AR$2*Таблица18[[#This Row],[коэф]])+((Таблица18[[#This Row],[3]]-2)*2*$AR$2*Таблица18[[#This Row],[коэф]])), IF(AND(Таблица18[[#This Row],[р/р]]="3/16",J9>2),((2*1.5*$AR$3*Таблица18[[#This Row],[коэф]])+((Таблица18[[#This Row],[3]]-2)*2*$AR$3*Таблица18[[#This Row],[коэф]])), IF(AND(Таблица18[[#This Row],[р/р]]="4/8",J9>2),((2*1.5*$AR$4*1.5)+((Таблица18[[#This Row],[3]]-2)*2*$AR$4*1.5)), IF(AND(Таблица18[[#This Row],[р/р]]="3/4",J9>2),((2*1.5*$AR$5)+((Таблица18[[#This Row],[3]]-2)*2*$AR$5)),(Таблица18[[#This Row],[3]]*1.5*$AR$5)))))+ IF(AND(Таблица18[[#This Row],[р/р]]="3/24",K9>2),((2*1.5*$AR$2*Таблица18[[#This Row],[коэф]])+((Таблица18[[#This Row],[4]]-2)*2*$AR$2*Таблица18[[#This Row],[коэф]])), IF(AND(Таблица18[[#This Row],[р/р]]="3/16",K9>2),((2*1.5*$AR$3*Таблица18[[#This Row],[коэф]])+((Таблица18[[#This Row],[4]]-2)*2*$AR$3*Таблица18[[#This Row],[коэф]])), IF(AND(Таблица18[[#This Row],[р/р]]="4/8",K9>2),((2*1.5*$AR$4*1.5)+((Таблица18[[#This Row],[4]]-2)*2*$AR$4*1.5)), IF(AND(Таблица18[[#This Row],[р/р]]="3/4",K9>2),((2*1.5*$AR$5)+((Таблица18[[#This Row],[4]]-2)*2*$AR$5)),(Таблица18[[#This Row],[4]]*1.5*$AR$5)))))+ IF(AND(Таблица18[[#This Row],[р/р]]="3/24",V9>2),((2*1.5*$AR$2*Таблица18[[#This Row],[коэф]])+((Таблица18[[#This Row],[15]]-2)*2*$AR$2*Таблица18[[#This Row],[коэф]])), IF(AND(Таблица18[[#This Row],[р/р]]="3/16",V9>2),((2*1.5*$AR$3*Таблица18[[#This Row],[коэф]])+((Таблица18[[#This Row],[15]]-2)*2*$AR$3*Таблица18[[#This Row],[коэф]])), IF(AND(Таблица18[[#This Row],[р/р]]="4/8",V9>2),((2*1.5*$AR$4*1.5)+((Таблица18[[#This Row],[15]]-2)*2*$AR$4*1.5)), IF(AND(Таблица18[[#This Row],[р/р]]="3/4",V9>2),((2*1.5*$AR$5)+((Таблица18[[#This Row],[15]]-2)*2*$AR$5)),(Таблица18[[#This Row],[15]]*1.5*$AR$5)))))) -> 1354.88
A10: Декабрь | B10: 2021 | C10: 61 | D10: 42-21 | E10: 1 | F10: работник11 | G10: 3/24 | J10: 2 | AM10: =SUM(Таблица18[[#This Row],[1]:[30]]) -> 2 | AN10: =SUM(IF(AND(Таблица18[[#This Row],[р/р]]="3/24",H10>2),((2*1.5*$AR$2*Таблица18[[#This Row],[коэф]])+((Таблица18[[#This Row],[1]]-2)*2*$AR$2*Таблица18[[#This Row],[коэф]])), IF(AND(Таблица18[[#This Row],[р/р]]="3/16",H10>2),((2*1.5*$AR$3*Таблица18[[#This Row],[коэф]])+((Таблица18[[#This Row],[1]]-2)*2*$AR$3*Таблица18[[#This Row],[коэф]])), IF(AND(Таблица18[[#This Row],[р/р]]="4/8",H10>2),((2*1.5*$AR$4*1.5)+((Таблица18[[#This Row],[1]]-2)*2*$AR$4*1.5)), IF(AND(Таблица18[[#This Row],[р/р]]="3/4",H10>2),((2*1.5*$AR$5)+((Таблица18[[#This Row],[1]]-2)*2*$AR$5)),(Таблица18[[#This Row],[1]]*1.5*$AR$5)))))+ IF(AND(Таблица18[[#This Row],[р/р]]="3/24",I10>2),((2*1.5*$AR$2*Таблица18[[#This Row],[коэф]])+((Таблица18[[#This Row],[2]]-2)*2*$AR$2*Таблица18[[#This Row],[коэф]])), IF(AND(Таблица18[[#This Row],[р/р]]="3/16",I10>2),((2*1.5*$AR$3*Таблица18[[#This Row],[коэф]])+((Таблица18[[#This Row],[2]]-2)*2*$AR$3*Таблица18[[#This Row],[коэф]])), IF(AND(Таблица18[[#This Row],[р/р]]="4/8",I10>2),((2*1.5*$AR$4*1.5)+((Таблица18[[#This Row],[2]]-2)*2*$AR$4*1.5)), IF(AND(Таблица18[[#This Row],[р/р]]="3/4",I10>2),((2*1.5*$AR$5)+((Таблица18[[#This Row],[2]]-2)*2*$AR$5)),(Таблица18[[#This Row],[2]]*1.5*$AR$5)))))+ IF(AND(Таблица18[[#This Row],[р/р]]="3/24",J10>2),((2*1.5*$AR$2*Таблица18[[#This Row],[коэф]])+((Таблица18[[#This Row],[3]]-2)*2*$AR$2*Таблица18[[#This Row],[коэф]])), IF(AND(Таблица18[[#This Row],[р/р]]="3/16",J10>2),((2*1.5*$AR$3*Таблица18[[#This Row],[коэф]])+((Таблица18[[#This Row],[3]]-2)*2*$AR$3*Таблица18[[#This Row],[коэф]])), IF(AND(Таблица18[[#This Row],[р/р]]="4/8",J10>2),((2*1.5*$AR$4*1.5)+((Таблица18[[#This Row],[3]]-2)*2*$AR$4*1.5)), IF(AND(Таблица18[[#This Row],[р/р]]="3/4",J10>2),((2*1.5*$AR$5)+((Таблица18[[#This Row],[3]]-2)*2*$AR$5)),(Таблица18[[#This Row],[3]]*1.5*$AR$5)))))+ IF(AND(Таблица18[[#This Row],[р/р]]="3/24",K10>2),((2*1.5*$AR$2*Таблица18[[#This Row],[коэф]])+((Таблица18[[#This Row],[4]]-2)*2*$AR$2*Таблица18[[#This Row],[коэф]])), IF(AND(Таблица18[[#This Row],[р/р]]="3/16",K10>2),((2*1.5*$AR$3*Таблица18[[#This Row],[коэф]])+((Таблица18[[#This Row],[4]]-2)*2*$AR$3*Таблица18[[#This Row],[коэф]])), IF(AND(Таблица18[[#This Row],[р/р]]="4/8",K10>2),((2*1.5*$AR$4*1.5)+((Таблица18[[#This Row],[4]]-2)*2*$AR$4*1.5)), IF(AND(Таблица18[[#This Row],[р/р]]="3/4",K10>2),((2*1.5*$AR$5)+((Таблица18[[#This Row],[4]]-2)*2*$AR$5)),(Таблица18[[#This Row],[4]]*1.5*$AR$5)))))+ IF(AND(Таблица18[[#This Row],[р/р]]="3/24",V10>2),((2*1.5*$AR$2*Таблица18[[#This Row],[коэф]])+((Таблица18[[#This Row],[15]]-2)*2*$AR$2*Таблица18[[#This Row],[коэф]])), IF(AND(Таблица18[[#This Row],[р/р]]="3/16",V10>2),((2*1.5*$AR$3*Таблица18[[#This Row],[коэф]])+((Таблица18[[#This Row],[15]]-2)*2*$AR$3*Таблица18[[#This Row],[коэф]])), IF(AND(Таблица18[[#This Row],[р/р]]="4/8",V10>2),((2*1.5*$AR$4*1.5)+((Таблица18[[#This Row],[15]]-2)*2*$AR$4*1.5)), IF(AND(Таблица18[[#This Row],[р/р]]="3/4",V10>2),((2*1.5*$AR$5)+((Таблица18[[#This Row],[15]]-2)*2*$AR$5)),(Таблица18[[#This Row],[15]]*1.5*$AR$5)))))) -> 455.52
A11: Декабрь | B11: 2021 | C11: 61 | D11: 43-21 | E11: 1 | F11: работник6 | G11: 3/16 | I11: 2.8 | AM11: =SUM(Таблица18[[#This Row],[1]:[30]]) -> 2.8 | AN11: =SUM(IF(AND(Таблица18[[#This Row],[р/р]]="3/24",H11>2),((2*1.5*$AR$2*Таблица18[[#This Row],[коэф]])+((Таблица18[[#This Row],[1]]-2)*2*$AR$2*Таблица18[[#This Row],[коэф]])), IF(AND(Таблица18[[#This Row],[р/р]]="3/16",H11>2),((2*1.5*$AR$3*Таблица18[[#This Row],[коэф]])+((Таблица18[[#This Row],[1]]-2)*2*$AR$3*Таблица18[[#This Row],[коэф]])), IF(AND(Таблица18[[#This Row],[р/р]]="4/8",H11>2),((2*1.5*$AR$4*1.5)+((Таблица18[[#This Row],[1]]-2)*2*$AR$4*1.5)), IF(AND(Таблица18[[#This Row],[р/р]]="3/4",H11>2),((2*1.5*$AR$5)+((Таблица18[[#This Row],[1]]-2)*2*$AR$5)),(Таблица18[[#This Row],[1]]*1.5*$AR$5)))))+ IF(AND(Таблица18[[#This Row],[р/р]]="3/24",I11>2),((2*1.5*$AR$2*Таблица18[[#This Row],[коэф]])+((Таблица18[[#This Row],[2]]-2)*2*$AR$2*Таблица18[[#This Row],[коэф]])), IF(AND(Таблица18[[#This Row],[р/р]]="3/16",I11>2),((2*1.5*$AR$3*Таблица18[[#This Row],[коэф]])+((Таблица18[[#This Row],[2]]-2)*2*$AR$3*Таблица18[[#This Row],[коэф]])), IF(AND(Таблица18[[#This Row],[р/р]]="4/8",I11>2),((2*1.5*$AR$4*1.5)+((Таблица18[[#This Row],[2]]-2)*2*$AR$4*1.5)), IF(AND(Таблица18[[#This Row],[р/р]]="3/4",I11>2),((2*1.5*$AR$5)+((Таблица18[[#This Row],[2]]-2)*2*$AR$5)),(Таблица18[[#This Row],[2]]*1.5*$AR$5)))))+ IF(AND(Таблица18[[#This Row],[р/р]]="3/24",J11>2),((2*1.5*$AR$2*Таблица18[[#This Row],[коэф]])+((Таблица18[[#This Row],[3]]-2)*2*$AR$2*Таблица18[[#This Row],[коэф]])), IF(AND(Таблица18[[#This Row],[р/р]]="3/16",J11>2),((2*1.5*$AR$3*Таблица18[[#This Row],[коэф]])+((Таблица18[[#This Row],[3]]-2)*2*$AR$3*Таблица18[[#This Row],[коэф]])), IF(AND(Таблица18[[#This Row],[р/р]]="4/8",J11>2),((2*1.5*$AR$4*1.5)+((Таблица18[[#This Row],[3]]-2)*2*$AR$4*1.5)), IF(AND(Таблица18[[#This Row],[р/р]]="3/4",J11>2),((2*1.5*$AR$5)+((Таблица18[[#This Row],[3]]-2)*2*$AR$5)),(Таблица18[[#This Row],[3]]*1.5*$AR$5)))))+ IF(AND(Таблица18[[#This Row],[р/р]]="3/24",K11>2),((2*1.5*$AR$2*Таблица18[[#This Row],[коэф]])+((Таблица18[[#This Row],[4]]-2)*2*$AR$2*Таблица18[[#This Row],[коэф]])), IF(AND(Таблица18[[#This Row],[р/р]]="3/16",K11>2),((2*1.5*$AR$3*Таблица18[[#This Row],[коэф]])+((Таблица18[[#This Row],[4]]-2)*2*$AR$3*Таблица18[[#This Row],[коэф]])), IF(AND(Таблица18[[#This Row],[р/р]]="4/8",K11>2),((2*1.5*$AR$4*1.5)+((Таблица18[[#This Row],[4]]-2)*2*$AR$4*1.5)), IF(AND(Таблица18[[#This Row],[р/р]]="3/4",K11>2),((2*1.5*$AR$5)+((Таблица18[[#This Row],[4]]-2)*2*$AR$5)),(Таблица18[[#This Row],[4]]*1.5*$AR$5)))))+ IF(AND(Таблица18[[#This Row],[р/р]]="3/24",V11>2),((2*1.5*$AR$2*Таблица18[[#This Row],[коэф]])+((Таблица18[[#This Row],[15]]-2)*2*$AR$2*Таблица18[[#This Row],[коэф]])), IF(AND(Таблица18[[#This Row],[р/р]]="3/16",V11>2),((2*1.5*$AR$3*Таблица18[[#This Row],[коэф]])+((Таблица18[[#This Row],[15]]-2)*2*$AR$3*Таблица18[[#This Row],[коэф]])), IF(AND(Таблица18[[#This Row],[р/р]]="4/8",V11>2),((2*1.5*$AR$4*1.5)+((Таблица18[[#This Row],[15]]-2)*2*$AR$4*1.5)), IF(AND(Таблица18[[#This Row],[р/р]]="3/4",V11>2),((2*1.5*$AR$5)+((Таблица18[[#This Row],[15]]-2)*2*$AR$5)),(Таблица18[[#This Row],[15]]*1.5*$AR$5)))))) -> 779.056
A12: Декабрь | B12: 2021 | C12: 61 | D12: 43-21 | E12: 1 | F12: работник13 | G12: 3/16 | V12: 2.5 | AM12: =SUM(Таблица18[[#This Row],[1]:[30]]) -> 2.5 | AN12: =SUM(IF(AND(Таблица18[[#This Row],[р/р]]="3/24",H12>2),((2*1.5*$AR$2*Таблица18[[#This Row],[коэф]])+((Таблица18[[#This Row],[1]]-2)*2*$AR$2*Таблица18[[#This Row],[коэф]])), IF(AND(Таблица18[[#This Row],[р/р]]="3/16",H12>2),((2*1.5*$AR$3*Таблица18[[#This Row],[коэф]])+((Таблица18[[#This Row],[1]]-2)*2*$AR$3*Таблица18[[#This Row],[коэф]])), IF(AND(Таблица18[[#This Row],[р/р]]="4/8",H12>2),((2*1.5*$AR$4*1.5)+((Таблица18[[#This Row],[1]]-2)*2*$AR$4*1.5)), IF(AND(Таблица18[[#This Row],[р/р]]="3/4",H12>2),((2*1.5*$AR$5)+((Таблица18[[#This Row],[1]]-2)*2*$AR$5)),(Таблица18[[#This Row],[1]]*1.5*$AR$5)))))+ IF(AND(Таблица18[[#This Row],[р/р]]="3/24",I12>2),((2*1.5*$AR$2*Таблица18[[#This Row],[коэф]])+((Таблица18[[#This Row],[2]]-2)*2*$AR$2*Таблица18[[#This Row],[коэф]])), IF(AND(Таблица18[[#This Row],[р/р]]="3/16",I12>2),((2*1.5*$AR$3*Таблица18[[#This Row],[коэф]])+((Таблица18[[#This Row],[2]]-2)*2*$AR$3*Таблица18[[#This Row],[коэф]])), IF(AND(Таблица18[[#This Row],[р/р]]="4/8",I12>2),((2*1.5*$AR$4*1.5)+((Таблица18[[#This Row],[2]]-2)*2*$AR$4*1.5)), IF(AND(Таблица18[[#This Row],[р/р]]="3/4",I12>2),((2*1.5*$AR$5)+((Таблица18[[#This Row],[2]]-2)*2*$AR$5)),(Таблица18[[#This Row],[2]]*1.5*$AR$5)))))+ IF(AND(Таблица18[[#This Row],[р/р]]="3/24",J12>2),((2*1.5*$AR$2*Таблица18[[#This Row],[коэф]])+((Таблица18[[#This Row],[3]]-2)*2*$AR$2*Таблица18[[#This Row],[коэф]])), IF(AND(Таблица18[[#This Row],[р/р]]="3/16",J12>2),((2*1.5*$AR$3*Таблица18[[#This Row],[коэф]])+((Таблица18[[#This Row],[3]]-2)*2*$AR$3*Таблица18[[#This Row],[коэф]])), IF(AND(Таблица18[[#This Row],[р/р]]="4/8",J12>2),((2*1.5*$AR$4*1.5)+((Таблица18[[#This Row],[3]]-2)*2*$AR$4*1.5)), IF(AND(Таблица18[[#This Row],[р/р]]="3/4",J12>2),((2*1.5*$AR$5)+((Таблица18[[#This Row],[3]]-2)*2*$AR$5)),(Таблица18[[#This Row],[3]]*1.5*$AR$5)))))+ IF(AND(Таблица18[[#This Row],[р/р]]="3/24",K12>2),((2*1.5*$AR$2*Таблица18[[#This Row],[коэф]])+((Таблица18[[#This Row],[4]]-2)*2*$AR$2*Таблица18[[#This Row],[коэф]])), IF(AND(Таблица18[[#This Row],[р/р]]="3/16",K12>2),((2*1.5*$AR$3*Таблица18[[#This Row],[коэф]])+((Таблица18[[#This Row],[4]]-2)*2*$AR$3*Таблица18[[#This Row],[коэф]])), IF(AND(Таблица18[[#This Row],[р/р]]="4/8",K12>2),((2*1.5*$AR$4*1.5)+((Таблица18[[#This Row],[4]]-2)*2*$AR$4*1.5)), IF(AND(Таблица18[[#This Row],[р/р]]="3/4",K12>2),((2*1.5*$AR$5)+((Таблица18[[#This Row],[4]]-2)*2*$AR$5)),(Таблица18[[#This Row],[4]]*1.5*$AR$5)))))+ IF(AND(Таблица18[[#This Row],[р/р]]="3/24",V12>2),((2*1.5*$AR$2*Таблица18[[#This Row],[коэф]])+((Таблица18[[#This Row],[15]]-2)*2*$AR$2*Таблица18[[#This Row],[коэф]])), IF(AND(Таблица18[[#This Row],[р/р]]="3/16",V12>2),((2*1.5*$AR$3*Таблица18[[#This Row],[коэф]])+((Таблица18[[#This Row],[15]]-2)*2*$AR$3*Таблица18[[#This Row],[коэф]])), IF(AND(Таблица18[[#This Row],[р/р]]="4/8",V12>2),((2*1.5*$AR$4*1.5)+((Таблица18[[#This Row],[15]]-2)*2*$AR$4*1.5)), IF(AND(Таблица18[[#This Row],[р/р]]="3/4",V12>2),((2*1.5*$AR$5)+((Таблица18[[#This Row],[15]]-2)*2*$AR$5)),(Таблица18[[#This Row],[15]]*1.5*$AR$5)))))) -> 677.44
A13: Декабрь | B13: 2021 | C13: 61 | D13: 45-21 | E13: 1 | F13: работник14 | G13: 3/4 | K13: 4 | AM13: =SUM(Таблица18[[#This Row],[1]:[30]]) -> 4 | AN13: =SUM(IF(AND(Таблица18[[#This Row],[р/р]]="3/24",H13>2),((2*1.5*$AR$2*Таблица18[[#This Row],[коэф]])+((Таблица18[[#This Row],[1]]-2)*2*$AR$2*Таблица18[[#This Row],[коэф]])), IF(AND(Таблица18[[#This Row],[р/р]]="3/16",H13>2),((2*1.5*$AR$3*Таблица18[[#This Row],[коэф]])+((Таблица18[[#This Row],[1]]-2)*2*$AR$3*Таблица18[[#This Row],[коэф]])), IF(AND(Таблица18[[#This Row],[р/р]]="4/8",H13>2),((2*1.5*$AR$4*1.5)+((Таблица18[[#This Row],[1]]-2)*2*$AR$4*1.5)), IF(AND(Таблица18[[#This Row],[р/р]]="3/4",H13>2),((2*1.5*$AR$5)+((Таблица18[[#This Row],[1]]-2)*2*$AR$5)),(Таблица18[[#This Row],[1]]*1.5*$AR$5)))))+ IF(AND(Таблица18[[#This Row],[р/р]]="3/24",I13>2),((2*1.5*$AR$2*Таблица18[[#This Row],[коэф]])+((Таблица18[[#This Row],[2]]-2)*2*$AR$2*Таблица18[[#This Row],[коэф]])), IF(AND(Таблица18[[#This Row],[р/р]]="3/16",I13>2),((2*1.5*$AR$3*Таблица18[[#This Row],[коэф]])+((Таблица18[[#This Row],[2]]-2)*2*$AR$3*Таблица18[[#This Row],[коэф]])), IF(AND(Таблица18[[#This Row],[р/р]]="4/8",I13>2),((2*1.5*$AR$4*1.5)+((Таблица18[[#This Row],[2]]-2)*2*$AR$4*1.5)), IF(AND(Таблица18[[#This Row],[р/р]]="3/4",I13>2),((2*1.5*$AR$5)+((Таблица18[[#This Row],[2]]-2)*2*$AR$5)),(Таблица18[[#This Row],[2]]*1.5*$AR$5)))))+ IF(AND(Таблица18[[#This Row],[р/р]]="3/24",J13>2),((2*1.5*$AR$2*Таблица18[[#This Row],[коэф]])+((Таблица18[[#This Row],[3]]-2)*2*$AR$2*Таблица18[[#This Row],[коэф]])), IF(AND(Таблица18[[#This Row],[р/р]]="3/16",J13>2),((2*1.5*$AR$3*Таблица18[[#This Row],[коэф]])+((Таблица18[[#This Row],[3]]-2)*2*$AR$3*Таблица18[[#This Row],[коэф]])), IF(AND(Таблица18[[#This Row],[р/р]]="4/8",J13>2),((2*1.5*$AR$4*1.5)+((Таблица18[[#This Row],[3]]-2)*2*$AR$4*1.5)), IF(AND(Таблица18[[#This Row],[р/р]]="3/4",J13>2),((2*1.5*$AR$5)+((Таблица18[[#This Row],[3]]-2)*2*$AR$5)),(Таблица18[[#This Row],[3]]*1.5*$AR$5)))))+ IF(AND(Таблица18[[#This Row],[р/р]]="3/24",K13>2),((2*1.5*$AR$2*Таблица18[[#This Row],[коэф]])+((Таблица18[[#This Row],[4]]-2)*2*$AR$2*Таблица18[[#This Row],[коэф]])), IF(AND(Таблица18[[#This Row],[р/р]]="3/16",K13>2),((2*1.5*$AR$3*Таблица18[[#This Row],[коэф]])+((Таблица18[[#This Row],[4]]-2)*2*$AR$3*Таблица18[[#This Row],[коэф]])), IF(AND(Таблица18[[#This Row],[р/р]]="4/8",K13>2),((2*1.5*$AR$4*1.5)+((Таблица18[[#This Row],[4]]-2)*2*$AR$4*1.5)), IF(AND(Таблица18[[#This Row],[р/р]]="3/4",K13>2),((2*1.5*$AR$5)+((Таблица18[[#This Row],[4]]-2)*2*$AR$5)),(Таблица18[[#This Row],[4]]*1.5*$AR$5)))))+ IF(AND(Таблица18[[#This Row],[р/р]]="3/24",V13>2),((2*1.5*$AR$2*Таблица18[[#This Row],[коэф]])+((Таблица18[[#This Row],[15]]-2)*2*$AR$2*Таблица18[[#This Row],[коэф]])), IF(AND(Таблица18[[#This Row],[р/р]]="3/16",V13>2),((2*1.5*$AR$3*Таблица18[[#This Row],[коэф]])+((Таблица18[[#This Row],[15]]-2)*2*$AR$3*Таблица18[[#This Row],[коэф]])), IF(AND(Таблица18[[#This Row],[р/р]]="4/8",V13>2),((2*1.5*$AR$4*1.5)+((Таблица18[[#This Row],[15]]-2)*2*$AR$4*1.5)), IF(AND(Таблица18[[#This Row],[р/р]]="3/4",V13>2),((2*1.5*$AR$5)+((Таблица18[[#This Row],[15]]-2)*2*$AR$5)),(Таблица18[[#This Row],[15]]*1.5*$AR$5)))))) -> 1062.88
A14: Декабрь | B14: 2021 | C14: 61 | D14: 43-22 | E14: 1 | F14: работник6 | G14: 3/16 | J14: 2 | AM14: =SUM(Таблица18[[#This Row],[1]:[30]]) -> 2 | AN14: =SUM(IF(AND(Таблица18[[#This Row],[р/р]]="3/24",H14>2),((2*1.5*$AR$2*Таблица18[[#This Row],[коэф]])+((Таблица18[[#This Row],[1]]-2)*2*$AR$2*Таблица18[[#This Row],[коэф]])), IF(AND(Таблица18[[#This Row],[р/р]]="3/16",H14>2),((2*1.5*$AR$3*Таблица18[[#This Row],[коэф]])+((Таблица18[[#This Row],[1]]-2)*2*$AR$3*Таблица18[[#This Row],[коэф]])), IF(AND(Таблица18[[#This Row],[р/р]]="4/8",H14>2),((2*1.5*$AR$4*1.5)+((Таблица18[[#This Row],[1]]-2)*2*$AR$4*1.5)), IF(AND(Таблица18[[#This Row],[р/р]]="3/4",H14>2),((2*1.5*$AR$5)+((Таблица18[[#This Row],[1]]-2)*2*$AR$5)),(Таблица18[[#This Row],[1]]*1.5*$AR$5)))))+ IF(AND(Таблица18[[#This Row],[р/р]]="3/24",I14>2),((2*1.5*$AR$2*Таблица18[[#This Row],[коэф]])+((Таблица18[[#This Row],[2]]-2)*2*$AR$2*Таблица18[[#This Row],[коэф]])), IF(AND(Таблица18[[#This Row],[р/р]]="3/16",I14>2),((2*1.5*$AR$3*Таблица18[[#This Row],[коэф]])+((Таблица18[[#This Row],[2]]-2)*2*$AR$3*Таблица18[[#This Row],[коэф]])), IF(AND(Таблица18[[#This Row],[р/р]]="4/8",I14>2),((2*1.5*$AR$4*1.5)+((Таблица18[[#This Row],[2]]-2)*2*$AR$4*1.5)), IF(AND(Таблица18[[#This Row],[р/р]]="3/4",I14>2),((2*1.5*$AR$5)+((Таблица18[[#This Row],[2]]-2)*2*$AR$5)),(Таблица18[[#This Row],[2]]*1.5*$AR$5)))))+ IF(AND(Таблица18[[#This Row],[р/р]]="3/24",J14>2),((2*1.5*$AR$2*Таблица18[[#This Row],[коэф]])+((Таблица18[[#This Row],[3]]-2)*2*$AR$2*Таблица18[[#This Row],[коэф]])), IF(AND(Таблица18[[#This Row],[р/р]]="3/16",J14>2),((2*1.5*$AR$3*Таблица18[[#This Row],[коэф]])+((Таблица18[[#This Row],[3]]-2)*2*$AR$3*Таблица18[[#This Row],[коэф]])), IF(AND(Таблица18[[#This Row],[р/р]]="4/8",J14>2),((2*1.5*$AR$4*1.5)+((Таблица18[[#This Row],[3]]-2)*2*$AR$4*1.5)), IF(AND(Таблица18[[#This Row],[р/р]]="3/4",J14>2),((2*1.5*$AR$5)+((Таблица18[[#This Row],[3]]-2)*2*$AR$5)),(Таблица18[[#This Row],[3]]*1.5*$AR$5)))))+ IF(AND(Таблица18[[#This Row],[р/р]]="3/24",K14>2),((2*1.5*$AR$2*Таблица18[[#This Row],[коэф]])+((Таблица18[[#This Row],[4]]-2)*2*$AR$2*Таблица18[[#This Row],[коэф]])), IF(AND(Таблица18[[#This Row],[р/р]]="3/16",K14>2),((2*1.5*$AR$3*Таблица18[[#This Row],[коэф]])+((Таблица18[[#This Row],[4]]-2)*2*$AR$3*Таблица18[[#This Row],[коэф]])), IF(AND(Таблица18[[#This Row],[р/р]]="4/8",K14>2),((2*1.5*$AR$4*1.5)+((Таблица18[[#This Row],[4]]-2)*2*$AR$4*1.5)), IF(AND(Таблица18[[#This Row],[р/р]]="3/4",K14>2),((2*1.5*$AR$5)+((Таблица18[[#This Row],[4]]-2)*2*$AR$5)),(Таблица18[[#This Row],[4]]*1.5*$AR$5)))))+ IF(AND(Таблица18[[#This Row],[р/р]]="3/24",V14>2),((2*1.5*$AR$2*Таблица18[[#This Row],[коэф]])+((Таблица18[[#This Row],[15]]-2)*2*$AR$2*Таблица18[[#This Row],[коэф]])), IF(AND(Таблица18[[#This Row],[р/р]]="3/16",V14>2),((2*1.5*$AR$3*Таблица18[[#This Row],[коэф]])+((Таблица18[[#This Row],[15]]-2)*2*$AR$3*Таблица18[[#This Row],[коэф]])), IF(AND(Таблица18[[#This Row],[р/р]]="4/8",V14>2),((2*1.5*$AR$4*1.5)+((Таблица18[[#This Row],[15]]-2)*2*$AR$4*1.5)), IF(AND(Таблица18[[#This Row],[р/р]]="3/4",V14>2),((2*1.5*$AR$5)+((Таблица18[[#This Row],[15]]-2)*2*$AR$5)),(Таблица18[[#This Row],[15]]*1.5*$AR$5)))))) -> 455.52
A15: Декабрь | B15: 2021 | C15: 61 | D15: 45-22 | E15: 1 | F15: работник6 | G15: 3/4 | H15: 3 | AM15: =SUM(Таблица18[[#This Row],[1]:[30]]) -> 3 | AN15: =SUM(IF(AND(Таблица18[[#This Row],[р/р]]="3/24",H15>2),((2*1.5*$AR$2*Таблица18[[#This Row],[коэф]])+((Таблица18[[#This Row],[1]]-2)*2*$AR$2*Таблица18[[#This Row],[коэф]])), IF(AND(Таблица18[[#This Row],[р/р]]="3/16",H15>2),((2*1.5*$AR$3*Таблица18[[#This Row],[коэф]])+((Таблица18[[#This Row],[1]]-2)*2*$AR$3*Таблица18[[#This Row],[коэф]])), IF(AND(Таблица18[[#This Row],[р/р]]="4/8",H15>2),((2*1.5*$AR$4*1.5)+((Таблица18[[#This Row],[1]]-2)*2*$AR$4*1.5)), IF(AND(Таблица18[[#This Row],[р/р]]="3/4",H15>2),((2*1.5*$AR$5)+((Таблица18[[#This Row],[1]]-2)*2*$AR$5)),(Таблица18[[#This Row],[1]]*1.5*$AR$5)))))+ IF(AND(Таблица18[[#This Row],[р/р]]="3/24",I15>2),((2*1.5*$AR$2*Таблица18[[#This Row],[коэф]])+((Таблица18[[#This Row],[2]]-2)*2*$AR$2*Таблица18[[#This Row],[коэф]])), IF(AND(Таблица18[[#This Row],[р/р]]="3/16",I15>2),((2*1.5*$AR$3*Таблица18[[#This Row],[коэф]])+((Таблица18[[#This Row],[2]]-2)*2*$AR$3*Таблица18[[#This Row],[коэф]])), IF(AND(Таблица18[[#This Row],[р/р]]="4/8",I15>2),((2*1.5*$AR$4*1.5)+((Таблица18[[#This Row],[2]]-2)*2*$AR$4*1.5)), IF(AND(Таблица18[[#This Row],[р/р]]="3/4",I15>2),((2*1.5*$AR$5)+((Таблица18[[#This Row],[2]]-2)*2*$AR$5)),(Таблица18[[#This Row],[2]]*1.5*$AR$5)))))+ IF(AND(Таблица18[[#This Row],[р/р]]="3/24",J15>2),((2*1.5*$AR$2*Таблица18[[#This Row],[коэф]])+((Таблица18[[#This Row],[3]]-2)*2*$AR$2*Таблица18[[#This Row],[коэф]])), IF(AND(Таблица18[[#This Row],[р/р]]="3/16",J15>2),((2*1.5*$AR$3*Таблица18[[#This Row],[коэф]])+((Таблица18[[#This Row],[3]]-2)*2*$AR$3*Таблица18[[#This Row],[коэф]])), IF(AND(Таблица18[[#This Row],[р/р]]="4/8",J15>2),((2*1.5*$AR$4*1.5)+((Таблица18[[#This Row],[3]]-2)*2*$AR$4*1.5)), IF(AND(Таблица18[[#This Row],[р/р]]="3/4",J15>2),((2*1.5*$AR$5)+((Таблица18[[#This Row],[3]]-2)*2*$AR$5)),(Таблица18[[#This Row],[3]]*1.5*$AR$5)))))+ IF(AND(Таблица18[[#This Row],[р/р]]="3/24",K15>2),((2*1.5*$AR$2*Таблица18[[#This Row],[коэф]])+((Таблица18[[#This Row],[4]]-2)*2*$AR$2*Таблица18[[#This Row],[коэф]])), IF(AND(Таблица18[[#This Row],[р/р]]="3/16",K15>2),((2*1.5*$AR$3*Таблица18[[#This Row],[коэф]])+((Таблица18[[#This Row],[4]]-2)*2*$AR$3*Таблица18[[#This Row],[коэф]])), IF(AND(Таблица18[[#This Row],[р/р]]="4/8",K15>2),((2*1.5*$AR$4*1.5)+((Таблица18[[#This Row],[4]]-2)*2*$AR$4*1.5)), IF(AND(Таблица18[[#This Row],[р/р]]="3/4",K15>2),((2*1.5*$AR$5)+((Таблица18[[#This Row],[4]]-2)*2*$AR$5)),(Таблица18[[#This Row],[4]]*1.5*$AR$5)))))+ IF(AND(Таблица18[[#This Row],[р/р]]="3/24",V15>2),((2*1.5*$AR$2*Таблица18[[#This Row],[коэф]])+((Таблица18[[#This Row],[15]]-2)*2*$AR$2*Таблица18[[#This Row],[коэф]])), IF(AND(Таблица18[[#This Row],[р/р]]="3/16",V15>2),((2*1.5*$AR$3*Таблица18[[#This Row],[коэф]])+((Таблица18[[#This Row],[15]]-2)*2*$AR$3*Таблица18[[#This Row],[коэф]])), IF(AND(Таблица18[[#This Row],[р/р]]="4/8",V15>2),((2*1.5*$AR$4*1.5)+((Таблица18[[#This Row],[15]]-2)*2*$AR$4*1.5)), IF(AND(Таблица18[[#This Row],[р/р]]="3/4",V15>2),((2*1.5*$AR$5)+((Таблица18[[#This Row],[15]]-2)*2*$AR$5)),(Таблица18[[#This Row],[15]]*1.5*$AR$5)))))) -> 759.2
A16: Декабрь | B16: 2021 | C16: 61 | D16: 45-22 | E16: 1 | F16: работник6 | G16: 3/24 | V16: 3 | AM16: =SUM(Таблица18[[#This Row],[1]:[30]]) -> 3 | AN16: =SUM(IF(AND(Таблица18[[#This Row],[р/р]]="3/24",H16>2),((2*1.5*$AR$2*Таблица18[[#This Row],[коэф]])+((Таблица18[[#This Row],[1]]-2)*2*$AR$2*Таблица18[[#This Row],[коэф]])), IF(AND(Таблица18[[#This Row],[р/р]]="3/16",H16>2),((2*1.5*$AR$3*Таблица18[[#This Row],[коэф]])+((Таблица18[[#This Row],[1]]-2)*2*$AR$3*Таблица18[[#This Row],[коэф]])), IF(AND(Таблица18[[#This Row],[р/р]]="4/8",H16>2),((2*1.5*$AR$4*1.5)+((Таблица18[[#This Row],[1]]-2)*2*$AR$4*1.5)), IF(AND(Таблица18[[#This Row],[р/р]]="3/4",H16>2),((2*1.5*$AR$5)+((Таблица18[[#This Row],[1]]-2)*2*$AR$5)),(Таблица18[[#This Row],[1]]*1.5*$AR$5)))))+ IF(AND(Таблица18[[#This Row],[р/р]]="3/24",I16>2),((2*1.5*$AR$2*Таблица18[[#This Row],[коэф]])+((Таблица18[[#This Row],[2]]-2)*2*$AR$2*Таблица18[[#This Row],[коэф]])), IF(AND(Таблица18[[#This Row],[р/р]]="3/16",I16>2),((2*1.5*$AR$3*Таблица18[[#This Row],[коэф]])+((Таблица18[[#This Row],[2]]-2)*2*$AR$3*Таблица18[[#This Row],[коэф]])), IF(AND(Таблица18[[#This Row],[р/р]]="4/8",I16>2),((2*1.5*$AR$4*1.5)+((Таблица18[[#This Row],[2]]-2)*2*$AR$4*1.5)), IF(AND(Таблица18[[#This Row],[р/р]]="3/4",I16>2),((2*1.5*$AR$5)+((Таблица18[[#This Row],[2]]-2)*2*$AR$5)),(Таблица18[[#This Row],[2]]*1.5*$AR$5)))))+ IF(AND(Таблица18[[#This Row],[р/р]]="3/24",J16>2),((2*1.5*$AR$2*Таблица18[[#This Row],[коэф]])+((Таблица18[[#This Row],[3]]-2)*2*$AR$2*Таблица18[[#This Row],[коэф]])), IF(AND(Таблица18[[#This Row],[р/р]]="3/16",J16>2),((2*1.5*$AR$3*Таблица18[[#This Row],[коэф]])+((Таблица18[[#This Row],[3]]-2)*2*$AR$3*Таблица18[[#This Row],[коэф]])), IF(AND(Таблица18[[#This Row],[р/р]]="4/8",J16>2),((2*1.5*$AR$4*1.5)+((Таблица18[[#This Row],[3]]-2)*2*$AR$4*1.5)), IF(AND(Таблица18[[#This Row],[р/р]]="3/4",J16>2),((2*1.5*$AR$5)+((Таблица18[[#This Row],[3]]-2)*2*$AR$5)),(Таблица18[[#This Row],[3]]*1.5*$AR$5)))))+ IF(AND(Таблица18[[#This Row],[р/р]]="3/24",K16>2),((2*1.5*$AR$2*Таблица18[[#This Row],[коэф]])+((Таблица18[[#This Row],[4]]-2)*2*$AR$2*Таблица18[[#This Row],[коэф]])), IF(AND(Таблица18[[#This Row],[р/р]]="3/16",K16>2),((2*1.5*$AR$3*Таблица18[[#This Row],[коэф]])+((Таблица18[[#This Row],[4]]-2)*2*$AR$3*Таблица18[[#This Row],[коэф]])), IF(AND(Таблица18[[#This Row],[р/р]]="4/8",K16>2),((2*1.5*$AR$4*1.5)+((Таблица18[[#This Row],[4]]-2)*2*$AR$4*1.5)), IF(AND(Таблица18[[#This Row],[р/р]]="3/4",K16>2),((2*1.5*$AR$5)+((Таблица18[[#This Row],[4]]-2)*2*$AR$5)),(Таблица18[[#This Row],[4]]*1.5*$AR$5)))))+ IF(AND(Таблица18[[#This Row],[р/р]]="3/24",V16>2),((2*1.5*$AR$2*Таблица18[[#This Row],[коэф]])+((Таблица18[[#This Row],[15]]-2)*2*$AR$2*Таблица18[[#This Row],[коэф]])), IF(AND(Таблица18[[#This Row],[р/р]]="3/16",V16>2),((2*1.5*$AR$3*Таблица18[[#This Row],[коэф]])+((Таблица18[[#This Row],[15]]-2)*2*$AR$3*Таблица18[[#This Row],[коэф]])), IF(AND(Таблица18[[#This Row],[р/р]]="4/8",V16>2),((2*1.5*$AR$4*1.5)+((Таблица18[[#This Row],[15]]-2)*2*$AR$4*1.5)), IF(AND(Таблица18[[#This Row],[р/р]]="3/4",V16>2),((2*1.5*$AR$5)+((Таблица18[[#This Row],[15]]-2)*2*$AR$5)),(Таблица18[[#This Row],[15]]*1.5*$AR$5)))))) -> 905.2

Sheet база
A1: партия | B1: Ф. И. О. | C1: р/р | D1: разряд | E1: Таб № | G1: Разряд работы | H1: Стоимость | I1: 4% | J1: 8% | K1: 12% | L1: 16% | M1: 24%
A2: 41-21 | B2: работник1 | C2: 3/16 | D2: 3 | E2: 15118 | G2: 1 | H2: 5 | I2: 25.49 | J2: 30.31 | K2: 35.14 | L2: 39.97 | M2: 49.62
A3: 42-21 | B3: работник2 | C3: 2/4 | D3: 3 | E3: 15791 | G3: 2 | H3: 10 | I3: 36.78 | J3: 42.04 | K3: 47.3 | L3: 52.56 | M3: 63.08
A4: 43-21 | B4: работник3 | C4: 3/4 | D4: 3 | E4: 15117 | G4: 3 | H4: 20 | I4: 51.84 | J4: 57.68 | K4: 63.52 | L4: 69.36 | M4: 81.04
A5: 44-21 | B5: работник4 | C5: 4/8 | D5: 3 | E5: 15043 | G5: 4 | H5: 30 | I5: 66.9 | J5: 73.32 | K5: 79.74 | L5: 86.16 | M5: 99
A6: 45-21 | B6: работник5 | C6: 3/24 | D6: 3 | E6: 15001 | G6: 5 | H6: 40 | I6: 88.24 | J6: 95.48 | K6: 2.72 | L6: 9.96 | M6: 24.44
A7: 1-22 | B7: работник6 | C7: 4/24 | D7: 3 | E7: 15894 | G7: 6 | H7: 50 | I7: 14.58 | J7: 22.84 | K7: 31.09 | L7: 39.34 | M7: 55.85
A8: 4-21 | B8: работник7 | C8: 4/16 | D8: 3 | E8: 15590
A9: 9-21 | B9: работник8 | D9: 3 | E9: 15340
A10: 10-21 | B10: работник9 | D10: 3 | E10: 15608
A11: п/ф-21 | B11: работник10 | D11: 4 | E11: 13676
B12: работник11 | D12: 3 | E12: 15575
B13: работник12 | D13: 3 | E13: 14883
B14: работник13 | D14: 3 | E14: 15041
B15: работник14 | D15: 3 | E15: 15556
B16: работник15 | D16: 3 | E16: 15589
B17: работник16 | D17: 3 | E17: 15098
B18: работник17 | D18: 3 | E18: 15237
B19: работник18 | D19: 3 | E19: 14693
B20: работник19 | D20: 3 | E20: 14988
B21: работник20 | D21: 4 | E21: 15889
B22: работник21 | D22: 3 | E22: 16889
B23: работник22 | D23: 3 | E23: 13897
B24: Джеймс Бонд | D24: 2 | E24: 007

Sheet Лист1
A1: производств уч. № 1
D2: =MATCH($D$6,база!$G$1:$G$7,0) -> 4 | E2: =MATCH(E4,база!$G$1:$M$1,0) -> 3 | J2: ЗП | L2: декабрь | T2: 2021
K3: СВЕРХУРОЧНАЯ РАБОТА
B4: ФИО | C4: Табельный номер | D4: разряд работника | E4: 4% | I4: 8% | M4: 8% | Q4: 16% | U4: 24% | Y4: итого часы | Z4: итого сумма, руб | AA4: подпись работник
E5: тариф | F5: коэффициент | G5: часы | H5: сумма | I5: тариф | J5: коэффициент | K5: часы | L5: сумма | M5: тариф | N5: коэффициент | O5: часы | P5: сумма | Q5: тариф | R5: коэффициент | S5: часы | T5: сумма | U5: тариф | V5: коэффициент | W5: часы | X5: сумма
A6: 1 | C6: =INDEX(база!$E:$E, MATCH(B7,база!$B:$B,0)) -> 15118 | D6: =INDEX(база!$D:$D, MATCH(B7,база!$B:$B,0)) -> 3 | E6: =INDEX(база!$G$1:$M$7,MATCH($D6,база!$G$1:$G$7,0),MATCH(E$4,база!$G$1:$M$1,0)) -> 51.84 | F6: 1 | G6: =SUMIFS(Таблица18[сумма],Таблица18[коэф],"1",Таблица18[р/р],"2/4",Таблица18[Ф. И. О.],B7) -> 0 | H6: =IF(G6=0,0,SUMIFS(Таблица18[Столбец1],Таблица18[р/р],"2/4",Таблица18[коэф],"1",Таблица18[Ф. И. О.],B7)) -> 0 | I6: =INDEX(база!$G$1:$M$7,MATCH($D6,база!$G$1:$G$7,0),MATCH(I$4,база!$G$1:$M$1,0)) -> 57.68 | J6: 1 | K6: =SUMIFS(Таблица18[сумма],Таблица18[коэф],"1",Таблица18[р/р],"2/8",Таблица18[Ф. И. О.],B7) -> 0 | L6: =IF(K6=0,0,SUMIFS(Таблица18[Столбец1],Таблица18[р/р],"2/8",Таблица18[коэф],"1",Таблица18[Ф. И. О.],B7)) -> 0 | N6: 1 | O6: =SUMIFS(#REF!,#REF!,"1",#REF!,"3/12",#REF!,B7) ->  | P6: =ROUND(M6*N6*O6,2) ->  | Q6: =INDEX(база!$G$1:$M$7,MATCH($D6,база!$G$1:$G$7,0),MATCH(Q$4,база!$G$1:$M$1,0)) -> 69.36 | R6: 1 | S6: =SUMIFS(Таблица18[сумма],Таблица18[коэф],"1",Таблица18[р/р],"3/16",Таблица18[Ф. И. О.],B7) -> 0 | T6: =IF(S6=0,0,SUMIFS(Таблица18[Столбец1],Таблица18[р/р],"3/16",Таблица18[коэф],"1",Таблица18[Ф. И. О.],B7)) -> 0 | U6: =INDEX(база!$G$1:$M$7,MATCH($D6,база!$G$1:$G$7,0),MATCH(U$4,база!$G$1:$M$1,0)) -> 81.04 | V6: 1 | W6: =SUMIFS(Таблица18[сумма],Таблица18[коэф],"1",Таблица18[р/р],"3/24",Таблица18[Ф. И. О.],B7) -> 0 | X6: =IF(W6=0,0,SUMIFS(Таблица18[Столбец1],Таблица18[р/р],"3/24",Таблица18[коэф],"1",Таблица18[Ф. И. О.],Лист1!B7)) -> 0 | Y6: =SUM(W6:W9,S6:S9,K6:K9,G6:G9) -> 10 | Z6: =SUM(H6:H9,L6:L9,T6:T9,X6:X9) -> 4419.66 | AG6: =IFERROR(INDIRECT("AC"&SMALL(IF(AC:AC<>"",ROW(AC:AC),""),ROW(A1))),"") -> 
B7: работник1 | E7: =INDEX(база!$G$1:$M$7,MATCH($D6,база!$G$1:$G$7,0),MATCH(E$4,база!$G$1:$M$1,0)) -> 51.84 | F7: 1 | G7: =SUMIFS(Таблица18[сумма],Таблица18[коэф],"1",Таблица18[р/р],"3/4",Таблица18[Ф. И. О.],B7) -> 0 | H7: =IF(G7=0,0,SUMIFS(Таблица18[Столбец1],Таблица18[р/р],"3/4",Таблица18[коэф],"1",Таблица18[Ф. И. О.],B7)) -> 0 | I7: =INDEX(база!$G$1:$M$7,MATCH($D6,база!$G$1:$G$7,0),MATCH(I$4,база!$G$1:$M$1,0)) -> 57.68 | J7: 1 | K7: =SUMIFS(Таблица18[сумма],Таблица18[коэф],"1",Таблица18[р/р],"3/8",Таблица18[Ф. И. О.],B7) -> 0 | L7: =IF(K7=0,0,SUMIFS(Таблица18[Столбец1],Таблица18[р/р],"3/8",Таблица18[коэф],"1",Таблица18[Ф. И. О.],B7)) -> 0 | N7: 1 | O7: =SUMIFS(#REF!,#REF!,"1",#REF!,"4/12",#REF!,B7) ->  | P7: =ROUND(M7*O7,2) ->  | Q7: =INDEX(база!$G$1:$M$7,MATCH($D6,база!$G$1:$G$7,0),MATCH(Q$4,база!$G$1:$M$1,0)) -> 69.36 | R7: 1 | S7: =SUMIFS(Таблица18[сумма],Таблица18[р/р],"4/16",Таблица18[коэф],"1",Таблица18[Ф. И. О.],B7) -> 0 | T7: =IF(S7=0,0,SUMIFS(Таблица18[Столбец1],Таблица18[р/р],"4/16",Таблица18[коэф],"1",Таблица18[Ф. И. О.],B7)) -> 0 | U7: =INDEX(база!$G$1:$M$7,MATCH($D6,база!$G$1:$G$7,0),MATCH(U$4,база!$G$1:$M$1,0)) -> 81.04 | V7: 1 | W7: =SUMIFS(Таблица18[сумма],Таблица18[коэф],"1",Таблица18[р/р],"4/24",Таблица18[Ф. И. О.],B7) -> 0 | X7: =IF(W7=0,0,SUMIFS(Таблица18[Столбец1],Таблица18[р/р],"4/24",Таблица18[коэф],"1",Таблица18[Ф. И. О.],Лист1!B7)) -> 0 | AC7: =IF(SUMIFS(Таблица18[Столбец1],Таблица18[Ф. И. О.],B7)=Z6,"",B7&" СУММА не верна") ->  | AG7: =IFERROR(INDIRECT("AC"&SMALL(IF(AC:AC<>"",ROW(AC:AC),""),ROW(A2))),"") -> 
E8: =INDEX(база!$G$1:$M$7,MATCH($D6,база!$G$1:$G$7,0),MATCH(E$4,база!$G$1:$M$1,0)) -> 51.84 | H8: =IF(G8=0,0,SUMIFS(Таблица18[Столбец1],Таблица18[р/р],"3/4",Таблица18[коэф],"1.1",Таблица18[Ф. И. О.],B7)) -> 0 | I8: =INDEX(база!$G$1:$M$7,MATCH($D6,база!$G$1:$G$7,0),MATCH(I$4,база!$G$1:$M$1,0)) -> 57.68 | J8: 1.1 | K8: =SUMIFS(Таблица18[сумма],Таблица18[коэф],"1",Таблица18[р/р],"3/8",Таблица18[Ф. И. О.],B8) -> 0 | L8: =IF(K8=0,0,SUMIFS(Таблица18[Столбец1],Таблица18[р/р],"3/8",Таблица18[коэф],"1.1",Таблица18[Ф. И. О.],B7)) -> 0 | N8: 1.1 | O8: =SUMIFS(#REF!,#REF!,"1.1",#REF!,"3/12",#REF!,B7) ->  | P8: =ROUND(M8*N8*O8,2) ->  | Q8: =INDEX(база!$G$1:$M$7,MATCH($D6,база!$G$1:$G$7,0),MATCH(Q$4,база!$G$1:$M$1,0)) -> 69.36 | R8: 1.1 | S8: =SUMIFS(Таблица18[сумма],Таблица18[р/р],"3/16",Таблица18[коэф],"1.1",Таблица18[Ф. И. О.],B7) -> 0 | T8: =IF(S8=0,0,SUMIFS(Таблица18[Столбец1],Таблица18[р/р],"3/16",Таблица18[коэф],"1.1",Таблица18[Ф. И. О.],B7)) -> 0 | U8: =INDEX(база!$G$1:$M$7,MATCH($D6,база!$G$1:$G$7,0),MATCH(U$4,база!$G$1:$M$1,0)) -> 81.04 | V8: 1.1 | W8: =SUMIFS(Таблица18[сумма],Таблица18[коэф],"1.1",Таблица18[р/р],"3/24",Таблица18[Ф. И. О.],B7) -> 0 | X8: =IF(W8=0,0,SUMIFS(Таблица18[Столбец1],Таблица18[р/р],"3/24",Таблица18[коэф],"1.1",Таблица18[Ф. И. О.],Лист1!B7)) -> 0 | AC8: =IF(SUMIFS(Таблица18[сумма],Таблица18[Ф. И. О.],B7)=Y6,"",B7&" часы не верны") ->  | AG8: =IFERROR(INDIRECT("AC"&SMALL(IF(AC:AC<>"",ROW(AC:AC),""),ROW(A3))),"") -> 
E9: =INDEX(база!$G$1:$M$7,MATCH($D6,база!$G$1:$G$7,0),MATCH(E$4,база!$G$1:$M$1,0)) -> 51.84 | F9: 1.5 | G9: =SUMIFS(Таблица18[сумма],Таблица18[коэф],"1.5",Таблица18[р/р],"2/4",Таблица18[Ф. И. О.],B7) -> 0 | H9: =IF(G9=0,0,SUMIFS(Таблица18[Столбец1],Таблица18[р/р],"2/4",Таблица18[коэф],"1.5",Таблица18[Ф. И. О.],B7)) -> 0 | I9: =INDEX(база!$G$1:$M$7,MATCH($D6,база!$G$1:$G$7,0),MATCH(I$4,база!$G$1:$M$1,0)) -> 57.68 | J9: 1.5 | K9: =SUMIFS(Таблица18[сумма],Таблица18[коэф],"1.5",Таблица18[р/р],"4/8",Таблица18[Ф. И. О.],B7) -> 10 | L9: =IF(K9=0,0,SUMIFS(Таблица18[Столбец1],Таблица18[р/р],"4/8",Таблица18[коэф],"1.5",Таблица18[Ф. И. О.],B7)) -> 4419.66 | N9: 1.5 | O9: =SUMIFS(#REF!,#REF!,"1.5",#REF!,"3/12",#REF!,B7) ->  | Q9: =INDEX(база!$G$1:$M$7,MATCH($D6,база!$G$1:$G$7,0),MATCH(Q$4,база!$G$1:$M$1,0)) -> 69.36 | R9: 1.5 | S9: =SUMIFS(Таблица18[сумма],Таблица18[р/р],"3/16",Таблица18[коэф],"1.5",Таблица18[Ф. И. О.],B7) -> 0 | T9: =IF(S9=0,0,SUMIFS(Таблица18[Столбец1],Таблица18[р/р],"3/16",Таблица18[коэф],"1.5",Таблица18[Ф. И. О.],B7)) -> 0 | U9: =INDEX(база!$G$1:$M$7,MATCH($D6,база!$G$1:$G$7,0),MATCH(U$4,база!$G$1:$M$1,0)) -> 81.04 | V9: 1.5 | W9: =SUMIFS(Таблица18[сумма],Таблица18[коэф],"1.5",Таблица18[р/р],"3/24",Таблица18[Ф. И. О.],B7) -> 0 | X9: =IF(W9=0,0,SUMIFS(Таблица18[Столбец1],Таблица18[р/р],"3/24",Таблица18[коэф],"1.5",Таблица18[Ф. И. О.],Лист1!B7)) -> 0 | AG9: =IFERROR(INDIRECT("AC"&SMALL(IF(AC:AC<>"",ROW(AC:AC),""),ROW(A4))),"") -> 
A10: 2 | C10: =INDEX(база!$E:$E, MATCH(B11,база!$B:$B,0)) -> 15117 | D10: =INDEX(база!$D:$D, MATCH(B11,база!$B:$B,0)) -> 3 | E10: =INDEX(база!$G$1:$M$7,MATCH($D10,база!$G$1:$G$7,0),MATCH(E$4,база!$G$1:$M$1,0)) -> 51.84 | F10: 1 | G10: =SUMIFS(Таблица18[сумма],Таблица18[коэф],"1",Таблица18[р/р],"2/4",Таблица18[Ф. И. О.],B11) -> 0 | H10: =IF(G10=0,0,SUMIFS(Таблица18[Столбец1],Таблица18[р/р],"2/4",Таблица18[коэф],"1",Таблица18[Ф. И. О.],B11)) -> 0 | I10: =INDEX(база!$G$1:$M$7,MATCH($D10,база!$G$1:$G$7,0),MATCH(I$4,база!$G$1:$M$1,0)) -> 57.68 | J10: 1 | K10: =SUMIFS(Таблица18[сумма],Таблица18[коэф],"1",Таблица18[р/р],"2/8",Таблица18[Ф. И. О.],B11) -> 0 | L10: =IF(K10=0,0,SUMIFS(Таблица18[Столбец1],Таблица18[р/р],"2/8",Таблица18[коэф],"1",Таблица18[Ф. И. О.],B11)) -> 0 | N10: 1 | O10: =SUMIFS(#REF!,#REF!,"1",#REF!,"3/12",#REF!,B11) ->  | Q10: =INDEX(база!$G$1:$M$7,MATCH($D10,база!$G$1:$G$7,0),MATCH(Q$4,база!$G$1:$M$1,0)) -> 69.36 | R10: 1 | S10: =SUMIFS(Таблица18[сумма],Таблица18[коэф],"1",Таблица18[р/р],"3/16",Таблица18[Ф. И. О.],B11) -> 0 | T10: =IF(S10=0,0,SUMIFS(Таблица18[Столбец1],Таблица18[р/р],"3/16",Таблица18[коэф],"1",Таблица18[Ф. И. О.],B11)) -> 0 | U10: =INDEX(база!$G$1:$M$7,MATCH($D10,база!$G$1:$G$7,0),MATCH(U$4,база!$G$1:$M$1,0)) -> 81.04 | V10: 1 | W10: =SUMIFS(Таблица18[сумма],Таблица18[коэф],"1",Таблица18[р/р],"3/24",Таблица18[Ф. И. О.],B11) -> 1 | X10: =IF(W10=0,0,SUMIFS(Таблица18[Столбец1],Таблица18[р/р],"3/24",Таблица18[коэф],"1",Таблица18[Ф. И. О.],Лист1!B11)) -> 227.76 | Y10: =SUM(W10:W13,S10:S13,K10:K13,G10:G13) -> 1 | Z10: =SUM(H10:H13,L10:L13,T10:T13,X10:X13) -> 227.76 | AG10: =IFERROR(INDIRECT("AC"&SMALL(IF(AC:AC<>"",ROW(AC:AC),""),ROW(A5))),"") -> 
B11: работник3 | E11: =INDEX(база!$G$1:$M$7,MATCH($D10,база!$G$1:$G$7,0),MATCH(E$4,база!$G$1:$M$1,0)) -> 51.84 | F11: 1 | G11: =SUMIFS(Таблица18[сумма],Таблица18[коэф],"1",Таблица18[р/р],"3/4",Таблица18[Ф. И. О.],B11) -> 0 | H11: =IF(G11=0,0,SUMIFS(Таблица18[Столбец1],Таблица18[р/р],"3/4",Таблица18[коэф],"1",Таблица18[Ф. И. О.],B11)) -> 0 | I11: =INDEX(база!$G$1:$M$7,MATCH($D10,база!$G$1:$G$7,0),MATCH(I$4,база!$G$1:$M$1,0)) -> 57.68 | J11: 1 | K11: =SUMIFS(Таблица18[сумма],Таблица18[коэф],"1",Таблица18[р/р],"3/8",Таблица18[Ф. И. О.],B11) -> 0 | L11: =IF(K11=0,0,SUMIFS(Таблица18[Столбец1],Таблица18[р/р],"3/8",Таблица18[коэф],"1",Таблица18[Ф. И. О.],B11)) -> 0 | N11: 1 | O11: =SUMIFS(#REF!,#REF!,"1",#REF!,"4/12",#REF!,B11) ->  | P11: =ROUND(M11*O11,2) ->  | Q11: =INDEX(база!$G$1:$M$7,MATCH($D10,база!$G$1:$G$7,0),MATCH(Q$4,база!$G$1:$M$1,0)) -> 69.36 | R11: 1 | S11: =SUMIFS(Таблица18[сумма],Таблица18[р/р],"4/16",Таблица18[коэф],"1",Таблица18[Ф. И. О.],B11) -> 0 | T11: =IF(S11=0,0,SUMIFS(Таблица18[Столбец1],Таблица18[р/р],"4/16",Таблица18[коэф],"1",Таблица18[Ф. И. О.],B11)) -> 0 | U11: =INDEX(база!$G$1:$M$7,MATCH($D10,база!$G$1:$G$7,0),MATCH(U$4,база!$G$1:$M$1,0)) -> 81.04 | V11: 1 | W11: =SUMIFS(Таблица18[сумма],Таблица18[коэф],"1",Таблица18[р/р],"4/24",Таблица18[Ф. И. О.],B11) -> 0 | X11: =IF(W11=0,0,SUMIFS(Таблица18[Столбец1],Таблица18[р/р],"4/24",Таблица18[коэф],"1",Таблица18[Ф. И. О.],Лист1!B11)) -> 0 | AC11: =IF(SUMIFS(Таблица18[Столбец1],Таблица18[Ф. И. О.],B11)=Z10,"",B11&" СУММА не верна") ->  | AG11: =IFERROR(INDIRECT("AC"&SMALL(IF(AC:AC<>"",ROW(AC:AC),""),ROW(A6))),"") -> 
E12: =INDEX(база!$G$1:$M$7,MATCH($D10,база!$G$1:$G$7,0),MATCH(E$4,база!$G$1:$M$1,0)) -> 51.84 | H12: =IF(G12=0,0,SUMIFS(Таблица18[Столбец1],Таблица18[р/р],"3/4",Таблица18[коэф],"1.1",Таблица18[Ф. И. О.],B11)) -> 0 | I12: =INDEX(база!$G$1:$M$7,MATCH($D10,база!$G$1:$G$7,0),MATCH(I$4,база!$G$1:$M$1,0)) -> 57.68 | J12: 1.1 | K12: =SUMIFS(Таблица18[сумма],Таблица18[коэф],"1",Таблица18[р/р],"3/8",Таблица18[Ф. И. О.],B12) -> 0 | L12: =IF(K12=0,0,SUMIFS(Таблица18[Столбец1],Таблица18[р/р],"3/8",Таблица18[коэф],"1.1",Таблица18[Ф. И. О.],B11)) -> 0 | N12: 1.1 | O12: =SUMIFS(#REF!,#REF!,"1.1",#REF!,"3/12",#REF!,B11) ->  | P12: =ROUND(M12*N12*O12,2) ->  | Q12: =INDEX(база!$G$1:$M$7,MATCH($D10,база!$G$1:$G$7,0),MATCH(Q$4,база!$G$1:$M$1,0)) -> 69.36 | R12: 1.1 | S12: =SUMIFS(Таблица18[сумма],Таблица18[р/р],"3/16",Таблица18[коэф],"1.1",Таблица18[Ф. И. О.],B11) -> 0 | T12: =IF(S12=0,0,SUMIFS(Таблица18[Столбец1],Таблица18[р/р],"3/16",Таблица18[коэф],"1.1",Таблица18[Ф. И. О.],B11)) -> 0 | U12: =INDEX(база!$G$1:$M$7,MATCH($D10,база!$G$1:$G$7,0),MATCH(U$4,база!$G$1:$M$1,0)) -> 81.04 | V12: 1.1 | W12: =SUMIFS(Таблица18[сумма],Таблица18[коэф],"1.1",Таблица18[р/р],"3/24",Таблица18[Ф. И. О.],B11) -> 0 | X12: =IF(W12=0,0,SUMIFS(Таблица18[Столбец1],Таблица18[р/р],"3/24",Таблица18[коэф],"1.1",Таблица18[Ф. И. О.],Лист1!B11)) -> 0 | AC12: =IF(SUMIFS(Таблица18[сумма],Таблица18[Ф. И. О.],B11)=Y10,"",B11&" часы не верны") ->  | AG12: =IFERROR(INDIRECT("AC"&SMALL(IF(AC:AC<>"",ROW(AC:AC),""),ROW(A7))),"") -> 
E13: =INDEX(база!$G$1:$M$7,MATCH($D10,база!$G$1:$G$7,0),MATCH(E$4,база!$G$1:$M$1,0)) -> 51.84 | F13: 1.5 | G13: =SUMIFS(Таблица18[сумма],Таблица18[коэф],"1.5",Таблица18[р/р],"2/4",Таблица18[Ф. И. О.],B11) -> 0 | H13: =IF(G13=0,0,SUMIFS(Таблица18[Столбец1],Таблица18[р/р],"2/4",Таблица18[коэф],"1.5",Таблица18[Ф. И. О.],B11)) -> 0 | I13: =INDEX(база!$G$1:$M$7,MATCH($D10,база!$G$1:$G$7,0),MATCH(I$4,база!$G$1:$M$1,0)) -> 57.68 | J13: 1.5 | K13: =SUMIFS(Таблица18[сумма],Таблица18[коэф],"1.5",Таблица18[р/р],"4/8",Таблица18[Ф. И. О.],B11) -> 0 | L13: =IF(K13=0,0,SUMIFS(Таблица18[Столбец1],Таблица18[р/р],"4/8",Таблица18[коэф],"1.5",Таблица18[Ф. И. О.],B11)) -> 0 | N13: 1.5 | O13: =SUMIFS(#REF!,#REF!,"1.5",#REF!,"3/12",#REF!,B11) ->  | Q13: =INDEX(база!$G$1:$M$7,MATCH($D10,база!$G$1:$G$7,0),MATCH(Q$4,база!$G$1:$M$1,0)) -> 69.36 | R13: 1.5 | S13: =SUMIFS(Таблица18[сумма],Таблица18[р/р],"3/16",Таблица18[коэф],"1.5",Таблица18[Ф. И. О.],B11) -> 0 | T13: =IF(S13=0,0,SUMIFS(Таблица18[Столбец1],Таблица18[р/р],"3/16",Таблица18[коэф],"1.5",Таблица18[Ф. И. О.],B11)) -> 0 | U13: =INDEX(база!$G$1:$M$7,MATCH($D10,база!$G$1:$G$7,0),MATCH(U$4,база!$G$1:$M$1,0)) -> 81.04 | V13: 1.5 | W13: =SUMIFS(Таблица18[сумма],Таблица18[коэф],"1.5",Таблица18[р/р],"3/24",Таблица18[Ф. И. О.],B11) -> 0 | X13: =IF(W13=0,0,SUMIFS(Таблица18[Столбец1],Таблица18[р/р],"3/24",Таблица18[коэф],"1.5",Таблица18[Ф. И. О.],Лист1!B11)) -> 0 | AG13: =IFERROR(INDIRECT("AC"&SMALL(IF(AC:AC<>"",ROW(AC:AC),""),ROW(A8))),"") -> 
A14: 3 | C14: =INDEX(база!$E:$E, MATCH(B15,база!$B:$B,0)) -> 15043 | D14: =INDEX(база!$D:$D, MATCH(B15,база!$B:$B,0)) -> 3 | E14: =INDEX(база!$G$1:$M$7,MATCH($D14,база!$G$1:$G$7,0),MATCH(E$4,база!$G$1:$M$1,0)) -> 51.84 | F14: 1 | G14: =SUMIFS(Таблица18[сумма],Таблица18[коэф],"1",Таблица18[р/р],"2/4",Таблица18[Ф. И. О.],B15) -> 0 | H14: =IF(G14=0,0,SUMIFS(Таблица18[Столбец1],Таблица18[р/р],"2/4",Таблица18[коэф],"1",Таблица18[Ф. И. О.],B15)) -> 0 | I14: =INDEX(база!$G$1:$M$7,MATCH($D14,база!$G$1:$G$7,0),MATCH(I$4,база!$G$1:$M$1,0)) -> 57.68 | J14: 1 | K14: =SUMIFS(Таблица18[сумма],Таблица18[коэф],"1",Таблица18[р/р],"2/8",Таблица18[Ф. И. О.],B15) -> 0 | L14: =IF(K14=0,0,SUMIFS(Таблица18[Столбец1],Таблица18[р/р],"2/8",Таблица18[коэф],"1",Таблица18[Ф. И. О.],B15)) -> 0 | N14: 1 | O14: =SUMIFS(#REF!,#REF!,"1",#REF!,"3/12",#REF!,B15) ->  | Q14: =INDEX(база!$G$1:$M$7,MATCH($D14,база!$G$1:$G$7,0),MATCH(Q$4,база!$G$1:$M$1,0)) -> 69.36 | R14: 1 | S14: =SUMIFS(Таблица18[сумма],Таблица18[коэф],"1",Таблица18[р/р],"3/16",Таблица18[Ф. И. О.],B15) -> 4.2 | T14: =IF(S14=0,0,SUMIFS(Таблица18[Столбец1],Таблица18[р/р],"3/16",Таблица18[коэф],"1",Таблица18[Ф. И. О.],B15)) -> 1253.264 | U14: =INDEX(база!$G$1:$M$7,MATCH($D14,база!$G$1:$G$7,0),MATCH(U$4,база!$G$1:$M$1,0)) -> 81.04 | V14: 1 | W14: =SUMIFS(Таблица18[сумма],Таблица18[коэф],"1",Таблица18[р/р],"3/24",Таблица18[Ф. И. О.],B15) -> 0 | X14: =IF(W14=0,0,SUMIFS(Таблица18[Столбец1],Таблица18[р/р],"3/24",Таблица18[коэф],"1",Таблица18[Ф. И. О.],Лист1!B15)) -> 0 | Y14: =SUM(W14:W17,S14:S17,K14:K17,G14:G17) -> 4.2 | Z14: =SUM(H14:H17,L14:L17,T14:T17,X14:X17) -> 1253.264 | AG14: =IFERROR(INDIRECT("AC"&SMALL(IF(AC:AC<>"",ROW(AC:AC),""),ROW(A9))),"") -> 
B15: работник4 | E15: =INDEX(база!$G$1:$M$7,MATCH($D14,база!$G$1:$G$7,0),MATCH(E$4,база!$G$1:$M$1,0)) -> 51.84 | F15: 1 | G15: =SUMIFS(Таблица18[сумма],Таблица18[коэф],"1",Таблица18[р/р],"3/4",Таблица18[Ф. И. О.],B15) -> 0 | H15: =IF(G15=0,0,SUMIFS(Таблица18[Столбец1],Таблица18[р/р],"3/4",Таблица18[коэф],"1",Таблица18[Ф. И. О.],B15)) -> 0 | I15: =INDEX(база!$G$1:$M$7,MATCH($D14,база!$G$1:$G$7,0),MATCH(I$4,база!$G$1:$M$1,0)) -> 57.68 | J15: 1 | K15: =SUMIFS(Таблица18[сумма],Таблица18[коэф],"1",Таблица18[р/р],"3/8",Таблица18[Ф. И. О.],B15) -> 0 | L15: =IF(K15=0,0,SUMIFS(Таблица18[Столбец1],Таблица18[р/р],"3/8",Таблица18[коэф],"1",Таблица18[Ф. И. О.],B15)) -> 0 | N15: 1 | O15: =SUMIFS(#REF!,#REF!,"1",#REF!,"4/12",#REF!,B15) ->  | P15: =ROUND(M15*O15,2) ->  | Q15: =INDEX(база!$G$1:$M$7,MATCH($D14,база!$G$1:$G$7,0),MATCH(Q$4,база!$G$1:$M$1,0)) -> 69.36 | R15: 1 | S15: =SUMIFS(Таблица18[сумма],Таблица18[р/р],"4/16",Таблица18[коэф],"1",Таблица18[Ф. И. О.],B15) -> 0 | T15: =IF(S15=0,0,SUMIFS(Таблица18[Столбец1],Таблица18[р/р],"4/16",Таблица18[коэф],"1",Таблица18[Ф. И. О.],B15)) -> 0 | U15: =INDEX(база!$G$1:$M$7,MATCH($D14,база!$G$1:$G$7,0),MATCH(U$4,база!$G$1:$M$1,0)) -> 81.04 | V15: 1 | W15: =SUMIFS(Таблица18[сумма],Таблица18[коэф],"1",Таблица18[р/р],"4/24",Таблица18[Ф. И. О.],B15) -> 0 | X15: =IF(W15=0,0,SUMIFS(Таблица18[Столбец1],Таблица18[р/р],"4/24",Таблица18[коэф],"1",Таблица18[Ф. И. О.],Лист1!B15)) -> 0 | AC15: =IF(SUMIFS(Таблица18[Столбец1],Таблица18[Ф. И. О.],B15)=Z14,"",B15&" СУММА не верна") ->  | AG15: =IFERROR(INDIRECT("AC"&SMALL(IF(AC:AC<>"",ROW(AC:AC),""),ROW(A10))),"") -> 
E16: =INDEX(база!$G$1:$M$7,MATCH($D14,база!$G$1:$G$7,0),MATCH(E$4,база!$G$1:$M$1,0)) -> 51.84 | H16: =IF(G16=0,0,SUMIFS(Таблица18[Столбец1],Таблица18[р/р],"3/4",Таблица18[коэф],"1.1",Таблица18[Ф. И. О.],B15)) -> 0 | I16: =INDEX(база!$G$1:$M$7,MATCH($D14,база!$G$1:$G$7,0),MATCH(I$4,база!$G$1:$M$1,0)) -> 57.68 | J16: 1.1 | K16: =SUMIFS(Таблица18[сумма],Таблица18[коэф],"1",Таблица18[р/р],"3/8",Таблица18[Ф. И. О.],B16) -> 0 | L16: =IF(K16=0,0,SUMIFS(Таблица18[Столбец1],Таблица18[р/р],"3/8",Таблица18[коэф],"1.1",Таблица18[Ф. И. О.],B15)) -> 0 | N16: 1.1 | O16: =SUMIFS(#REF!,#REF!,"1.1",#REF!,"3/12",#REF!,B15) ->  | P16: =ROUND(M16*N16*O16,2) ->  | Q16: =INDEX(база!$G$1:$M$7,MATCH($D14,база!$G$1:$G$7,0),MATCH(Q$4,база!$G$1:$M$1,0)) -> 69.36 | R16: 1.1 | S16: =SUMIFS(Таблица18[сумма],Таблица18[р/р],"3/16",Таблица18[коэф],"1.1",Таблица18[Ф. И. О.],B15) -> 0 | T16: =IF(S16=0,0,SUMIFS(Таблица18[Столбец1],Таблица18[р/р],"3/16",Таблица18[коэф],"1.1",Таблица18[Ф. И. О.],B15)) -> 0 | U16: =INDEX(база!$G$1:$M$7,MATCH($D14,база!$G$1:$G$7,0),MATCH(U$4,база!$G$1:$M$1,0)) -> 81.04 | V16: 1.1 | W16: =SUMIFS(Таблица18[сумма],Таблица18[коэф],"1.1",Таблица18[р/р],"3/24",Таблица18[Ф. И. О.],B15) -> 0 | X16: =IF(W16=0,0,SUMIFS(Таблица18[Столбец1],Таблица18[р/р],"3/24",Таблица18[коэф],"1.1",Таблица18[Ф. И. О.],Лист1!B15)) -> 0 | AC16: =IF(SUMIFS(Таблица18[сумма],Таблица18[Ф. И. О.],B15)=Y14,"",B15&" часы не верны") ->  | AG16: =IFERROR(INDIRECT("AC"&SMALL(IF(AC:AC<>"",ROW(AC:AC),""),ROW(A11))),"") -> 
E17: =INDEX(база!$G$1:$M$7,MATCH($D14,база!$G$1:$G$7,0),MATCH(E$4,база!$G$1:$M$1,0)) -> 51.84 | F17: 1.5 | G17: =SUMIFS(Таблица18[сумма],Таблица18[коэф],"1.5",Таблица18[р/р],"2/4",Таблица18[Ф. И. О.],B15) -> 0 | H17: =IF(G17=0,0,SUMIFS(Таблица18[Столбец1],Таблица18[р/р],"2/4",Таблица18[коэф],"1.5",Таблица18[Ф. И. О.],B15)) -> 0 | I17: =INDEX(база!$G$1:$M$7,MATCH($D14,база!$G$1:$G$7,0),MATCH(I$4,база!$G$1:$M$1,0)) -> 57.68 | J17: 1.5 | K17: =SUMIFS(Таблица18[сумма],Таблица18[коэф],"1.5",Таблица18[р/р],"4/8",Таблица18[Ф. И. О.],B15) -> 0 | L17: =IF(K17=0,0,SUMIFS(Таблица18[Столбец1],Таблица18[р/р],"4/8",Таблица18[коэф],"1.5",Таблица18[Ф. И. О.],B15)) -> 0 | N17: 1.5 | O17: =SUMIFS(#REF!,#REF!,"1.5",#REF!,"3/12",#REF!,B15) ->  | Q17: =INDEX(база!$G$1:$M$7,MATCH($D14,база!$G$1:$G$7,0),MATCH(Q$4,база!$G$1:$M$1,0)) -> 69.36 | R17: 1.5 | S17: =SUMIFS(Таблица18[сумма],Таблица18[р/р],"3/16",Таблица18[коэф],"1.5",Таблица18[Ф. И. О.],B15) -> 0 | T17: =IF(S17=0,0,SUMIFS(Таблица18[Столбец1],Таблица18[р/р],"3/16",Таблица18[коэф],"1.5",Таблица18[Ф. И. О.],B15)) -> 0 | U17: =INDEX(база!$G$1:$M$7,MATCH($D14,база!$G$1:$G$7,0),MATCH(U$4,база!$G$1:$M$1,0)) -> 81.04 | V17: 1.5 | W17: =SUMIFS(Таблица18[сумма],Таблица18[коэф],"1.5",Таблица18[р/р],"3/24",Таблица18[Ф. И. О.],B15) -> 0 | X17: =IF(W17=0,0,SUMIFS(Таблица18[Столбец1],Таблица18[р/р],"3/24",Таблица18[коэф],"1.5",Таблица18[Ф. И. О.],Лист1!B15)) -> 0 | AG17: =IFERROR(INDIRECT("AC"&SMALL(IF(AC:AC<>"",ROW(AC:AC),""),ROW(A12))),"") -> 
A18: 4 | C18: =INDEX(база!$E:$E, MATCH(B19,база!$B:$B,0)) -> 15894 | D18: =INDEX(база!$D:$D, MATCH(B19,база!$B:$B,0)) -> 3 | E18: =INDEX(база!$G$1:$M$7,MATCH($D18,база!$G$1:$G$7,0),MATCH(E$4,база!$G$1:$M$1,0)) -> 51.84 | F18: 1 | G18: =SUMIFS(Таблица18[сумма],Таблица18[коэф],"1",Таблица18[р/р],"2/4",Таблица18[Ф. И. О.],B19) -> 0 | H18: =IF(G18=0,0,SUMIFS(Таблица18[Столбец1],Таблица18[р/р],"2/4",Таблица18[коэф],"1",Таблица18[Ф. И. О.],B19)) -> 0 | I18: =INDEX(база!$G$1:$M$7,MATCH($D18,база!$G$1:$G$7,0),MATCH(I$4,база!$G$1:$M$1,0)) -> 57.68 | J18: 1 | K18: =SUMIFS(Таблица18[сумма],Таблица18[коэф],"1",Таблица18[р/р],"2/8",Таблица18[Ф. И. О.],B19) -> 0 | L18: =IF(K18=0,0,SUMIFS(Таблица18[Столбец1],Таблица18[р/р],"2/8",Таблица18[коэф],"1",Таблица18[Ф. И. О.],B19)) -> 0 | N18: 1 | O18: =SUMIFS(#REF!,#REF!,"1",#REF!,"3/12",#REF!,B19) ->  | Q18: =INDEX(база!$G$1:$M$7,MATCH($D18,база!$G$1:$G$7,0),MATCH(Q$4,база!$G$1:$M$1,0)) -> 69.36 | R18: 1 | S18: =SUMIFS(Таблица18[сумма],Таблица18[коэф],"1",Таблица18[р/р],"3/16",Таблица18[Ф. И. О.],B19) -> 4.8 | T18: =IF(S18=0,0,SUMIFS(Таблица18[Столбец1],Таблица18[р/р],"3/16",Таблица18[коэф],"1",Таблица18[Ф. И. О.],B19)) -> 1234.576 | U18: =INDEX(база!$G$1:$M$7,MATCH($D18,база!$G$1:$G$7,0),MATCH(U$4,база!$G$1:$M$1,0)) -> 81.04 | V18: 1 | W18: =SUMIFS(Таблица18[сумма],Таблица18[коэф],"1",Таблица18[р/р],"3/24",Таблица18[Ф. И. О.],B19) -> 3 | X18: =IF(W18=0,0,SUMIFS(Таблица18[Столбец1],Таблица18[р/р],"3/24",Таблица18[коэф],"1",Таблица18[Ф. И. О.],Лист1!B19)) -> 905.2 | Y18: =SUM(W18:W21,S18:S21,K18:K21,G18:G21) -> 14.8 | Z18: =SUM(H18:H21,L18:L21,T18:T21,X18:X21) -> 4718.836 | AG18: =IFERROR(INDIRECT("AC"&SMALL(IF(AC:AC<>"",ROW(AC:AC),""),ROW(A13))),"") -> 
B19: работник6 | E19: =INDEX(база!$G$1:$M$7,MATCH($D18,база!$G$1:$G$7,0),MATCH(E$4,база!$G$1:$M$1,0)) -> 51.84 | F19: 1 | G19: =SUMIFS(Таблица18[сумма],Таблица18[коэф],"1",Таблица18[р/р],"3/4",Таблица18[Ф. И. О.],B19) -> 3 | H19: =IF(G19=0,0,SUMIFS(Таблица18[Столбец1],Таблица18[р/р],"3/4",Таблица18[коэф],"1",Таблица18[Ф. И. О.],B19)) -> 759.2 | I19: =INDEX(база!$G$1:$M$7,MATCH($D18,база!$G$1:$G$7,0),MATCH(I$4,база!$G$1:$M$1,0)) -> 57.68 | J19: 1 | K19: =SUMIFS(Таблица18[сумма],Таблица18[коэф],"1",Таблица18[р/р],"3/8",Таблица18[Ф. И. О.],B19) -> 0 | L19: =IF(K19=0,0,SUMIFS(Таблица18[Столбец1],Таблица18[р/р],"3/8",Таблица18[коэф],"1",Таблица18[Ф. И. О.],B19)) -> 0 | N19: 1 | O19: =SUMIFS(#REF!,#REF!,"1",#REF!,"4/12",#REF!,B19) ->  | P19: =ROUND(M19*O19,2) ->  | Q19: =INDEX(база!$G$1:$M$7,MATCH($D18,база!$G$1:$G$7,0),MATCH(Q$4,база!$G$1:$M$1,0)) -> 69.36 | R19: 1 | S19: =SUMIFS(Таблица18[сумма],Таблица18[р/р],"4/16",Таблица18[коэф],"1",Таблица18[Ф. И. О.],B19) -> 0 | T19: =IF(S19=0,0,SUMIFS(Таблица18[Столбец1],Таблица18[р/р],"4/16",Таблица18[коэф],"1",Таблица18[Ф. И. О.],B19)) -> 0 | U19: =INDEX(база!$G$1:$M$7,MATCH($D18,база!$G$1:$G$7,0),MATCH(U$4,база!$G$1:$M$1,0)) -> 81.04 | V19: 1 | W19: =SUMIFS(Таблица18[сумма],Таблица18[коэф],"1",Таблица18[р/р],"4/24",Таблица18[Ф. И. О.],B19) -> 0 | X19: =IF(W19=0,0,SUMIFS(Таблица18[Столбец1],Таблица18[р/р],"4/24",Таблица18[коэф],"1",Таблица18[Ф. И. О.],Лист1!B19)) -> 0 | AC19: =IF(SUMIFS(Таблица18[Столбец1],Таблица18[Ф. И. О.],B19)=Z18,"",B19&" СУММА не верна") ->  | AG19: =IFERROR(INDIRECT("AC"&SMALL(IF(AC:AC<>"",ROW(AC:AC),""),ROW(A14))),"") -> 
E20: =INDEX(база!$G$1:$M$7,MATCH($D18,база!$G$1:$G$7,0),MATCH(E$4,база!$G$1:$M$1,0)) -> 51.84 | H20: =IF(G20=0,0,SUMIFS(Таблица18[Столбец1],Таблица18[р/р],"3/4",Таблица18[коэф],"1.1",Таблица18[Ф. И. О.],B19)) -> 0 | I20: =INDEX(база!$G$1:$M$7,MATCH($D18,база!$G$1:$G$7,0),MATCH(I$4,база!$G$1:$M$1,0)) -> 57.68 | J20: 1.1 | K20: =SUMIFS(Таблица18[сумма],Таблица18[коэф],"1",Таблица18[р/р],"3/8",Таблица18[Ф. И. О.],B20) -> 0 | L20: =IF(K20=0,0,SUMIFS(Таблица18[Столбец1],Таблица18[р/р],"3/8",Таблица18[коэф],"1.1",Таблица18[Ф. И. О.],B19)) -> 0 | N20: 1.1 | O20: =SUMIFS(#REF!,#REF!,"1.1",#REF!,"3/12",#REF!,B19) ->  | P20: =ROUND(M20*N20*O20,2) ->  | Q20: =INDEX(база!$G$1:$M$7,MATCH($D18,база!$G$1:$G$7,0),MATCH(Q$4,база!$G$1:$M$1,0)) -> 69.36 | R20: 1.1 | S20: =SUMIFS(Таблица18[сумма],Таблица18[р/р],"3/16",Таблица18[коэф],"1.1",Таблица18[Ф. И. О.],B19) -> 0 | T20: =IF(S20=0,0,SUMIFS(Таблица18[Столбец1],Таблица18[р/р],"3/16",Таблица18[коэф],"1.1",Таблица18[Ф. И. О.],B19)) -> 0 | U20: =INDEX(база!$G$1:$M$7,MATCH($D18,база!$G$1:$G$7,0),MATCH(U$4,база!$G$1:$M$1,0)) -> 81.04 | V20: 1.1 | W20: =SUMIFS(Таблица18[сумма],Таблица18[коэф],"1.1",Таблица18[р/р],"3/24",Таблица18[Ф. И. О.],B19) -> 0 | X20: =IF(W20=0,0,SUMIFS(Таблица18[Столбец1],Таблица18[р/р],"3/24",Таблица18[коэф],"1.1",Таблица18[Ф. И. О.],Лист1!B19)) -> 0 | AC20: =IF(SUMIFS(Таблица18[сумма],Таблица18[Ф. И. О.],B19)=Y18,"",B19&" часы не верны") ->  | AG20: =IFERROR(INDIRECT("AC"&SMALL(IF(AC:AC<>"",ROW(AC:AC),""),ROW(A15))),"") -> 
E21: =INDEX(база!$G$1:$M$7,MATCH($D18,база!$G$1:$G$7,0),MATCH(E$4,база!$G$1:$M$1,0)) -> 51.84 | F21: 1.5 | G21: =SUMIFS(Таблица18[сумма],Таблица18[коэф],"1.5",Таблица18[р/р],"2/4",Таблица18[Ф. И. О.],B19) -> 0 | H21: =IF(G21=0,0,SUMIFS(Таблица18[Столбец1],Таблица18[р/р],"2/4",Таблица18[коэф],"1.5",Таблица18[Ф. И. О.],B19)) -> 0 | I21: =INDEX(база!$G$1:$M$7,MATCH($D18,база!$G$1:$G$7,0),MATCH(I$4,база!$G$1:$M$1,0)) -> 57.68 | J21: 1.5 | K21: =SUMIFS(Таблица18[сумма],Таблица18[коэф],"1.5",Таблица18[р/р],"4/8",Таблица18[Ф. И. О.],B19) -> 4 | L21: =IF(K21=0,0,SUMIFS(Таблица18[Столбец1],Таблица18[р/р],"4/8",Таблица18[коэф],"1.5",Таблица18[Ф. И. О.],B19)) -> 1819.86 | N21: 1.5 | O21: =SUMIFS(#REF!,#REF!,"1.5",#REF!,"3/12",#REF!,B19) ->  | Q21: =INDEX(база!$G$1:$M$7,MATCH($D18,база!$G$1:$G$7,0),MATCH(Q$4,база!$G$1:$M$1,0)) -> 69.36 | R21: 1.5 | S21: =SUMIFS(Таблица18[сумма],Таблица18[р/р],"3/16",Таблица18[коэф],"1.5",Таблица18[Ф. И. О.],B19) -> 0 | T21: =IF(S21=0,0,SUMIFS(Таблица18[Столбец1],Таблица18[р/р],"3/16",Таблица18[коэф],"1.5",Таблица18[Ф. И. О.],B19)) -> 0 | U21: =INDEX(база!$G$1:$M$7,MATCH($D18,база!$G$1:$G$7,0),MATCH(U$4,база!$G$1:$M$1,0)) -> 81.04 | V21: 1.5 | W21: =SUMIFS(Таблица18[сумма],Таблица18[коэф],"1.5",Таблица18[р/р],"3/24",Таблица18[Ф. И. О.],B19) -> 0 | X21: =IF(W21=0,0,SUMIFS(Таблица18[Столбец1],Таблица18[р/р],"3/24",Таблица18[коэф],"1.5",Таблица18[Ф. И. О.],Лист1!B19)) -> 0 | AG21: =IFERROR(INDIRECT("AC"&SMALL(IF(AC:AC<>"",ROW(AC:AC),""),ROW(A16))),"") -> 
A22: 5 | C22: =INDEX(база!$E:$E, MATCH(B23,база!$B:$B,0)) -> 15590 | D22: =INDEX(база!$D:$D, MATCH(B23,база!$B:$B,0)) -> 3 | E22: =INDEX(база!$G$1:$M$7,MATCH($D22,база!$G$1:$G$7,0),MATCH(E$4,база!$G$1:$M$1,0)) -> 51.84 | F22: 1 | G22: =SUMIFS(Таблица18[сумма],Таблица18[коэф],"1",Таблица18[р/р],"2/4",Таблица18[Ф. И. О.],B23) -> 0 | H22: =IF(G22=0,0,SUMIFS(Таблица18[Столбец1],Таблица18[р/р],"2/4",Таблица18[коэф],"1",Таблица18[Ф. И. О.],B23)) -> 0 | I22: =INDEX(база!$G$1:$M$7,MATCH($D22,база!$G$1:$G$7,0),MATCH(I$4,база!$G$1:$M$1,0)) -> 57.68 | J22: 1 | K22: =SUMIFS(Таблица18[сумма],Таблица18[коэф],"1",Таблица18[р/р],"2/8",Таблица18[Ф. И. О.],B23) -> 0 | L22: =IF(K22=0,0,SUMIFS(Таблица18[Столбец1],Таблица18[р/р],"2/8",Таблица18[коэф],"1",Таблица18[Ф. И. О.],B23)) -> 0 | N22: 1 | O22: =SUMIFS(#REF!,#REF!,"1",#REF!,"3/12",#REF!,B23) ->  | Q22: =INDEX(база!$G$1:$M$7,MATCH($D22,база!$G$1:$G$7,0),MATCH(Q$4,база!$G$1:$M$1,0)) -> 69.36 | R22: 1 | S22: =SUMIFS(Таблица18[сумма],Таблица18[коэф],"1",Таблица18[р/р],"3/16",Таблица18[Ф. И. О.],B23) -> 3.8 | T22: =IF(S22=0,0,SUMIFS(Таблица18[Столбец1],Таблица18[р/р],"3/16",Таблица18[коэф],"1",Таблица18[Ф. И. О.],B23)) -> 1117.776 | U22: =INDEX(база!$G$1:$M$7,MATCH($D22,база!$G$1:$G$7,0),MATCH(U$4,база!$G$1:$M$1,0)) -> 81.04 | V22: 1 | W22: =SUMIFS(Таблица18[сумма],Таблица18[коэф],"1",Таблица18[р/р],"3/24",Таблица18[Ф. И. О.],B23) -> 0 | X22: =IF(W22=0,0,SUMIFS(Таблица18[Столбец1],Таблица18[р/р],"3/24",Таблица18[коэф],"1",Таблица18[Ф. И. О.],Лист1!B23)) -> 0 | Y22: =SUM(W22:W25,S22:S25,K22:K25,G22:G25) -> 3.8 | Z22: =SUM(H22:H25,L22:L25,T22:T25,X22:X25) -> 1117.776 | AG22: =IFERROR(INDIRECT("AC"&SMALL(IF(AC:AC<>"",ROW(AC:AC),""),ROW(A17))),"") -> 
B23: работник7 | E23: =INDEX(база!$G$1:$M$7,MATCH($D22,база!$G$1:$G$7,0),MATCH(E$4,база!$G$1:$M$1,0)) -> 51.84 | F23: 1 | G23: =SUMIFS(Таблица18[сумма],Таблица18[коэф],"1",Таблица18[р/р],"3/4",Таблица18[Ф. И. О.],B23) -> 0 | H23: =IF(G23=0,0,SUMIFS(Таблица18[Столбец1],Таблица18[р/р],"3/4",Таблица18[коэф],"1",Таблица18[Ф. И. О.],B23)) -> 0 | I23: =INDEX(база!$G$1:$M$7,MATCH($D22,база!$G$1:$G$7,0),MATCH(I$4,база!$G$1:$M$1,0)) -> 57.68 | J23: 1 | K23: =SUMIFS(Таблица18[сумма],Таблица18[коэф],"1",Таблица18[р/р],"3/8",Таблица18[Ф. И. О.],B23) -> 0 | L23: =IF(K23=0,0,SUMIFS(Таблица18[Столбец1],Таблица18[р/р],"3/8",Таблица18[коэф],"1",Таблица18[Ф. И. О.],B23)) -> 0 | N23: 1 | O23: =SUMIFS(#REF!,#REF!,"1",#REF!,"4/12",#REF!,B23) ->  | P23: =ROUND(M23*O23,2) ->  | Q23: =INDEX(база!$G$1:$M$7,MATCH($D22,база!$G$1:$G$7,0),MATCH(Q$4,база!$G$1:$M$1,0)) -> 69.36 | R23: 1 | S23: =SUMIFS(Таблица18[сумма],Таблица18[р/р],"4/16",Таблица18[коэф],"1",Таблица18[Ф. И. О.],B23) -> 0 | T23: =IF(S23=0,0,SUMIFS(Таблица18[Столбец1],Таблица18[р/р],"4/16",Таблица18[коэф],"1",Таблица18[Ф. И. О.],B23)) -> 0 | U23: =INDEX(база!$G$1:$M$7,MATCH($D22,база!$G$1:$G$7,0),MATCH(U$4,база!$G$1:$M$1,0)) -> 81.04 | V23: 1 | W23: =SUMIFS(Таблица18[сумма],Таблица18[коэф],"1",Таблица18[р/р],"4/24",Таблица18[Ф. И. О.],B23) -> 0 | X23: =IF(W23=0,0,SUMIFS(Таблица18[Столбец1],Таблица18[р/р],"4/24",Таблица18[коэф],"1",Таблица18[Ф. И. О.],Лист1!B23)) -> 0 | AC23: =IF(SUMIFS(Таблица18[Столбец1],Таблица18[Ф. И. О.],B23)=Z22,"",B23&" СУММА не верна") ->  | AG23: =IFERROR(INDIRECT("AC"&SMALL(IF(AC:AC<>"",ROW(AC:AC),""),ROW(A18))),"") -> 
E24: =INDEX(база!$G$1:$M$7,MATCH($D22,база!$G$1:$G$7,0),MATCH(E$4,база!$G$1:$M$1,0)) -> 51.84 | H24: =IF(G24=0,0,SUMIFS(Таблица18[Столбец1],Таблица18[р/р],"3/4",Таблица18[коэф],"1.1",Таблица18[Ф. И. О.],B23)) -> 0 | I24: =INDEX(база!$G$1:$M$7,MATCH($D22,база!$G$1:$G$7,0),MATCH(I$4,база!$G$1:$M$1,0)) -> 57.68 | J24: 1.1 | K24: =SUMIFS(Таблица18[сумма],Таблица18[коэф],"1",Таблица18[р/р],"3/8",Таблица18[Ф. И. О.],B24) -> 0 | L24: =IF(K24=0,0,SUMIFS(Таблица18[Столбец1],Таблица18[р/р],"3/8",Таблица18[коэф],"1.1",Таблица18[Ф. И. О.],B23)) -> 0 | N24: 1.1 | O24: =SUMIFS(#REF!,#REF!,"1.1",#REF!,"3/12",#REF!,B23) ->  | P24: =ROUND(M24*N24*O24,2) ->  | Q24: =INDEX(база!$G$1:$M$7,MATCH($D22,база!$G$1:$G$7,0),MATCH(Q$4,база!$G$1:$M$1,0)) -> 69.36 | R24: 1.1 | S24: =SUMIFS(Таблица18[сумма],Таблица18[р/р],"3/16",Таблица18[коэф],"1.1",Таблица18[Ф. И. О.],B23) -> 0 | T24: =IF(S24=0,0,SUMIFS(Таблица18[Столбец1],Таблица18[р/р],"3/16",Таблица18[коэф],"1.1",Таблица18[Ф. И. О.],B23)) -> 0 | U24: =INDEX(база!$G$1:$M$7,MATCH($D22,база!$G$1:$G$7,0),MATCH(U$4,база!$G$1:$M$1,0)) -> 81.04 | V24: 1.1 | W24: =SUMIFS(Таблица18[сумма],Таблица18[коэф],"1.1",Таблица18[р/р],"3/24",Таблица18[Ф. И. О.],B23) -> 0 | X24: =IF(W24=0,0,SUMIFS(Таблица18[Столбец1],Таблица18[р/р],"3/24",Таблица18[коэф],"1.1",Таблица18[Ф. И. О.],Лист1!B23)) -> 0 | AC24: =IF(SUMIFS(Таблица18[сумма],Таблица18[Ф. И. О.],B23)=Y22,"",B23&" часы не верны") ->  | AG24: =IFERROR(INDIRECT("AC"&SMALL(IF(AC:AC<>"",ROW(AC:AC),""),ROW(A19))),"") -> 
E25: =INDEX(база!$G$1:$M$7,MATCH($D22,база!$G$1:$G$7,0),MATCH(E$4,база!$G$1:$M$1,0)) -> 51.84 | F25: 1.5 | G25: =SUMIFS(Таблица18[сумма],Таблица18[коэф],"1.5",Таблица18[р/р],"2/4",Таблица18[Ф. И. О.],B23) -> 0 | H25: =IF(G25=0,0,SUMIFS(Таблица18[Столбец1],Таблица18[р/р],"2/4",Таблица18[коэф],"1.5",Таблица18[Ф. И. О.],B23)) -> 0 | I25: =INDEX(база!$G$1:$M$7,MATCH($D22,база!$G$1:$G$7,0),MATCH(I$4,база!$G$1:$M$1,0)) -> 57.68 | J25: 1.5 | K25: =SUMIFS(Таблица18[сумма],Таблица18[коэф],"1.5",Таблица18[р/р],"4/8",Таблица18[Ф. И. О.],B23) -> 0 | L25: =IF(K25=0,0,SUMIFS(Таблица18[Столбец1],Таблица18[р/р],"4/8",Таблица18[коэф],"1.5",Таблица18[Ф. И. О.],B23)) -> 0 | N25: 1.5 | O25: =SUMIFS(#REF!,#REF!,"1.5",#REF!,"3/12",#REF!,B23) ->  | Q25: =INDEX(база!$G$1:$M$7,MATCH($D22,база!$G$1:$G$7,0),MATCH(Q$4,база!$G$1:$M$1,0)) -> 69.36 | R25: 1.5 | S25: =SUMIFS(Таблица18[сумма],Таблица18[р/р],"3/16",Таблица18[коэф],"1.5",Таблица18[Ф. И. О.],B23) -> 0 | T25: =IF(S25=0,0,SUMIFS(Таблица18[Столбец1],Таблица18[р/р],"3/16",Таблица18[коэф],"1.5",Таблица18[Ф. И. О.],B23)) -> 0 | U25: =INDEX(база!$G$1:$M$7,MATCH($D22,база!$G$1:$G$7,0),MATCH(U$4,база!$G$1:$M$1,0)) -> 81.04 | V25: 1.5 | W25: =SUMIFS(Таблица18[сумма],Таблица18[коэф],"1.5",Таблица18[р/р],"3/24",Таблица18[Ф. И. О.],B23) -> 0 | X25: =IF(W25=0,0,SUMIFS(Таблица18[Столбец1],Таблица18[р/р],"3/24",Таблица18[коэф],"1.5",Таблица18[Ф. И. О.],Лист1!B23)) -> 0 | AG25: =IFERROR(INDIRECT("AC"&SMALL(IF(AC:AC<>"",ROW(AC:AC),""),ROW(A20))),"") -> 
A26: 6 | C26: =INDEX(база!$E:$E, MATCH(B27,база!$B:$B,0)) -> 15340 | D26: =INDEX(база!$D:$D, MATCH(B27,база!$B:$B,0)) -> 3 | E26: =INDEX(база!$G$1:$M$7,MATCH($D26,база!$G$1:$G$7,0),MATCH(E$4,база!$G$1:$M$1,0)) -> 51.84 | F26: 1 | G26: =SUMIFS(Таблица18[сумма],Таблица18[коэф],"1",Таблица18[р/р],"2/4",Таблица18[Ф. И. О.],B27) -> 0 | H26: =IF(G26=0,0,SUMIFS(Таблица18[Столбец1],Таблица18[р/р],"2/4",Таблица18[коэф],"1",Таблица18[Ф. И. О.],B27)) -> 0 | I26: =INDEX(база!$G$1:$M$7,MATCH($D26,база!$G$1:$G$7,0),MATCH(I$4,база!$G$1:$M$1,0)) -> 57.68 | J26: 1 | K26: =SUMIFS(Таблица18[сумма],Таблица18[коэф],"1",Таблица18[р/р],"2/8",Таблица18[Ф. И. О.],B27) -> 0 | L26: =IF(K26=0,0,SUMIFS(Таблица18[Столбец1],Таблица18[р/р],"2/8",Таблица18[коэф],"1",Таблица18[Ф. И. О.],B27)) -> 0 | N26: 1 | O26: =SUMIFS(#REF!,#REF!,"1",#REF!,"3/12",#REF!,B27) ->  | Q26: =INDEX(база!$G$1:$M$7,MATCH($D26,база!$G$1:$G$7,0),MATCH(Q$4,база!$G$1:$M$1,0)) -> 69.36 | R26: 1 | S26: =SUMIFS(Таблица18[сумма],Таблица18[коэф],"1",Таблица18[р/р],"3/16",Таблица18[Ф. И. О.],B27) -> 3 | T26: =IF(S26=0,0,SUMIFS(Таблица18[Столбец1],Таблица18[р/р],"3/16",Таблица18[коэф],"1",Таблица18[Ф. И. О.],B27)) -> 846.8 | U26: =INDEX(база!$G$1:$M$7,MATCH($D26,база!$G$1:$G$7,0),MATCH(U$4,база!$G$1:$M$1,0)) -> 81.04 | V26: 1 | W26: =SUMIFS(Таблица18[сумма],Таблица18[коэф],"1",Таблица18[р/р],"3/24",Таблица18[Ф. И. О.],B27) -> 0 | X26: =IF(W26=0,0,SUMIFS(Таблица18[Столбец1],Таблица18[р/р],"3/24",Таблица18[коэф],"1",Таблица18[Ф. И. О.],Лист1!B27)) -> 0 | Y26: =SUM(W26:W29,S26:S29,K26:K29,G26:G29) -> 3 | Z26: =SUM(H26:H29,L26:L29,T26:T29,X26:X29) -> 846.8
B27: работник8 | E27: =INDEX(база!$G$1:$M$7,MATCH($D26,база!$G$1:$G$7,0),MATCH(E$4,база!$G$1:$M$1,0)) -> 51.84 | F27: 1 | G27: =SUMIFS(Таблица18[сумма],Таблица18[коэф],"1",Таблица18[р/р],"3/4",Таблица18[Ф. И. О.],B27) -> 0 | H27: =IF(G27=0,0,SUMIFS(Таблица18[Столбец1],Таблица18[р/р],"3/4",Таблица18[коэф],"1",Таблица18[Ф. И. О.],B27)) -> 0 | I27: =INDEX(база!$G$1:$M$7,MATCH($D26,база!$G$1:$G$7,0),MATCH(I$4,база!$G$1:$M$1,0)) -> 57.68 | J27: 1 | K27: =SUMIFS(Таблица18[сумма],Таблица18[коэф],"1",Таблица18[р/р],"3/8",Таблица18[Ф. И. О.],B27) -> 0 | L27: =IF(K27=0,0,SUMIFS(Таблица18[Столбец1],Таблица18[р/р],"3/8",Таблица18[коэф],"1",Таблица18[Ф. И. О.],B27)) -> 0 | N27: 1 | O27: =SUMIFS(#REF!,#REF!,"1",#REF!,"4/12",#REF!,B27) ->  | P27: =ROUND(M27*O27,2) ->  | Q27: =INDEX(база!$G$1:$M$7,MATCH($D26,база!$G$1:$G$7,0),MATCH(Q$4,база!$G$1:$M$1,0)) -> 69.36 | R27: 1 | S27: =SUMIFS(Таблица18[сумма],Таблица18[р/р],"4/16",Таблица18[коэф],"1",Таблица18[Ф. И. О.],B27) -> 0 | T27: =IF(S27=0,0,SUMIFS(Таблица18[Столбец1],Таблица18[р/р],"4/16",Таблица18[коэф],"1",Таблица18[Ф. И. О.],B27)) -> 0 | U27: =INDEX(база!$G$1:$M$7,MATCH($D26,база!$G$1:$G$7,0),MATCH(U$4,база!$G$1:$M$1,0)) -> 81.04 | V27: 1 | W27: =SUMIFS(Таблица18[сумма],Таблица18[коэф],"1",Таблица18[р/р],"4/24",Таблица18[Ф. И. О.],B27) -> 0 | X27: =IF(W27=0,0,SUMIFS(Таблица18[Столбец1],Таблица18[р/р],"4/24",Таблица18[коэф],"1",Таблица18[Ф. И. О.],Лист1!B27)) -> 0 | AC27: =IF(SUMIFS(Таблица18[Столбец1],Таблица18[Ф. И. О.],B27)=Z26,"",B27&" СУММА не верна") -> 
E28: =INDEX(база!$G$1:$M$7,MATCH($D26,база!$G$1:$G$7,0),MATCH(E$4,база!$G$1:$M$1,0)) -> 51.84 | H28: =IF(G28=0,0,SUMIFS(Таблица18[Столбец1],Таблица18[р/р],"3/4",Таблица18[коэф],"1.1",Таблица18[Ф. И. О.],B27)) -> 0 | I28: =INDEX(база!$G$1:$M$7,MATCH($D26,база!$G$1:$G$7,0),MATCH(I$4,база!$G$1:$M$1,0)) -> 57.68 | J28: 1.1 | K28: =SUMIFS(Таблица18[сумма],Таблица18[коэф],"1",Таблица18[р/р],"3/8",Таблица18[Ф. И. О.],B28) -> 0 | L28: =IF(K28=0,0,SUMIFS(Таблица18[Столбец1],Таблица18[р/р],"3/8",Таблица18[коэф],"1.1",Таблица18[Ф. И. О.],B27)) -> 0 | N28: 1.1 | O28: =SUMIFS(#REF!,#REF!,"1.1",#REF!,"3/12",#REF!,B27) ->  | P28: =ROUND(M28*N28*O28,2) ->  | Q28: =INDEX(база!$G$1:$M$7,MATCH($D26,база!$G$1:$G$7,0),MATCH(Q$4,база!$G$1:$M$1,0)) -> 69.36 | R28: 1.1 | S28: =SUMIFS(Таблица18[сумма],Таблица18[р/р],"3/16",Таблица18[коэф],"1.1",Таблица18[Ф. И. О.],B27) -> 0 | T28: =IF(S28=0,0,SUMIFS(Таблица18[Столбец1],Таблица18[р/р],"3/16",Таблица18[коэф],"1.1",Таблица18[Ф. И. О.],B27)) -> 0 | U28: =INDEX(база!$G$1:$M$7,MATCH($D26,база!$G$1:$G$7,0),MATCH(U$4,база!$G$1:$M$1,0)) -> 81.04 | V28: 1.1 | W28: =SUMIFS(Таблица18[сумма],Таблица18[коэф],"1.1",Таблица18[р/р],"3/24",Таблица18[Ф. И. О.],B27) -> 0 | X28: =IF(W28=0,0,SUMIFS(Таблица18[Столбец1],Таблица18[р/р],"3/24",Таблица18[коэф],"1.1",Таблица18[Ф. И. О.],Лист1!B27)) -> 0 | AC28: =IF(SUMIFS(Таблица18[сумма],Таблица18[Ф. И. О.],B27)=Y26,"",B27&" часы не верны") -> 
E29: =INDEX(база!$G$1:$M$7,MATCH($D26,база!$G$1:$G$7,0),MATCH(E$4,база!$G$1:$M$1,0)) -> 51.84 | F29: 1.5 | G29: =SUMIFS(Таблица18[сумма],Таблица18[коэф],"1.5",Таблица18[р/р],"2/4",Таблица18[Ф. И. О.],B27) -> 0 | H29: =IF(G29=0,0,SUMIFS(Таблица18[Столбец1],Таблица18[р/р],"2/4",Таблица18[коэф],"1.5",Таблица18[Ф. И. О.],B27)) -> 0 | I29: =INDEX(база!$G$1:$M$7,MATCH($D26,база!$G$1:$G$7,0),MATCH(I$4,база!$G$1:$M$1,0)) -> 57.68 | J29: 1.5 | K29: =SUMIFS(Таблица18[сумма],Таблица18[коэф],"1.5",Таблица18[р/р],"4/8",Таблица18[Ф. И. О.],B27) -> 0 | L29: =IF(K29=0,0,SUMIFS(Таблица18[Столбец1],Таблица18[р/р],"4/8",Таблица18[коэф],"1.5",Таблица18[Ф. И. О.],B27)) -> 0 | N29: 1.5 | O29: =SUMIFS(#REF!,#REF!,"1.5",#REF!,"3/12",#REF!,B27) ->  | Q29: =INDEX(база!$G$1:$M$7,MATCH($D26,база!$G$1:$G$7,0),MATCH(Q$4,база!$G$1:$M$1,0)) -> 69.36 | R29: 1.5 | S29: =SUMIFS(Таблица18[сумма],Таблица18[р/р],"3/16",Таблица18[коэф],"1.5",Таблица18[Ф. И. О.],B27) -> 0 | T29: =IF(S29=0,0,SUMIFS(Таблица18[Столбец1],Таблица18[р/р],"3/16",Таблица18[коэф],"1.5",Таблица18[Ф. И. О.],B27)) -> 0 | U29: =INDEX(база!$G$1:$M$7,MATCH($D26,база!$G$1:$G$7,0),MATCH(U$4,база!$G$1:$M$1,0)) -> 81.04 | V29: 1.5 | W29: =SUMIFS(Таблица18[сумма],Таблица18[коэф],"1.5",Таблица18[р/р],"3/24",Таблица18[Ф. И. О.],B27) -> 0 | X29: =IF(W29=0,0,SUMIFS(Таблица18[Столбец1],Таблица18[р/р],"3/24",Таблица18[коэф],"1.5",Таблица18[Ф. И. О.],Лист1!B27)) -> 0
A30: 7 | C30: =INDEX(база!$E:$E, MATCH(B31,база!$B:$B,0)) -> 15608 | D30: =INDEX(база!$D:$D, MATCH(B31,база!$B:$B,0)) -> 3 | E30: =INDEX(база!$G$1:$M$7,MATCH($D30,база!$G$1:$G$7,0),MATCH(E$4,база!$G$1:$M$1,0)) -> 51.84 | F30: 1 | G30: =SUMIFS(Таблица18[сумма],Таблица18[коэф],"1",Таблица18[р/р],"2/4",Таблица18[Ф. И. О.],B31) -> 0 | H30: =IF(G30=0,0,SUMIFS(Таблица18[Столбец1],Таблица18[р/р],"2/4",Таблица18[коэф],"1",Таблица18[Ф. И. О.],B31)) -> 0 | I30: =INDEX(база!$G$1:$M$7,MATCH($D30,база!$G$1:$G$7,0),MATCH(I$4,база!$G$1:$M$1,0)) -> 57.68 | J30: 1 | K30: =SUMIFS(Таблица18[сумма],Таблица18[коэф],"1",Таблица18[р/р],"2/8",Таблица18[Ф. И. О.],B31) -> 0 | L30: =IF(K30=0,0,SUMIFS(Таблица18[Столбец1],Таблица18[р/р],"2/8",Таблица18[коэф],"1",Таблица18[Ф. И. О.],B31)) -> 0 | N30: 1 | O30: =SUMIFS(#REF!,#REF!,"1",#REF!,"3/12",#REF!,B31) ->  | Q30: =INDEX(база!$G$1:$M$7,MATCH($D30,база!$G$1:$G$7,0),MATCH(Q$4,база!$G$1:$M$1,0)) -> 69.36 | R30: 1 | S30: =SUMIFS(Таблица18[сумма],Таблица18[коэф],"1",Таблица18[р/р],"3/16",Таблица18[Ф. И. О.],B31) -> 4 | T30: =IF(S30=0,0,SUMIFS(Таблица18[Столбец1],Таблица18[р/р],"3/16",Таблица18[коэф],"1",Таблица18[Ф. И. О.],B31)) -> 1185.52 | U30: =INDEX(база!$G$1:$M$7,MATCH($D30,база!$G$1:$G$7,0),MATCH(U$4,база!$G$1:$M$1,0)) -> 81.04 | V30: 1 | W30: =SUMIFS(Таблица18[сумма],Таблица18[коэф],"1",Таблица18[р/р],"3/24",Таблица18[Ф. И. О.],B31) -> 0 | X30: =IF(W30=0,0,SUMIFS(Таблица18[Столбец1],Таблица18[р/р],"3/24",Таблица18[коэф],"1",Таблица18[Ф. И. О.],Лист1!B31)) -> 0 | Y30: =SUM(W30:W33,S30:S33,K30:K33,G30:G33) -> 4 | Z30: =SUM(H30:H33,L30:L33,T30:T33,X30:X33) -> 1185.52
B31: работник9 | E31: =INDEX(база!$G$1:$M$7,MATCH($D30,база!$G$1:$G$7,0),MATCH(E$4,база!$G$1:$M$1,0)) -> 51.84 | F31: 1 | G31: =SUMIFS(Таблица18[сумма],Таблица18[коэф],"1",Таблица18[р/р],"3/4",Таблица18[Ф. И. О.],B31) -> 0 | H31: =IF(G31=0,0,SUMIFS(Таблица18[Столбец1],Таблица18[р/р],"3/4",Таблица18[коэф],"1",Таблица18[Ф. И. О.],B31)) -> 0 | I31: =INDEX(база!$G$1:$M$7,MATCH($D30,база!$G$1:$G$7,0),MATCH(I$4,база!$G$1:$M$1,0)) -> 57.68 | J31: 1 | K31: =SUMIFS(Таблица18[сумма],Таблица18[коэф],"1",Таблица18[р/р],"3/8",Таблица18[Ф. И. О.],B31) -> 0 | L31: =IF(K31=0,0,SUMIFS(Таблица18[Столбец1],Таблица18[р/р],"3/8",Таблица18[коэф],"1",Таблица18[Ф. И. О.],B31)) -> 0 | N31: 1 | O31: =SUMIFS(#REF!,#REF!,"1",#REF!,"4/12",#REF!,B31) ->  | P31: =ROUND(M31*O31,2) ->  | Q31: =INDEX(база!$G$1:$M$7,MATCH($D30,база!$G$1:$G$7,0),MATCH(Q$4,база!$G$1:$M$1,0)) -> 69.36 | R31: 1 | S31: =SUMIFS(Таблица18[сумма],Таблица18[р/р],"4/16",Таблица18[коэф],"1",Таблица18[Ф. И. О.],B31) -> 0 | T31: =IF(S31=0,0,SUMIFS(Таблица18[Столбец1],Таблица18[р/р],"4/16",Таблица18[коэф],"1",Таблица18[Ф. И. О.],B31)) -> 0 | U31: =INDEX(база!$G$1:$M$7,MATCH($D30,база!$G$1:$G$7,0),MATCH(U$4,база!$G$1:$M$1,0)) -> 81.04 | V31: 1 | W31: =SUMIFS(Таблица18[сумма],Таблица18[коэф],"1",Таблица18[р/р],"4/24",Таблица18[Ф. И. О.],B31) -> 0 | X31: =IF(W31=0,0,SUMIFS(Таблица18[Столбец1],Таблица18[р/р],"4/24",Таблица18[коэф],"1",Таблица18[Ф. И. О.],Лист1!B31)) -> 0 | AC31: =IF(SUMIFS(Таблица18[Столбец1],Таблица18[Ф. И. О.],B31)=Z30,"",B31&" СУММА не верна") -> 
E32: =INDEX(база!$G$1:$M$7,MATCH($D30,база!$G$1:$G$7,0),MATCH(E$4,база!$G$1:$M$1,0)) -> 51.84 | H32: =IF(G32=0,0,SUMIFS(Таблица18[Столбец1],Таблица18[р/р],"3/4",Таблица18[коэф],"1.1",Таблица18[Ф. И. О.],B31)) -> 0 | I32: =INDEX(база!$G$1:$M$7,MATCH($D30,база!$G$1:$G$7,0),MATCH(I$4,база!$G$1:$M$1,0)) -> 57.68 | J32: 1.1 | K32: =SUMIFS(Таблица18[сумма],Таблица18[коэф],"1",Таблица18[р/р],"3/8",Таблица18[Ф. И. О.],B32) -> 0 | L32: =IF(K32=0,0,SUMIFS(Таблица18[Столбец1],Таблица18[р/р],"3/8",Таблица18[коэф],"1.1",Таблица18[Ф. И. О.],B31)) -> 0 | N32: 1.1 | O32: =SUMIFS(#REF!,#REF!,"1.1",#REF!,"3/12",#REF!,B31) ->  | P32: =ROUND(M32*N32*O32,2) ->  | Q32: =INDEX(база!$G$1:$M$7,MATCH($D30,база!$G$1:$G$7,0),MATCH(Q$4,база!$G$1:$M$1,0)) -> 69.36 | R32: 1.1 | S32: =SUMIFS(Таблица18[сумма],Таблица18[р/р],"3/16",Таблица18[коэф],"1.1",Таблица18[Ф. И. О.],B31) -> 0 | T32: =IF(S32=0,0,SUMIFS(Таблица18[Столбец1],Таблица18[р/р],"3/16",Таблица18[коэф],"1.1",Таблица18[Ф. И. О.],B31)) -> 0 | U32: =INDEX(база!$G$1:$M$7,MATCH($D30,база!$G$1:$G$7,0),MATCH(U$4,база!$G$1:$M$1,0)) -> 81.04 | V32: 1.1 | W32: =SUMIFS(Таблица18[сумма],Таблица18[коэф],"1.1",Таблица18[р/р],"3/24",Таблица18[Ф. И. О.],B31) -> 0 | X32: =IF(W32=0,0,SUMIFS(Таблица18[Столбец1],Таблица18[р/р],"3/24",Таблица18[коэф],"1.1",Таблица18[Ф. И. О.],Лист1!B31)) -> 0 | AC32: =IF(SUMIFS(Таблица18[сумма],Таблица18[Ф. И. О.],B31)=Y30,"",B31&" часы не верны") -> 
E33: =INDEX(база!$G$1:$M$7,MATCH($D30,база!$G$1:$G$7,0),MATCH(E$4,база!$G$1:$M$1,0)) -> 51.84 | F33: 1.5 | G33: =SUMIFS(Таблица18[сумма],Таблица18[коэф],"1.5",Таблица18[р/р],"2/4",Таблица18[Ф. И. О.],B31) -> 0 | H33: =IF(G33=0,0,SUMIFS(Таблица18[Столбец1],Таблица18[р/р],"2/4",Таблица18[коэф],"1.5",Таблица18[Ф. И. О.],B31)) -> 0 | I33: =INDEX(база!$G$1:$M$7,MATCH($D30,база!$G$1:$G$7,0),MATCH(I$4,база!$G$1:$M$1,0)) -> 57.68 | J33: 1.5 | K33: =SUMIFS(Таблица18[сумма],Таблица18[коэф],"1.5",Таблица18[р/р],"4/8",Таблица18[Ф. И. О.],B31) -> 0 | L33: =IF(K33=0,0,SUMIFS(Таблица18[Столбец1],Таблица18[р/р],"4/8",Таблица18[коэф],"1.5",Таблица18[Ф. И. О.],B31)) -> 0 | N33: 1.5 | O33: =SUMIFS(#REF!,#REF!,"1.5",#REF!,"3/12",#REF!,B31) ->  | Q33: =INDEX(база!$G$1:$M$7,MATCH($D30,база!$G$1:$G$7,0),MATCH(Q$4,база!$G$1:$M$1,0)) -> 69.36 | R33: 1.5 | S33: =SUMIFS(Таблица18[сумма],Таблица18[р/р],"3/16",Таблица18[коэф],"1.5",Таблица18[Ф. И. О.],B31) -> 0 | T33: =IF(S33=0,0,SUMIFS(Таблица18[Столбец1],Таблица18[р/р],"3/16",Таблица18[коэф],"1.5",Таблица18[Ф. И. О.],B31)) -> 0 | U33: =INDEX(база!$G$1:$M$7,MATCH($D30,база!$G$1:$G$7,0),MATCH(U$4,база!$G$1:$M$1,0)) -> 81.04 | V33: 1.5 | W33: =SUMIFS(Таблица18[сумма],Таблица18[коэф],"1.5",Таблица18[р/р],"3/24",Таблица18[Ф. И. О.],B31) -> 0 | X33: =IF(W33=0,0,SUMIFS(Таблица18[Столбец1],Таблица18[р/р],"3/24",Таблица18[коэф],"1.5",Таблица18[Ф. И. О.],Лист1!B31)) -> 0
A34: 8 | C34: =INDEX(база!$E:$E, MATCH(B35,база!$B:$B,0)) -> 13676 | D34: =INDEX(база!$D:$D, MATCH(B35,база!$B:$B,0)) -> 4 | E34: =INDEX(база!$G$1:$M$7,MATCH($D34,база!$G$1:$G$7,0),MATCH(E$4,база!$G$1:$M$1,0)) -> 66.9 | F34: 1 | G34: =SUMIFS(Таблица18[сумма],Таблица18[коэф],"1",Таблица18[р/р],"2/4",Таблица18[Ф. И. О.],B35) -> 0 | H34: =IF(G34=0,0,SUMIFS(Таблица18[Столбец1],Таблица18[р/р],"2/4",Таблица18[коэф],"1",Таблица18[Ф. И. О.],B35)) -> 0 | I34: =INDEX(база!$G$1:$M$7,MATCH($D34,база!$G$1:$G$7,0),MATCH(I$4,база!$G$1:$M$1,0)) -> 73.32 | J34: 1 | K34: =SUMIFS(Таблица18[сумма],Таблица18[коэф],"1",Таблица18[р/р],"2/8",Таблица18[Ф. И. О.],B35) -> 0 | L34: =IF(K34=0,0,SUMIFS(Таблица18[Столбец1],Таблица18[р/р],"2/8",Таблица18[коэф],"1",Таблица18[Ф. И. О.],B35)) -> 0 | N34: 1 | O34: =SUMIFS(#REF!,#REF!,"1",#REF!,"3/12",#REF!,B35) ->  | Q34: =INDEX(база!$G$1:$M$7,MATCH($D34,база!$G$1:$G$7,0),MATCH(Q$4,база!$G$1:$M$1,0)) -> 86.16 | R34: 1 | S34: =SUMIFS(Таблица18[сумма],Таблица18[коэф],"1",Таблица18[р/р],"3/16",Таблица18[Ф. И. О.],B35) -> 4.5 | T34: =IF(S34=0,0,SUMIFS(Таблица18[Столбец1],Таблица18[р/р],"3/16",Таблица18[коэф],"1",Таблица18[Ф. И. О.],B35)) -> 1354.88 | U34: =INDEX(база!$G$1:$M$7,MATCH($D34,база!$G$1:$G$7,0),MATCH(U$4,база!$G$1:$M$1,0)) -> 99 | V34: 1 | W34: =SUMIFS(Таблица18[сумма],Таблица18[коэф],"1",Таблица18[р/р],"3/24",Таблица18[Ф. И. О.],B35) -> 0 | X34: =IF(W34=0,0,SUMIFS(Таблица18[Столбец1],Таблица18[р/р],"3/24",Таблица18[коэф],"1",Таблица18[Ф. И. О.],Лист1!B35)) -> 0 | Y34: =SUM(W34:W37,S34:S37,K34:K37,G34:G37) -> 4.5 | Z34: =SUM(H34:H37,L34:L37,T34:T37,X34:X37) -> 1354.88
B35: работник10 | E35: =INDEX(база!$G$1:$M$7,MATCH($D34,база!$G$1:$G$7,0),MATCH(E$4,база!$G$1:$M$1,0)) -> 66.9 | F35: 1 | G35: =SUMIFS(Таблица18[сумма],Таблица18[коэф],"1",Таблица18[р/р],"3/4",Таблица18[Ф. И. О.],B35) -> 0 | H35: =IF(G35=0,0,SUMIFS(Таблица18[Столбец1],Таблица18[р/р],"3/4",Таблица18[коэф],"1",Таблица18[Ф. И. О.],B35)) -> 0 | I35: =INDEX(база!$G$1:$M$7,MATCH($D34,база!$G$1:$G$7,0),MATCH(I$4,база!$G$1:$M$1,0)) -> 73.32 | J35: 1 | K35: =SUMIFS(Таблица18[сумма],Таблица18[коэф],"1",Таблица18[р/р],"3/8",Таблица18[Ф. И. О.],B35) -> 0 | L35: =IF(K35=0,0,SUMIFS(Таблица18[Столбец1],Таблица18[р/р],"3/8",Таблица18[коэф],"1",Таблица18[Ф. И. О.],B35)) -> 0 | N35: 1 | O35: =SUMIFS(#REF!,#REF!,"1",#REF!,"4/12",#REF!,B35) ->  | P35: =ROUND(M35*O35,2) ->  | Q35: =INDEX(база!$G$1:$M$7,MATCH($D34,база!$G$1:$G$7,0),MATCH(Q$4,база!$G$1:$M$1,0)) -> 86.16 | R35: 1 | S35: =SUMIFS(Таблица18[сумма],Таблица18[р/р],"4/16",Таблица18[коэф],"1",Таблица18[Ф. И. О.],B35) -> 0 | T35: =IF(S35=0,0,SUMIFS(Таблица18[Столбец1],Таблица18[р/р],"4/16",Таблица18[коэф],"1",Таблица18[Ф. И. О.],B35)) -> 0 | U35: =INDEX(база!$G$1:$M$7,MATCH($D34,база!$G$1:$G$7,0),MATCH(U$4,база!$G$1:$M$1,0)) -> 99 | V35: 1 | W35: =SUMIFS(Таблица18[сумма],Таблица18[коэф],"1",Таблица18[р/р],"4/24",Таблица18[Ф. И. О.],B35) -> 0 | X35: =IF(W35=0,0,SUMIFS(Таблица18[Столбец1],Таблица18[р/р],"4/24",Таблица18[коэф],"1",Таблица18[Ф. И. О.],Лист1!B35)) -> 0 | AC35: =IF(SUMIFS(Таблица18[Столбец1],Таблица18[Ф. И. О.],B35)=Z34,"",B35&" СУММА не верна") -> 
E36: =INDEX(база!$G$1:$M$7,MATCH($D34,база!$G$1:$G$7,0),MATCH(E$4,база!$G$1:$M$1,0)) -> 66.9 | H36: =IF(G36=0,0,SUMIFS(Таблица18[Столбец1],Таблица18[р/р],"3/4",Таблица18[коэф],"1.1",Таблица18[Ф. И. О.],B35)) -> 0 | I36: =INDEX(база!$G$1:$M$7,MATCH($D34,база!$G$1:$G$7,0),MATCH(I$4,база!$G$1:$M$1,0)) -> 73.32 | J36: 1.1 | K36: =SUMIFS(Таблица18[сумма],Таблица18[коэф],"1",Таблица18[р/р],"3/8",Таблица18[Ф. И. О.],B36) -> 0 | L36: =IF(K36=0,0,SUMIFS(Таблица18[Столбец1],Таблица18[р/р],"3/8",Таблица18[коэф],"1.1",Таблица18[Ф. И. О.],B35)) -> 0 | N36: 1.1 | O36: =SUMIFS(#REF!,#REF!,"1.1",#REF!,"3/12",#REF!,B35) ->  | P36: =ROUND(M36*N36*O36,2) ->  | Q36: =INDEX(база!$G$1:$M$7,MATCH($D34,база!$G$1:$G$7,0),MATCH(Q$4,база!$G$1:$M$1,0)) -> 86.16 | R36: 1.1 | S36: =SUMIFS(Таблица18[сумма],Таблица18[р/р],"3/16",Таблица18[коэф],"1.1",Таблица18[Ф. И. О.],B35) -> 0 | T36: =IF(S36=0,0,SUMIFS(Таблица18[Столбец1],Таблица18[р/р],"3/16",Таблица18[коэф],"1.1",Таблица18[Ф. И. О.],B35)) -> 0 | U36: =INDEX(база!$G$1:$M$7,MATCH($D34,база!$G$1:$G$7,0),MATCH(U$4,база!$G$1:$M$1,0)) -> 99 | V36: 1.1 | W36: =SUMIFS(Таблица18[сумма],Таблица18[коэф],"1.1",Таблица18[р/р],"3/24",Таблица18[Ф. И. О.],B35) -> 0 | X36: =IF(W36=0,0,SUMIFS(Таблица18[Столбец1],Таблица18[р/р],"3/24",Таблица18[коэф],"1.1",Таблица18[Ф. И. О.],Лист1!B35)) -> 0 | AC36: =IF(SUMIFS(Таблица18[сумма],Таблица18[Ф. И. О.],B35)=Y34,"",B35&" часы не верны") -> 
E37: =INDEX(база!$G$1:$M$7,MATCH($D34,база!$G$1:$G$7,0),MATCH(E$4,база!$G$1:$M$1,0)) -> 66.9 | F37: 1.5 | G37: =SUMIFS(Таблица18[сумма],Таблица18[коэф],"1.5",Таблица18[р/р],"2/4",Таблица18[Ф. И. О.],B35) -> 0 | H37: =IF(G37=0,0,SUMIFS(Таблица18[Столбец1],Таблица18[р/р],"2/4",Таблица18[коэф],"1.5",Таблица18[Ф. И. О.],B35)) -> 0 | I37: =INDEX(база!$G$1:$M$7,MATCH($D34,база!$G$1:$G$7,0),MATCH(I$4,база!$G$1:$M$1,0)) -> 73.32 | J37: 1.5 | K37: =SUMIFS(Таблица18[сумма],Таблица18[коэф],"1.5",Таблица18[р/р],"4/8",Таблица18[Ф. И. О.],B35) -> 0 | L37: =IF(K37=0,0,SUMIFS(Таблица18[Столбец1],Таблица18[р/р],"4/8",Таблица18[коэф],"1.5",Таблица18[Ф. И. О.],B35)) -> 0 | N37: 1.5 | O37: =SUMIFS(#REF!,#REF!,"1.5",#REF!,"3/12",#REF!,B35) ->  | Q37: =INDEX(база!$G$1:$M$7,MATCH($D34,база!$G$1:$G$7,0),MATCH(Q$4,база!$G$1:$M$1,0)) -> 86.16 | R37: 1.5 | S37: =SUMIFS(Таблица18[сумма],Таблица18[р/р],"3/16",Таблица18[коэф],"1.5",Таблица18[Ф. И. О.],B35) -> 0 | T37: =IF(S37=0,0,SUMIFS(Таблица18[Столбец1],Таблица18[р/р],"3/16",Таблица18[коэф],"1.5",Таблица18[Ф. И. О.],B35)) -> 0 | U37: =INDEX(база!$G$1:$M$7,MATCH($D34,база!$G$1:$G$7,0),MATCH(U$4,база!$G$1:$M$1,0)) -> 99 | V37: 1.5 | W37: =SUMIFS(Таблица18[сумма],Таблица18[коэф],"1.5",Таблица18[р/р],"3/24",Таблица18[Ф. И. О.],B35) -> 0 | X37: =IF(W37=0,0,SUMIFS(Таблица18[Столбец1],Таблица18[р/р],"3/24",Таблица18[коэф],"1.5",Таблица18[Ф. И. О.],Лист1!B35)) -> 0
A38: 9 | C38: =INDEX(база!$E:$E, MATCH(B39,база!$B:$B,0)) -> 15575 | D38: =INDEX(база!$D:$D, MATCH(B39,база!$B:$B,0)) -> 3 | E38: =INDEX(база!$G$1:$M$7,MATCH($D38,база!$G$1:$G$7,0),MATCH(E$4,база!$G$1:$M$1,0)) -> 51.84 | F38: 1 | G38: =SUMIFS(Таблица18[сумма],Таблица18[коэф],"1",Таблица18[р/р],"2/4",Таблица18[Ф. И. О.],B39) -> 0 | H38: =IF(G38=0,0,SUMIFS(Таблица18[Столбец1],Таблица18[р/р],"2/4",Таблица18[коэф],"1",Таблица18[Ф. И. О.],B39)) -> 0 | I38: =INDEX(база!$G$1:$M$7,MATCH($D38,база!$G$1:$G$7,0),MATCH(I$4,база!$G$1:$M$1,0)) -> 57.68 | J38: 1 | K38: =SUMIFS(Таблица18[сумма],Таблица18[коэф],"1",Таблица18[р/р],"2/8",Таблица18[Ф. И. О.],B39) -> 0 | L38: =IF(K38=0,0,SUMIFS(Таблица18[Столбец1],Таблица18[р/р],"2/8",Таблица18[коэф],"1",Таблица18[Ф. И. О.],B39)) -> 0 | N38: 1 | O38: =SUMIFS(#REF!,#REF!,"1",#REF!,"3/12",#REF!,B39) ->  | Q38: =INDEX(база!$G$1:$M$7,MATCH($D38,база!$G$1:$G$7,0),MATCH(Q$4,база!$G$1:$M$1,0)) -> 69.36 | R38: 1 | S38: =SUMIFS(Таблица18[сумма],Таблица18[коэф],"1",Таблица18[р/р],"3/16",Таблица18[Ф. И. О.],B39) -> 0 | T38: =IF(S38=0,0,SUMIFS(Таблица18[Столбец1],Таблица18[р/р],"3/16",Таблица18[коэф],"1",Таблица18[Ф. И. О.],B39)) -> 0 | U38: =INDEX(база!$G$1:$M$7,MATCH($D38,база!$G$1:$G$7,0),MATCH(U$4,база!$G$1:$M$1,0)) -> 81.04 | V38: 1 | W38: =SUMIFS(Таблица18[сумма],Таблица18[коэф],"1",Таблица18[р/р],"3/24",Таблица18[Ф. И. О.],B39) -> 2 | X38: =IF(W38=0,0,SUMIFS(Таблица18[Столбец1],Таблица18[р/р],"3/24",Таблица18[коэф],"1",Таблица18[Ф. И. О.],Лист1!B39)) -> 455.52 | Y38: =SUM(W38:W41,S38:S41,K38:K41,G38:G41) -> 2 | Z38: =SUM(H38:H41,L38:L41,T38:T41,X38:X41) -> 455.52
B39: работник11 | E39: =INDEX(база!$G$1:$M$7,MATCH($D38,база!$G$1:$G$7,0),MATCH(E$4,база!$G$1:$M$1,0)) -> 51.84 | F39: 1 | G39: =SUMIFS(Таблица18[сумма],Таблица18[коэф],"1",Таблица18[р/р],"3/4",Таблица18[Ф. И. О.],B39) -> 0 | H39: =IF(G39=0,0,SUMIFS(Таблица18[Столбец1],Таблица18[р/р],"3/4",Таблица18[коэф],"1",Таблица18[Ф. И. О.],B39)) -> 0 | I39: =INDEX(база!$G$1:$M$7,MATCH($D38,база!$G$1:$G$7,0),MATCH(I$4,база!$G$1:$M$1,0)) -> 57.68 | J39: 1 | K39: =SUMIFS(Таблица18[сумма],Таблица18[коэф],"1",Таблица18[р/р],"3/8",Таблица18[Ф. И. О.],B39) -> 0 | L39: =IF(K39=0,0,SUMIFS(Таблица18[Столбец1],Таблица18[р/р],"3/8",Таблица18[коэф],"1",Таблица18[Ф. И. О.],B39)) -> 0 | N39: 1 | O39: =SUMIFS(#REF!,#REF!,"1",#REF!,"4/12",#REF!,B39) ->  | P39: =ROUND(M39*O39,2) ->  | Q39: =INDEX(база!$G$1:$M$7,MATCH($D38,база!$G$1:$G$7,0),MATCH(Q$4,база!$G$1:$M$1,0)) -> 69.36 | R39: 1 | S39: =SUMIFS(Таблица18[сумма],Таблица18[р/р],"4/16",Таблица18[коэф],"1",Таблица18[Ф. И. О.],B39) -> 0 | T39: =IF(S39=0,0,SUMIFS(Таблица18[Столбец1],Таблица18[р/р],"4/16",Таблица18[коэф],"1",Таблица18[Ф. И. О.],B39)) -> 0 | U39: =INDEX(база!$G$1:$M$7,MATCH($D38,база!$G$1:$G$7,0),MATCH(U$4,база!$G$1:$M$1,0)) -> 81.04 | V39: 1 | W39: =SUMIFS(Таблица18[сумма],Таблица18[коэф],"1",Таблица18[р/р],"4/24",Таблица18[Ф. И. О.],B39) -> 0 | X39: =IF(W39=0,0,SUMIFS(Таблица18[Столбец1],Таблица18[р/р],"4/24",Таблица18[коэф],"1",Таблица18[Ф. И. О.],Лист1!B39)) -> 0 | AC39: =IF(SUMIFS(Таблица18[Столбец1],Таблица18[Ф. И. О.],B39)=Z38,"",B39&" СУММА не верна") -> 
E40: =INDEX(база!$G$1:$M$7,MATCH($D38,база!$G$1:$G$7,0),MATCH(E$4,база!$G$1:$M$1,0)) -> 51.84 | H40: =IF(G40=0,0,SUMIFS(Таблица18[Столбец1],Таблица18[р/р],"3/4",Таблица18[коэф],"1.1",Таблица18[Ф. И. О.],B39)) -> 0 | I40: =INDEX(база!$G$1:$M$7,MATCH($D38,база!$G$1:$G$7,0),MATCH(I$4,база!$G$1:$M$1,0)) -> 57.68 | J40: 1.1 | K40: =SUMIFS(Таблица18[сумма],Таблица18[коэф],"1",Таблица18[р/р],"3/8",Таблица18[Ф. И. О.],B40) -> 0 | L40: =IF(K40=0,0,SUMIFS(Таблица18[Столбец1],Таблица18[р/р],"3/8",Таблица18[коэф],"1.1",Таблица18[Ф. И. О.],B39)) -> 0 | N40: 1.1 | O40: =SUMIFS(#REF!,#REF!,"1.1",#REF!,"3/12",#REF!,B39) ->  | P40: =ROUND(M40*N40*O40,2) ->  | Q40: =INDEX(база!$G$1:$M$7,MATCH($D38,база!$G$1:$G$7,0),MATCH(Q$4,база!$G$1:$M$1,0)) -> 69.36 | R40: 1.1 | S40: =SUMIFS(Таблица18[сумма],Таблица18[р/р],"3/16",Таблица18[коэф],"1.1",Таблица18[Ф. И. О.],B39) -> 0 | T40: =IF(S40=0,0,SUMIFS(Таблица18[Столбец1],Таблица18[р/р],"3/16",Таблица18[коэф],"1.1",Таблица18[Ф. И. О.],B39)) -> 0 | U40: =INDEX(база!$G$1:$M$7,MATCH($D38,база!$G$1:$G$7,0),MATCH(U$4,база!$G$1:$M$1,0)) -> 81.04 | V40: 1.1 | W40: =SUMIFS(Таблица18[сумма],Таблица18[коэф],"1.1",Таблица18[р/р],"3/24",Таблица18[Ф. И. О.],B39) -> 0 | X40: =IF(W40=0,0,SUMIFS(Таблица18[Столбец1],Таблица18[р/р],"3/24",Таблица18[коэф],"1.1",Таблица18[Ф. И. О.],Лист1!B39)) -> 0 | AC40: =IF(SUMIFS(Таблица18[сумма],Таблица18[Ф. И. О.],B39)=Y38,"",B39&" часы не верны") -> 
E41: =INDEX(база!$G$1:$M$7,MATCH($D38,база!$G$1:$G$7,0),MATCH(E$4,база!$G$1:$M$1,0)) -> 51.84 | F41: 1.5 | G41: =SUMIFS(Таблица18[сумма],Таблица18[коэф],"1.5",Таблица18[р/р],"2/4",Таблица18[Ф. И. О.],B39) -> 0 | H41: =IF(G41=0,0,SUMIFS(Таблица18[Столбец1],Таблица18[р/р],"2/4",Таблица18[коэф],"1.5",Таблица18[Ф. И. О.],B39)) -> 0 | I41: =INDEX(база!$G$1:$M$7,MATCH($D38,база!$G$1:$G$7,0),MATCH(I$4,база!$G$1:$M$1,0)) -> 57.68 | J41: 1.5 | K41: =SUMIFS(Таблица18[сумма],Таблица18[коэф],"1.5",Таблица18[р/р],"4/8",Таблица18[Ф. И. О.],B39) -> 0 | L41: =IF(K41=0,0,SUMIFS(Таблица18[Столбец1],Таблица18[р/р],"4/8",Таблица18[коэф],"1.5",Таблица18[Ф. И. О.],B39)) -> 0 | N41: 1.5 | O41: =SUMIFS(#REF!,#REF!,"1.5",#REF!,"3/12",#REF!,B39) ->  | Q41: =INDEX(база!$G$1:$M$7,MATCH($D38,база!$G$1:$G$7,0),MATCH(Q$4,база!$G$1:$M$1,0)) -> 69.36 | R41: 1.5 | S41: =SUMIFS(Таблица18[сумма],Таблица18[р/р],"3/16",Таблица18[коэф],"1.5",Таблица18[Ф. И. О.],B39) -> 0 | T41: =IF(S41=0,0,SUMIFS(Таблица18[Столбец1],Таблица18[р/р],"3/16",Таблица18[коэф],"1.5",Таблица18[Ф. И. О.],B39)) -> 0 | U41: =INDEX(база!$G$1:$M$7,MATCH($D38,база!$G$1:$G$7,0),MATCH(U$4,база!$G$1:$M$1,0)) -> 81.04 | V41: 1.5 | W41: =SUMIFS(Таблица18[сумма],Таблица18[коэф],"1.5",Таблица18[р/р],"3/24",Таблица18[Ф. И. О.],B39) -> 0 | X41: =IF(W41=0,0,SUMIFS(Таблица18[Столбец1],Таблица18[р/р],"3/24",Таблица18[коэф],"1.5",Таблица18[Ф. И. О.],Лист1!B39)) -> 0
A42: 10 | C42: =INDEX(база!$E:$E, MATCH(B43,база!$B:$B,0)) -> 14883 | D42: =INDEX(база!$D:$D, MATCH(B43,база!$B:$B,0)) -> 3 | E42: =INDEX(база!$G$1:$M$7,MATCH($D42,база!$G$1:$G$7,0),MATCH(E$4,база!$G$1:$M$1,0)) -> 51.84 | F42: 1 | G42: =SUMIFS(Таблица18[сумма],Таблица18[коэф],"1",Таблица18[р/р],"2/4",Таблица18[Ф. И. О.],B43) -> 0 | H42: =IF(G42=0,0,SUMIFS(Таблица18[Столбец1],Таблица18[р/р],"2/4",Таблица18[коэф],"1",Таблица18[Ф. И. О.],B43)) -> 0 | I42: =INDEX(база!$G$1:$M$7,MATCH($D42,база!$G$1:$G$7,0),MATCH(I$4,база!$G$1:$M$1,0)) -> 57.68 | J42: 1 | K42: =SUMIFS(Таблица18[сумма],Таблица18[коэф],"1",Таблица18[р/р],"2/8",Таблица18[Ф. И. О.],B43) -> 0 | L42: =IF(K42=0,0,SUMIFS(Таблица18[Столбец1],Таблица18[р/р],"2/8",Таблица18[коэф],"1",Таблица18[Ф. И. О.],B43)) -> 0 | N42: 1 | O42: =SUMIFS(#REF!,#REF!,"1",#REF!,"3/12",#REF!,B43) ->  | Q42: =INDEX(база!$G$1:$M$7,MATCH($D42,база!$G$1:$G$7,0),MATCH(Q$4,база!$G$1:$M$1,0)) -> 69.36 | R42: 1 | S42: =SUMIFS(Таблица18[сумма],Таблица18[коэф],"1",Таблица18[р/р],"3/16",Таблица18[Ф. И. О.],B43) -> 0 | T42: =IF(S42=0,0,SUMIFS(Таблица18[Столбец1],Таблица18[р/р],"3/16",Таблица18[коэф],"1",Таблица18[Ф. И. О.],B43)) -> 0 | U42: =INDEX(база!$G$1:$M$7,MATCH($D42,база!$G$1:$G$7,0),MATCH(U$4,база!$G$1:$M$1,0)) -> 81.04 | V42: 1 | W42: =SUMIFS(Таблица18[сумма],Таблица18[коэф],"1",Таблица18[р/р],"3/24",Таблица18[Ф. И. О.],B43) -> 0 | X42: =IF(W42=0,0,SUMIFS(Таблица18[Столбец1],Таблица18[р/р],"3/24",Таблица18[коэф],"1",Таблица18[Ф. И. О.],Лист1!B43)) -> 0 | Y42: =SUM(W42:W45,S42:S45,K42:K45,G42:G45) -> 0 | Z42: =SUM(H42:H45,L42:L45,T42:T45,X42:X45) -> 0
B43: работник12 | E43: =INDEX(база!$G$1:$M$7,MATCH($D42,база!$G$1:$G$7,0),MATCH(E$4,база!$G$1:$M$1,0)) -> 51.84 | F43: 1 | G43: =SUMIFS(Таблица18[сумма],Таблица18[коэф],"1",Таблица18[р/р],"3/4",Таблица18[Ф. И. О.],B43) -> 0 | H43: =IF(G43=0,0,SUMIFS(Таблица18[Столбец1],Таблица18[р/р],"3/4",Таблица18[коэф],"1",Таблица18[Ф. И. О.],B43)) -> 0 | I43: =INDEX(база!$G$1:$M$7,MATCH($D42,база!$G$1:$G$7,0),MATCH(I$4,база!$G$1:$M$1,0)) -> 57.68 | J43: 1 | K43: =SUMIFS(Таблица18[сумма],Таблица18[коэф],"1",Таблица18[р/р],"3/8",Таблица18[Ф. И. О.],B43) -> 0 | L43: =IF(K43=0,0,SUMIFS(Таблица18[Столбец1],Таблица18[р/р],"3/8",Таблица18[коэф],"1",Таблица18[Ф. И. О.],B43)) -> 0 | N43: 1 | O43: =SUMIFS(#REF!,#REF!,"1",#REF!,"4/12",#REF!,B43) ->  | P43: =ROUND(M43*O43,2) ->  | Q43: =INDEX(база!$G$1:$M$7,MATCH($D42,база!$G$1:$G$7,0),MATCH(Q$4,база!$G$1:$M$1,0)) -> 69.36 | R43: 1 | S43: =SUMIFS(Таблица18[сумма],Таблица18[р/р],"4/16",Таблица18[коэф],"1",Таблица18[Ф. И. О.],B43) -> 0 | T43: =IF(S43=0,0,SUMIFS(Таблица18[Столбец1],Таблица18[р/р],"4/16",Таблица18[коэф],"1",Таблица18[Ф. И. О.],B43)) -> 0 | U43: =INDEX(база!$G$1:$M$7,MATCH($D42,база!$G$1:$G$7,0),MATCH(U$4,база!$G$1:$M$1,0)) -> 81.04 | V43: 1 | W43: =SUMIFS(Таблица18[сумма],Таблица18[коэф],"1",Таблица18[р/р],"4/24",Таблица18[Ф. И. О.],B43) -> 0 | X43: =IF(W43=0,0,SUMIFS(Таблица18[Столбец1],Таблица18[р/р],"4/24",Таблица18[коэф],"1",Таблица18[Ф. И. О.],Лист1!B43)) -> 0 | AC43: =IF(SUMIFS(Таблица18[Столбец1],Таблица18[Ф. И. О.],B43)=Z42,"",B43&" СУММА не верна") -> 
E44: =INDEX(база!$G$1:$M$7,MATCH($D42,база!$G$1:$G$7,0),MATCH(E$4,база!$G$1:$M$1,0)) -> 51.84 | H44: =IF(G44=0,0,SUMIFS(Таблица18[Столбец1],Таблица18[р/р],"3/4",Таблица18[коэф],"1.1",Таблица18[Ф. И. О.],B43)) -> 0 | I44: =INDEX(база!$G$1:$M$7,MATCH($D42,база!$G$1:$G$7,0),MATCH(I$4,база!$G$1:$M$1,0)) -> 57.68 | J44: 1.1 | K44: =SUMIFS(Таблица18[сумма],Таблица18[коэф],"1",Таблица18[р/р],"3/8",Таблица18[Ф. И. О.],B44) -> 0 | L44: =IF(K44=0,0,SUMIFS(Таблица18[Столбец1],Таблица18[р/р],"3/8",Таблица18[коэф],"1.1",Таблица18[Ф. И. О.],B43)) -> 0 | N44: 1.1 | O44: =SUMIFS(#REF!,#REF!,"1.1",#REF!,"3/12",#REF!,B43) ->  | P44: =ROUND(M44*N44*O44,2) ->  | Q44: =INDEX(база!$G$1:$M$7,MATCH($D42,база!$G$1:$G$7,0),MATCH(Q$4,база!$G$1:$M$1,0)) -> 69.36 | R44: 1.1 | S44: =SUMIFS(Таблица18[сумма],Таблица18[р/р],"3/16",Таблица18[коэф],"1.1",Таблица18[Ф. И. О.],B43) -> 0 | T44: =IF(S44=0,0,SUMIFS(Таблица18[Столбец1],Таблица18[р/р],"3/16",Таблица18[коэф],"1.1",Таблица18[Ф. И. О.],B43)) -> 0 | U44: =INDEX(база!$G$1:$M$7,MATCH($D42,база!$G$1:$G$7,0),MATCH(U$4,база!$G$1:$M$1,0)) -> 81.04 | V44: 1.1 | W44: =SUMIFS(Таблица18[сумма],Таблица18[коэф],"1.1",Таблица18[р/р],"3/24",Таблица18[Ф. И. О.],B43) -> 0 | X44: =IF(W44=0,0,SUMIFS(Таблица18[Столбец1],Таблица18[р/р],"3/24",Таблица18[коэф],"1.1",Таблица18[Ф. И. О.],Лист1!B43)) -> 0 | AC44: =IF(SUMIFS(Таблица18[сумма],Таблица18[Ф. И. О.],B43)=Y42,"",B43&" часы не верны") -> 
E45: =INDEX(база!$G$1:$M$7,MATCH($D42,база!$G$1:$G$7,0),MATCH(E$4,база!$G$1:$M$1,0)) -> 51.84 | F45: 1.5 | G45: =SUMIFS(Таблица18[сумма],Таблица18[коэф],"1.5",Таблица18[р/р],"2/4",Таблица18[Ф. И. О.],B43) -> 0 | H45: =IF(G45=0,0,SUMIFS(Таблица18[Столбец1],Таблица18[р/р],"2/4",Таблица18[коэф],"1.5",Таблица18[Ф. И. О.],B43)) -> 0 | I45: =INDEX(база!$G$1:$M$7,MATCH($D42,база!$G$1:$G$7,0),MATCH(I$4,база!$G$1:$M$1,0)) -> 57.68 | J45: 1.5 | K45: =SUMIFS(Таблица18[сумма],Таблица18[коэф],"1.5",Таблица18[р/р],"4/8",Таблица18[Ф. И. О.],B43) -> 0 | L45: =IF(K45=0,0,SUMIFS(Таблица18[Столбец1],Таблица18[р/р],"4/8",Таблица18[коэф],"1.5",Таблица18[Ф. И. О.],B43)) -> 0 | N45: 1.5 | O45: =SUMIFS(#REF!,#REF!,"1.5",#REF!,"3/12",#REF!,B43) ->  | Q45: =INDEX(база!$G$1:$M$7,MATCH($D42,база!$G$1:$G$7,0),MATCH(Q$4,база!$G$1:$M$1,0)) -> 69.36 | R45: 1.5 | S45: =SUMIFS(Таблица18[сумма],Таблица18[р/р],"3/16",Таблица18[коэф],"1.5",Таблица18[Ф. И. О.],B43) -> 0 | T45: =IF(S45=0,0,SUMIFS(Таблица18[Столбец1],Таблица18[р/р],"3/16",Таблица18[коэф],"1.5",Таблица18[Ф. И. О.],B43)) -> 0 | U45: =INDEX(база!$G$1:$M$7,MATCH($D42,база!$G$1:$G$7,0),MATCH(U$4,база!$G$1:$M$1,0)) -> 81.04 | V45: 1.5 | W45: =SUMIFS(Таблица18[сумма],Таблица18[коэф],"1.5",Таблица18[р/р],"3/24",Таблица18[Ф. И. О.],B43) -> 0 | X45: =IF(W45=0,0,SUMIFS(Таблица18[Столбец1],Таблица18[р/р],"3/24",Таблица18[коэф],"1.5",Таблица18[Ф. И. О.],Лист1!B43)) -> 0
A46: 11 | C46: =INDEX(база!$E:$E, MATCH(B47,база!$B:$B,0)) -> 15041 | D46: =INDEX(база!$D:$D, MATCH(B47,база!$B:$B,0)) -> 3 | E46: =INDEX(база!$G$1:$M$7,MATCH($D46,база!$G$1:$G$7,0),MATCH(E$4,база!$G$1:$M$1,0)) -> 51.84 | F46: 1 | G46: =SUMIFS(Таблица18[сумма],Таблица18[коэф],"1",Таблица18[р/р],"2/4",Таблица18[Ф. И. О.],B47) -> 0 | H46: =IF(G46=0,0,SUMIFS(Таблица18[Столбец1],Таблица18[р/р],"2/4",Таблица18[коэф],"1",Таблица18[Ф. И. О.],B47)) -> 0 | I46: =INDEX(база!$G$1:$M$7,MATCH($D46,база!$G$1:$G$7,0),MATCH(I$4,база!$G$1:$M$1,0)) -> 57.68 | J46: 1 | K46: =SUMIFS(Таблица18[сумма],Таблица18[коэф],"1",Таблица18[р/р],"2/8",Таблица18[Ф. И. О.],B47) -> 0 | L46: =IF(K46=0,0,SUMIFS(Таблица18[Столбец1],Таблица18[р/р],"2/8",Таблица18[коэф],"1",Таблица18[Ф. И. О.],B47)) -> 0 | N46: 1 | O46: =SUMIFS(#REF!,#REF!,"1",#REF!,"3/12",#REF!,B47) ->  | Q46: =INDEX(база!$G$1:$M$7,MATCH($D46,база!$G$1:$G$7,0),MATCH(Q$4,база!$G$1:$M$1,0)) -> 69.36 | R46: 1 | S46: =SUMIFS(Таблица18[сумма],Таблица18[коэф],"1",Таблица18[р/р],"3/16",Таблица18[Ф. И. О.],B47) -> 2.5 | T46: =IF(S46=0,0,SUMIFS(Таблица18[Столбец1],Таблица18[р/р],"3/16",Таблица18[коэф],"1",Таблица18[Ф. И. О.],B47)) -> 677.44 | U46: =INDEX(база!$G$1:$M$7,MATCH($D46,база!$G$1:$G$7,0),MATCH(U$4,база!$G$1:$M$1,0)) -> 81.04 | V46: 1 | W46: =SUMIFS(Таблица18[сумма],Таблица18[коэф],"1",Таблица18[р/р],"3/24",Таблица18[Ф. И. О.],B47) -> 0 | X46: =IF(W46=0,0,SUMIFS(Таблица18[Столбец1],Таблица18[р/р],"3/24",Таблица18[коэф],"1",Таблица18[Ф. И. О.],Лист1!B47)) -> 0 | Y46: =SUM(W46:W49,S46:S49,K46:K49,G46:G49) -> 2.5 | Z46: =SUM(H46:H49,L46:L49,T46:T49,X46:X49) -> 677.44
B47: работник13 | E47: =INDEX(база!$G$1:$M$7,MATCH($D46,база!$G$1:$G$7,0),MATCH(E$4,база!$G$1:$M$1,0)) -> 51.84 | F47: 1 | G47: =SUMIFS(Таблица18[сумма],Таблица18[коэф],"1",Таблица18[р/р],"3/4",Таблица18[Ф. И. О.],B47) -> 0 | H47: =IF(G47=0,0,SUMIFS(Таблица18[Столбец1],Таблица18[р/р],"3/4",Таблица18[коэф],"1",Таблица18[Ф. И. О.],B47)) -> 0 | I47: =INDEX(база!$G$1:$M$7,MATCH($D46,база!$G$1:$G$7,0),MATCH(I$4,база!$G$1:$M$1,0)) -> 57.68 | J47: 1 | K47: =SUMIFS(Таблица18[сумма],Таблица18[коэф],"1",Таблица18[р/р],"3/8",Таблица18[Ф. И. О.],B47) -> 0 | L47: =IF(K47=0,0,SUMIFS(Таблица18[Столбец1],Таблица18[р/р],"3/8",Таблица18[коэф],"1",Таблица18[Ф. И. О.],B47)) -> 0 | N47: 1 | O47: =SUMIFS(#REF!,#REF!,"1",#REF!,"4/12",#REF!,B47) ->  | P47: =ROUND(M47*O47,2) ->  | Q47: =INDEX(база!$G$1:$M$7,MATCH($D46,база!$G$1:$G$7,0),MATCH(Q$4,база!$G$1:$M$1,0)) -> 69.36 | R47: 1 | S47: =SUMIFS(Таблица18[сумма],Таблица18[р/р],"4/16",Таблица18[коэф],"1",Таблица18[Ф. И. О.],B47) -> 0 | T47: =IF(S47=0,0,SUMIFS(Таблица18[Столбец1],Таблица18[р/р],"4/16",Таблица18[коэф],"1",Таблица18[Ф. И. О.],B47)) -> 0 | U47: =INDEX(база!$G$1:$M$7,MATCH($D46,база!$G$1:$G$7,0),MATCH(U$4,база!$G$1:$M$1,0)) -> 81.04 | V47: 1 | W47: =SUMIFS(Таблица18[сумма],Таблица18[коэф],"1",Таблица18[р/р],"4/24",Таблица18[Ф. И. О.],B47) -> 0 | X47: =IF(W47=0,0,SUMIFS(Таблица18[Столбец1],Таблица18[р/р],"4/24",Таблица18[коэф],"1",Таблица18[Ф. И. О.],Лист1!B47)) -> 0 | AC47: =IF(SUMIFS(Таблица18[Столбец1],Таблица18[Ф. И. О.],B47)=Z46,"",B47&" СУММА не верна") -> 
E48: =INDEX(база!$G$1:$M$7,MATCH($D46,база!$G$1:$G$7,0),MATCH(E$4,база!$G$1:$M$1,0)) -> 51.84 | H48: =IF(G48=0,0,SUMIFS(Таблица18[Столбец1],Таблица18[р/р],"3/4",Таблица18[коэф],"1.1",Таблица18[Ф. И. О.],B47)) -> 0 | I48: =INDEX(база!$G$1:$M$7,MATCH($D46,база!$G$1:$G$7,0),MATCH(I$4,база!$G$1:$M$1,0)) -> 57.68 | J48: 1.1 | K48: =SUMIFS(Таблица18[сумма],Таблица18[коэф],"1",Таблица18[р/р],"3/8",Таблица18[Ф. И. О.],B48) -> 0 | L48: =IF(K48=0,0,SUMIFS(Таблица18[Столбец1],Таблица18[р/р],"3/8",Таблица18[коэф],"1.1",Таблица18[Ф. И. О.],B47)) -> 0 | N48: 1.1 | O48: =SUMIFS(#REF!,#REF!,"1.1",#REF!,"3/12",#REF!,B47) ->  | P48: =ROUND(M48*N48*O48,2) ->  | Q48: =INDEX(база!$G$1:$M$7,MATCH($D46,база!$G$1:$G$7,0),MATCH(Q$4,база!$G$1:$M$1,0)) -> 69.36 | R48: 1.1 | S48: =SUMIFS(Таблица18[сумма],Таблица18[р/р],"3/16",Таблица18[коэф],"1.1",Таблица18[Ф. И. О.],B47) -> 0 | T48: =IF(S48=0,0,SUMIFS(Таблица18[Столбец1],Таблица18[р/р],"3/16",Таблица18[коэф],"1.1",Таблица18[Ф. И. О.],B47)) -> 0 | U48: =INDEX(база!$G$1:$M$7,MATCH($D46,база!$G$1:$G$7,0),MATCH(U$4,база!$G$1:$M$1,0)) -> 81.04 | V48: 1.1 | W48: =SUMIFS(Таблица18[сумма],Таблица18[коэф],"1.1",Таблица18[р/р],"3/24",Таблица18[Ф. И. О.],B47) -> 0 | X48: =IF(W48=0,0,SUMIFS(Таблица18[Столбец1],Таблица18[р/р],"3/24",Таблица18[коэф],"1.1",Таблица18[Ф. И. О.],Лист1!B47)) -> 0 | AC48: =IF(SUMIFS(Таблица18[сумма],Таблица18[Ф. И. О.],B47)=Y46,"",B47&" часы не верны") -> 
E49: =INDEX(база!$G$1:$M$7,MATCH($D46,база!$G$1:$G$7,0),MATCH(E$4,база!$G$1:$M$1,0)) -> 51.84 | F49: 1.5 | G49: =SUMIFS(Таблица18[сумма],Таблица18[коэф],"1.5",Таблица18[р/р],"2/4",Таблица18[Ф. И. О.],B47) -> 0 | H49: =IF(G49=0,0,SUMIFS(Таблица18[Столбец1],Таблица18[р/р],"2/4",Таблица18[коэф],"1.5",Таблица18[Ф. И. О.],B47)) -> 0 | I49: =INDEX(база!$G$1:$M$7,MATCH($D46,база!$G$1:$G$7,0),MATCH(I$4,база!$G$1:$M$1,0)) -> 57.68 | J49: 1.5 | K49: =SUMIFS(Таблица18[сумма],Таблица18[коэф],"1.5",Таблица18[р/р],"4/8",Таблица18[Ф. И. О.],B47) -> 0 | L49: =IF(K49=0,0,SUMIFS(Таблица18[Столбец1],Таблица18[р/р],"4/8",Таблица18[коэф],"1.5",Таблица18[Ф. И. О.],B47)) -> 0 | N49: 1.5 | O49: =SUMIFS(#REF!,#REF!,"1.5",#REF!,"3/12",#REF!,B47) ->  | Q49: =INDEX(база!$G$1:$M$7,MATCH($D46,база!$G$1:$G$7,0),MATCH(Q$4,база!$G$1:$M$1,0)) -> 69.36 | R49: 1.5 | S49: =SUMIFS(Таблица18[сумма],Таблица18[р/р],"3/16",Таблица18[коэф],"1.5",Таблица18[Ф. И. О.],B47) -> 0 | T49: =IF(S49=0,0,SUMIFS(Таблица18[Столбец1],Таблица18[р/р],"3/16",Таблица18[коэф],"1.5",Таблица18[Ф. И. О.],B47)) -> 0 | U49: =INDEX(база!$G$1:$M$7,MATCH($D46,база!$G$1:$G$7,0),MATCH(U$4,база!$G$1:$M$1,0)) -> 81.04 | V49: 1.5 | W49: =SUMIFS(Таблица18[сумма],Таблица18[коэф],"1.5",Таблица18[р/р],"3/24",Таблица18[Ф. И. О.],B47) -> 0 | X49: =IF(W49=0,0,SUMIFS(Таблица18[Столбец1],Таблица18[р/р],"3/24",Таблица18[коэф],"1.5",Таблица18[Ф. И. О.],Лист1!B47)) -> 0
A50: 12 | C50: =INDEX(база!$E:$E, MATCH(B51,база!$B:$B,0)) -> 15556 | D50: =INDEX(база!$D:$D, MATCH(B51,база!$B:$B,0)) -> 3 | E50: =INDEX(база!$G$1:$M$7,MATCH($D50,база!$G$1:$G$7,0),MATCH(E$4,база!$G$1:$M$1,0)) -> 51.84 | F50: 1 | G50: =SUMIFS(Таблица18[сумма],Таблица18[коэф],"1",Таблица18[р/р],"2/4",Таблица18[Ф. И. О.],B51) -> 0 | H50: =IF(G50=0,0,SUMIFS(Таблица18[Столбец1],Таблица18[р/р],"2/4",Таблица18[коэф],"1",Таблица18[Ф. И. О.],B51)) -> 0 | I50: =INDEX(база!$G$1:$M$7,MATCH($D50,база!$G$1:$G$7,0),MATCH(I$4,база!$G$1:$M$1,0)) -> 57.68 | J50: 1 | K50: =SUMIFS(Таблица18[сумма],Таблица18[коэф],"1",Таблица18[р/р],"2/8",Таблица18[Ф. И. О.],B51) -> 0 | L50: =IF(K50=0,0,SUMIFS(Таблица18[Столбец1],Таблица18[р/р],"2/8",Таблица18[коэф],"1",Таблица18[Ф. И. О.],B51)) -> 0 | N50: 1 | O50: =SUMIFS(#REF!,#REF!,"1",#REF!,"3/12",#REF!,B51) ->  | Q50: =INDEX(база!$G$1:$M$7,MATCH($D50,база!$G$1:$G$7,0),MATCH(Q$4,база!$G$1:$M$1,0)) -> 69.36 | R50: 1 | S50: =SUMIFS(Таблица18[сумма],Таблица18[коэф],"1",Таблица18[р/р],"3/16",Таблица18[Ф. И. О.],B51) -> 0 | T50: =IF(S50=0,0,SUMIFS(Таблица18[Столбец1],Таблица18[р/р],"3/16",Таблица18[коэф],"1",Таблица18[Ф. И. О.],B51)) -> 0 | U50: =INDEX(база!$G$1:$M$7,MATCH($D50,база!$G$1:$G$7,0),MATCH(U$4,база!$G$1:$M$1,0)) -> 81.04 | V50: 1 | W50: =SUMIFS(Таблица18[сумма],Таблица18[коэф],"1",Таблица18[р/р],"3/24",Таблица18[Ф. И. О.],B51) -> 0 | X50: =IF(W50=0,0,SUMIFS(Таблица18[Столбец1],Таблица18[р/р],"3/24",Таблица18[коэф],"1",Таблица18[Ф. И. О.],Лист1!B51)) -> 0 | Y50: =SUM(W50:W53,S50:S53,K50:K53,G50:G53) -> 4 | Z50: =SUM(H50:H53,L50:L53,T50:T53,X50:X53) -> 1062.88
B51: работник14 | E51: =INDEX(база!$G$1:$M$7,MATCH($D50,база!$G$1:$G$7,0),MATCH(E$4,база!$G$1:$M$1,0)) -> 51.84 | F51: 1 | G51: =SUMIFS(Таблица18[сумма],Таблица18[коэф],"1",Таблица18[р/р],"3/4",Таблица18[Ф. И. О.],B51) -> 4 | H51: =IF(G51=0,0,SUMIFS(Таблица18[Столбец1],Таблица18[р/р],"3/4",Таблица18[коэф],"1",Таблица18[Ф. И. О.],B51)) -> 1062.88 | I51: =INDEX(база!$G$1:$M$7,MATCH($D50,база!$G$1:$G$7,0),MATCH(I$4,база!$G$1:$M$1,0)) -> 57.68 | J51: 1 | K51: =SUMIFS(Таблица18[сумма],Таблица18[коэф],"1",Таблица18[р/р],"3/8",Таблица18[Ф. И. О.],B51) -> 0 | L51: =IF(K51=0,0,SUMIFS(Таблица18[Столбец1],Таблица18[р/р],"3/8",Таблица18[коэф],"1",Таблица18[Ф. И. О.],B51)) -> 0 | N51: 1 | O51: =SUMIFS(#REF!,#REF!,"1",#REF!,"4/12",#REF!,B51) ->  | P51: =ROUND(M51*O51,2) ->  | Q51: =INDEX(база!$G$1:$M$7,MATCH($D50,база!$G$1:$G$7,0),MATCH(Q$4,база!$G$1:$M$1,0)) -> 69.36 | R51: 1 | S51: =SUMIFS(Таблица18[сумма],Таблица18[р/р],"4/16",Таблица18[коэф],"1",Таблица18[Ф. И. О.],B51) -> 0 | T51: =IF(S51=0,0,SUMIFS(Таблица18[Столбец1],Таблица18[р/р],"4/16",Таблица18[коэф],"1",Таблица18[Ф. И. О.],B51)) -> 0 | U51: =INDEX(база!$G$1:$M$7,MATCH($D50,база!$G$1:$G$7,0),MATCH(U$4,база!$G$1:$M$1,0)) -> 81.04 | V51: 1 | W51: =SUMIFS(Таблица18[сумма],Таблица18[коэф],"1",Таблица18[р/р],"4/24",Таблица18[Ф. И. О.],B51) -> 0 | X51: =IF(W51=0,0,SUMIFS(Таблица18[Столбец1],Таблица18[р/р],"4/24",Таблица18[коэф],"1",Таблица18[Ф. И. О.],Лист1!B51)) -> 0 | AC51: =IF(SUMIFS(Таблица18[Столбец1],Таблица18[Ф. И. О.],B51)=Z50,"",B51&" СУММА не верна") -> 
E52: =INDEX(база!$G$1:$M$7,MATCH($D50,база!$G$1:$G$7,0),MATCH(E$4,база!$G$1:$M$1,0)) -> 51.84 | H52: =IF(G52=0,0,SUMIFS(Таблица18[Столбец1],Таблица18[р/р],"3/4",Таблица18[коэф],"1.1",Таблица18[Ф. И. О.],B51)) -> 0 | I52: =INDEX(база!$G$1:$M$7,MATCH($D50,база!$G$1:$G$7,0),MATCH(I$4,база!$G$1:$M$1,0)) -> 57.68 | J52: 1.1 | K52: =SUMIFS(Таблица18[сумма],Таблица18[коэф],"1",Таблица18[р/р],"3/8",Таблица18[Ф. И. О.],B52) -> 0 | L52: =IF(K52=0,0,SUMIFS(Таблица18[Столбец1],Таблица18[р/р],"3/8",Таблица18[коэф],"1.1",Таблица18[Ф. И. О.],B51)) -> 0 | N52: 1.1 | O52: =SUMIFS(#REF!,#REF!,"1.1",#REF!,"3/12",#REF!,B51) ->  | P52: =ROUND(M52*N52*O52,2) ->  | Q52: =INDEX(база!$G$1:$M$7,MATCH($D50,база!$G$1:$G$7,0),MATCH(Q$4,база!$G$1:$M$1,0)) -> 69.36 | R52: 1.1 | S52: =SUMIFS(Таблица18[сумма],Таблица18[р/р],"3/16",Таблица18[коэф],"1.1",Таблица18[Ф. И. О.],B51) -> 0 | T52: =IF(S52=0,0,SUMIFS(Таблица18[Столбец1],Таблица18[р/р],"3/16",Таблица18[коэф],"1.1",Таблица18[Ф. И. О.],B51)) -> 0 | U52: =INDEX(база!$G$1:$M$7,MATCH($D50,база!$G$1:$G$7,0),MATCH(U$4,база!$G$1:$M$1,0)) -> 81.04 | V52: 1.1 | W52: =SUMIFS(Таблица18[сумма],Таблица18[коэф],"1.1",Таблица18[р/р],"3/24",Таблица18[Ф. И. О.],B51) -> 0 | X52: =IF(W52=0,0,SUMIFS(Таблица18[Столбец1],Таблица18[р/р],"3/24",Таблица18[коэф],"1.1",Таблица18[Ф. И. О.],Лист1!B51)) -> 0 | AC52: =IF(SUMIFS(Таблица18[сумма],Таблица18[Ф. И. О.],B51)=Y50,"",B51&" часы не верны") -> 
E53: =INDEX(база!$G$1:$M$7,MATCH($D50,база!$G$1:$G$7,0),MATCH(E$4,база!$G$1:$M$1,0)) -> 51.84 | F53: 1.5 | G53: =SUMIFS(Таблица18[сумма],Таблица18[коэф],"1.5",Таблица18[р/р],"2/4",Таблица18[Ф. И. О.],B51) -> 0 | H53: =IF(G53=0,0,SUMIFS(Таблица18[Столбец1],Таблица18[р/р],"2/4",Таблица18[коэф],"1.5",Таблица18[Ф. И. О.],B51)) -> 0 | I53: =INDEX(база!$G$1:$M$7,MATCH($D50,база!$G$1:$G$7,0),MATCH(I$4,база!$G$1:$M$1,0)) -> 57.68 | J53: 1.5 | K53: =SUMIFS(Таблица18[сумма],Таблица18[коэф],"1.5",Таблица18[р/р],"4/8",Таблица18[Ф. И. О.],B51) -> 0 | L53: =IF(K53=0,0,SUMIFS(Таблица18[Столбец1],Таблица18[р/р],"4/8",Таблица18[коэф],"1.5",Таблица18[Ф. И. О.],B51)) -> 0 | N53: 1.5 | O53: =SUMIFS(#REF!,#REF!,"1.5",#REF!,"3/12",#REF!,B51) ->  | Q53: =INDEX(база!$G$1:$M$7,MATCH($D50,база!$G$1:$G$7,0),MATCH(Q$4,база!$G$1:$M$1,0)) -> 69.36 | R53: 1.5 | S53: =SUMIFS(Таблица18[сумма],Таблица18[р/р],"3/16",Таблица18[коэф],"1.5",Таблица18[Ф. И. О.],B51) -> 0 | T53: =IF(S53=0,0,SUMIFS(Таблица18[Столбец1],Таблица18[р/р],"3/16",Таблица18[коэф],"1.5",Таблица18[Ф. И. О.],B51)) -> 0 | U53: =INDEX(база!$G$1:$M$7,MATCH($D50,база!$G$1:$G$7,0),MATCH(U$4,база!$G$1:$M$1,0)) -> 81.04 | V53: 1.5 | W53: =SUMIFS(Таблица18[сумма],Таблица18[коэф],"1.5",Таблица18[р/р],"3/24",Таблица18[Ф. И. О.],B51) -> 0 | X53: =IF(W53=0,0,SUMIFS(Таблица18[Столбец1],Таблица18[р/р],"3/24",Таблица18[коэф],"1.5",Таблица18[Ф. И. О.],Лист1!B51)) -> 0
A54: 13 | C54: =INDEX(база!$E:$E, MATCH(B55,база!$B:$B,0)) -> 15589 | D54: =INDEX(база!$D:$D, MATCH(B55,база!$B:$B,0)) -> 3 | E54: =INDEX(база!$G$1:$M$7,MATCH($D54,база!$G$1:$G$7,0),MATCH(E$4,база!$G$1:$M$1,0)) -> 51.84 | F54: 1 | G54: =SUMIFS(Таблица18[сумма],Таблица18[коэф],"1",Таблица18[р/р],"2/4",Таблица18[Ф. И. О.],B55) -> 0 | H54: =IF(G54=0,0,SUMIFS(Таблица18[Столбец1],Таблица18[р/р],"2/4",Таблица18[коэф],"1",Таблица18[Ф. И. О.],B55)) -> 0 | I54: =INDEX(база!$G$1:$M$7,MATCH($D54,база!$G$1:$G$7,0),MATCH(I$4,база!$G$1:$M$1,0)) -> 57.68 | J54: 1 | K54: =SUMIFS(Таблица18[сумма],Таблица18[коэф],"1",Таблица18[р/р],"2/8",Таблица18[Ф. И. О.],B55) -> 0 | L54: =IF(K54=0,0,SUMIFS(Таблица18[Столбец1],Таблица18[р/р],"2/8",Таблица18[коэф],"1",Таблица18[Ф. И. О.],B55)) -> 0 | N54: 1 | O54: =SUMIFS(#REF!,#REF!,"1",#REF!,"3/12",#REF!,B55) ->  | Q54: =INDEX(база!$G$1:$M$7,MATCH($D54,база!$G$1:$G$7,0),MATCH(Q$4,база!$G$1:$M$1,0)) -> 69.36 | R54: 1 | S54: =SUMIFS(Таблица18[сумма],Таблица18[коэф],"1",Таблица18[р/р],"3/16",Таблица18[Ф. И. О.],B55) -> 0 | T54: =IF(S54=0,0,SUMIFS(Таблица18[Столбец1],Таблица18[р/р],"3/16",Таблица18[коэф],"1",Таблица18[Ф. И. О.],B55)) -> 0 | U54: =INDEX(база!$G$1:$M$7,MATCH($D54,база!$G$1:$G$7,0),MATCH(U$4,база!$G$1:$M$1,0)) -> 81.04 | V54: 1 | W54: =SUMIFS(Таблица18[сумма],Таблица18[коэф],"1",Таблица18[р/р],"3/24",Таблица18[Ф. И. О.],B55) -> 0 | X54: =IF(W54=0,0,SUMIFS(Таблица18[Столбец1],Таблица18[р/р],"3/24",Таблица18[коэф],"1",Таблица18[Ф. И. О.],Лист1!B55)) -> 0 | Y54: =SUM(W54:W57,S54:S57,K54:K57,G54:G57) -> 0 | Z54: =SUM(H54:H57,L54:L57,T54:T57,X54:X57) -> 0
B55: работник15 | E55: =INDEX(база!$G$1:$M$7,MATCH($D54,база!$G$1:$G$7,0),MATCH(E$4,база!$G$1:$M$1,0)) -> 51.84 | F55: 1 | G55: =SUMIFS(Таблица18[сумма],Таблица18[коэф],"1",Таблица18[р/р],"3/4",Таблица18[Ф. И. О.],B55) -> 0 | H55: =IF(G55=0,0,SUMIFS(Таблица18[Столбец1],Таблица18[р/р],"3/4",Таблица18[коэф],"1",Таблица18[Ф. И. О.],B55)) -> 0 | I55: =INDEX(база!$G$1:$M$7,MATCH($D54,база!$G$1:$G$7,0),MATCH(I$4,база!$G$1:$M$1,0)) -> 57.68 | J55: 1 | K55: =SUMIFS(Таблица18[сумма],Таблица18[коэф],"1",Таблица18[р/р],"3/8",Таблица18[Ф. И. О.],B55) -> 0 | L55: =IF(K55=0,0,SUMIFS(Таблица18[Столбец1],Таблица18[р/р],"3/8",Таблица18[коэф],"1",Таблица18[Ф. И. О.],B55)) -> 0 | N55: 1 | O55: =SUMIFS(#REF!,#REF!,"1",#REF!,"4/12",#REF!,B55) ->  | P55: =ROUND(M55*O55,2) ->  | Q55: =INDEX(база!$G$1:$M$7,MATCH($D54,база!$G$1:$G$7,0),MATCH(Q$4,база!$G$1:$M$1,0)) -> 69.36 | R55: 1 | S55: =SUMIFS(Таблица18[сумма],Таблица18[р/р],"4/16",Таблица18[коэф],"1",Таблица18[Ф. И. О.],B55) -> 0 | T55: =IF(S55=0,0,SUMIFS(Таблица18[Столбец1],Таблица18[р/р],"4/16",Таблица18[коэф],"1",Таблица18[Ф. И. О.],B55)) -> 0 | U55: =INDEX(база!$G$1:$M$7,MATCH($D54,база!$G$1:$G$7,0),MATCH(U$4,база!$G$1:$M$1,0)) -> 81.04 | V55: 1 | W55: =SUMIFS(Таблица18[сумма],Таблица18[коэф],"1",Таблица18[р/р],"4/24",Таблица18[Ф. И. О.],B55) -> 0 | X55: =IF(W55=0,0,SUMIFS(Таблица18[Столбец1],Таблица18[р/р],"4/24",Таблица18[коэф],"1",Таблица18[Ф. И. О.],Лист1!B55)) -> 0 | AC55: =IF(SUMIFS(Таблица18[Столбец1],Таблица18[Ф. И. О.],B55)=Z54,"",B55&" СУММА не верна") -> 
E56: =INDEX(база!$G$1:$M$7,MATCH($D54,база!$G$1:$G$7,0),MATCH(E$4,база!$G$1:$M$1,0)) -> 51.84 | H56: =IF(G56=0,0,SUMIFS(Таблица18[Столбец1],Таблица18[р/р],"3/4",Таблица18[коэф],"1.1",Таблица18[Ф. И. О.],B55)) -> 0 | I56: =INDEX(база!$G$1:$M$7,MATCH($D54,база!$G$1:$G$7,0),MATCH(I$4,база!$G$1:$M$1,0)) -> 57.68 | J56: 1.1 | K56: =SUMIFS(Таблица18[сумма],Таблица18[коэф],"1",Таблица18[р/р],"3/8",Таблица18[Ф. И. О.],B56) -> 0 | L56: =IF(K56=0,0,SUMIFS(Таблица18[Столбец1],Таблица18[р/р],"3/8",Таблица18[коэф],"1.1",Таблица18[Ф. И. О.],B55)) -> 0 | N56: 1.1 | O56: =SUMIFS(#REF!,#REF!,"1.1",#REF!,"3/12",#REF!,B55) ->  | P56: =ROUND(M56*N56*O56,2) ->  | Q56: =INDEX(база!$G$1:$M$7,MATCH($D54,база!$G$1:$G$7,0),MATCH(Q$4,база!$G$1:$M$1,0)) -> 69.36 | R56: 1.1 | S56: =SUMIFS(Таблица18[сумма],Таблица18[р/р],"3/16",Таблица18[коэф],"1.1",Таблица18[Ф. И. О.],B55) -> 0 | T56: =IF(S56=0,0,SUMIFS(Таблица18[Столбец1],Таблица18[р/р],"3/16",Таблица18[коэф],"1.1",Таблица18[Ф. И. О.],B55)) -> 0 | U56: =INDEX(база!$G$1:$M$7,MATCH($D54,база!$G$1:$G$7,0),MATCH(U$4,база!$G$1:$M$1,0)) -> 81.04 | V56: 1.1 | W56: =SUMIFS(Таблица18[сумма],Таблица18[коэф],"1.1",Таблица18[р/р],"3/24",Таблица18[Ф. И. О.],B55) -> 0 | X56: =IF(W56=0,0,SUMIFS(Таблица18[Столбец1],Таблица18[р/р],"3/24",Таблица18[коэф],"1.1",Таблица18[Ф. И. О.],Лист1!B55)) -> 0 | AC56: =IF(SUMIFS(Таблица18[сумма],Таблица18[Ф. И. О.],B55)=Y54,"",B55&" часы не верны") -> 
E57: =INDEX(база!$G$1:$M$7,MATCH($D54,база!$G$1:$G$7,0),MATCH(E$4,база!$G$1:$M$1,0)) -> 51.84 | F57: 1.5 | G57: =SUMIFS(Таблица18[сумма],Таблица18[коэф],"1.5",Таблица18[р/р],"2/4",Таблица18[Ф. И. О.],B55) -> 0 | H57: =IF(G57=0,0,SUMIFS(Таблица18[Столбец1],Таблица18[р/р],"2/4",Таблица18[коэф],"1.5",Таблица18[Ф. И. О.],B55)) -> 0 | I57: =INDEX(база!$G$1:$M$7,MATCH($D54,база!$G$1:$G$7,0),MATCH(I$4,база!$G$1:$M$1,0)) -> 57.68 | J57: 1.5 | K57: =SUMIFS(Таблица18[сумма],Таблица18[коэф],"1.5",Таблица18[р/р],"4/8",Таблица18[Ф. И. О.],B55) -> 0 | L57: =IF(K57=0,0,SUMIFS(Таблица18[Столбец1],Таблица18[р/р],"4/8",Таблица18[коэф],"1.5",Таблица18[Ф. И. О.],B55)) -> 0 | N57: 1.5 | O57: =SUMIFS(#REF!,#REF!,"1.5",#REF!,"3/12",#REF!,B55) ->  | Q57: =INDEX(база!$G$1:$M$7,MATCH($D54,база!$G$1:$G$7,0),MATCH(Q$4,база!$G$1:$M$1,0)) -> 69.36 | R57: 1.5 | S57: =SUMIFS(Таблица18[сумма],Таблица18[р/р],"3/16",Таблица18[коэф],"1.5",Таблица18[Ф. И. О.],B55) -> 0 | T57: =IF(S57=0,0,SUMIFS(Таблица18[Столбец1],Таблица18[р/р],"3/16",Таблица18[коэф],"1.5",Таблица18[Ф. И. О.],B55)) -> 0 | U57: =INDEX(база!$G$1:$M$7,MATCH($D54,база!$G$1:$G$7,0),MATCH(U$4,база!$G$1:$M$1,0)) -> 81.04 | V57: 1.5 | W57: =SUMIFS(Таблица18[сумма],Таблица18[коэф],"1.5",Таблица18[р/р],"3/24",Таблица18[Ф. И. О.],B55) -> 0 | X57: =IF(W57=0,0,SUMIFS(Таблица18[Столбец1],Таблица18[р/р],"3/24",Таблица18[коэф],"1.5",Таблица18[Ф. И. О.],Лист1!B55)) -> 0
A58: 14 | C58: =INDEX(база!$E:$E, MATCH(B59,база!$B:$B,0)) -> 15098 | D58: =INDEX(база!$D:$D, MATCH(B59,база!$B:$B,0)) -> 3 | E58: =INDEX(база!$G$1:$M$7,MATCH($D58,база!$G$1:$G$7,0),MATCH(E$4,база!$G$1:$M$1,0)) -> 51.84 | F58: 1 | G58: =SUMIFS(Таблица18[сумма],Таблица18[коэф],"1",Таблица18[р/р],"2/4",Таблица18[Ф. И. О.],B59) -> 0 | H58: =IF(G58=0,0,SUMIFS(Таблица18[Столбец1],Таблица18[р/р],"2/4",Таблица18[коэф],"1",Таблица18[Ф. И. О.],B59)) -> 0 | I58: =INDEX(база!$G$1:$M$7,MATCH($D58,база!$G$1:$G$7,0),MATCH(I$4,база!$G$1:$M$1,0)) -> 57.68 | J58: 1 | K58: =SUMIFS(Таблица18[сумма],Таблица18[коэф],"1",Таблица18[р/р],"2/8",Таблица18[Ф. И. О.],B59) -> 0 | L58: =IF(K58=0,0,SUMIFS(Таблица18[Столбец1],Таблица18[р/р],"2/8",Таблица18[коэф],"1",Таблица18[Ф. И. О.],B59)) -> 0 | N58: 1 | O58: =SUMIFS(#REF!,#REF!,"1",#REF!,"3/12",#REF!,B59) ->  | Q58: =INDEX(база!$G$1:$M$7,MATCH($D58,база!$G$1:$G$7,0),MATCH(Q$4,база!$G$1:$M$1,0)) -> 69.36 | R58: 1 | S58: =SUMIFS(Таблица18[сумма],Таблица18[коэф],"1",Таблица18[р/р],"3/16",Таблица18[Ф. И. О.],B59) -> 0 | T58: =IF(S58=0,0,SUMIFS(Таблица18[Столбец1],Таблица18[р/р],"3/16",Таблица18[коэф],"1",Таблица18[Ф. И. О.],B59)) -> 0 | U58: =INDEX(база!$G$1:$M$7,MATCH($D58,база!$G$1:$G$7,0),MATCH(U$4,база!$G$1:$M$1,0)) -> 81.04 | V58: 1 | W58: =SUMIFS(Таблица18[сумма],Таблица18[коэф],"1",Таблица18[р/р],"3/24",Таблица18[Ф. И. О.],B59) -> 0 | X58: =IF(W58=0,0,SUMIFS(Таблица18[Столбец1],Таблица18[р/р],"3/24",Таблица18[коэф],"1",Таблица18[Ф. И. О.],Лист1!B59)) -> 0 | Y58: =SUM(W58:W61,S58:S61,K58:K61,G58:G61) -> 0 | Z58: =SUM(H58:H61,L58:L61,T58:T61,X58:X61) -> 0
B59: работник16 | E59: =INDEX(база!$G$1:$M$7,MATCH($D58,база!$G$1:$G$7,0),MATCH(E$4,база!$G$1:$M$1,0)) -> 51.84 | F59: 1 | G59: =SUMIFS(Таблица18[сумма],Таблица18[коэф],"1",Таблица18[р/р],"3/4",Таблица18[Ф. И. О.],B59) -> 0 | H59: =IF(G59=0,0,SUMIFS(Таблица18[Столбец1],Таблица18[р/р],"3/4",Таблица18[коэф],"1",Таблица18[Ф. И. О.],B59)) -> 0 | I59: =INDEX(база!$G$1:$M$7,MATCH($D58,база!$G$1:$G$7,0),MATCH(I$4,база!$G$1:$M$1,0)) -> 57.68 | J59: 1 | K59: =SUMIFS(Таблица18[сумма],Таблица18[коэф],"1",Таблица18[р/р],"3/8",Таблица18[Ф. И. О.],B59) -> 0 | L59: =IF(K59=0,0,SUMIFS(Таблица18[Столбец1],Таблица18[р/р],"3/8",Таблица18[коэф],"1",Таблица18[Ф. И. О.],B59)) -> 0 | N59: 1 | O59: =SUMIFS(#REF!,#REF!,"1",#REF!,"4/12",#REF!,B59) ->  | P59: =ROUND(M59*O59,2) ->  | Q59: =INDEX(база!$G$1:$M$7,MATCH($D58,база!$G$1:$G$7,0),MATCH(Q$4,база!$G$1:$M$1,0)) -> 69.36 | R59: 1 | S59: =SUMIFS(Таблица18[сумма],Таблица18[р/р],"4/16",Таблица18[коэф],"1",Таблица18[Ф. И. О.],B59) -> 0 | T59: =IF(S59=0,0,SUMIFS(Таблица18[Столбец1],Таблица18[р/р],"4/16",Таблица18[коэф],"1",Таблица18[Ф. И. О.],B59)) -> 0 | U59: =INDEX(база!$G$1:$M$7,MATCH($D58,база!$G$1:$G$7,0),MATCH(U$4,база!$G$1:$M$1,0)) -> 81.04 | V59: 1 | W59: =SUMIFS(Таблица18[сумма],Таблица18[коэф],"1",Таблица18[р/р],"4/24",Таблица18[Ф. И. О.],B59) -> 0 | X59: =IF(W59=0,0,SUMIFS(Таблица18[Столбец1],Таблица18[р/р],"4/24",Таблица18[коэф],"1",Таблица18[Ф. И. О.],Лист1!B59)) -> 0 | AC59: =IF(SUMIFS(Таблица18[Столбец1],Таблица18[Ф. И. О.],B59)=Z58,"",B59&" СУММА не верна") -> 
E60: =INDEX(база!$G$1:$M$7,MATCH($D58,база!$G$1:$G$7,0),MATCH(E$4,база!$G$1:$M$1,0)) -> 51.84 | H60: =IF(G60=0,0,SUMIFS(Таблица18[Столбец1],Таблица18[р/р],"3/4",Таблица18[коэф],"1.1",Таблица18[Ф. И. О.],B59)) -> 0 | I60: =INDEX(база!$G$1:$M$7,MATCH($D58,база!$G$1:$G$7,0),MATCH(I$4,база!$G$1:$M$1,0)) -> 57.68 | J60: 1.1 | K60: =SUMIFS(Таблица18[сумма],Таблица18[коэф],"1",Таблица18[р/р],"3/8",Таблица18[Ф. И. О.],B60) -> 0 | L60: =IF(K60=0,0,SUMIFS(Таблица18[Столбец1],Таблица18[р/р],"3/8",Таблица18[коэф],"1.1",Таблица18[Ф. И. О.],B59)) -> 0 | N60: 1.1 | O60: =SUMIFS(#REF!,#REF!,"1.1",#REF!,"3/12",#REF!,B59) ->  | P60: =ROUND(M60*N60*O60,2) ->  | Q60: =INDEX(база!$G$1:$M$7,MATCH($D58,база!$G$1:$G$7,0),MATCH(Q$4,база!$G$1:$M$1,0)) -> 69.36 | R60: 1.1 | S60: =SUMIFS(Таблица18[сумма],Таблица18[р/р],"3/16",Таблица18[коэф],"1.1",Таблица18[Ф. И. О.],B59) -> 0 | T60: =IF(S60=0,0,SUMIFS(Таблица18[Столбец1],Таблица18[р/р],"3/16",Таблица18[коэф],"1.1",Таблица18[Ф. И. О.],B59)) -> 0 | U60: =INDEX(база!$G$1:$M$7,MATCH($D58,база!$G$1:$G$7,0),MATCH(U$4,база!$G$1:$M$1,0)) -> 81.04 | V60: 1.1 | W60: =SUMIFS(Таблица18[сумма],Таблица18[коэф],"1.1",Таблица18[р/р],"3/24",Таблица18[Ф. И. О.],B59) -> 0 | X60: =IF(W60=0,0,SUMIFS(Таблица18[Столбец1],Таблица18[р/р],"3/24",Таблица18[коэф],"1.1",Таблица18[Ф. И. О.],Лист1!B59)) -> 0 | AC60: =IF(SUMIFS(Таблица18[сумма],Таблица18[Ф. И. О.],B59)=Y58,"",B59&" часы не верны") -> 
E61: =INDEX(база!$G$1:$M$7,MATCH($D58,база!$G$1:$G$7,0),MATCH(E$4,база!$G$1:$M$1,0)) -> 51.84 | F61: 1.5 | G61: =SUMIFS(Таблица18[сумма],Таблица18[коэф],"1.5",Таблица18[р/р],"2/4",Таблица18[Ф. И. О.],B59) -> 0 | H61: =IF(G61=0,0,SUMIFS(Таблица18[Столбец1],Таблица18[р/р],"2/4",Таблица18[коэф],"1.5",Таблица18[Ф. И. О.],B59)) -> 0 | I61: =INDEX(база!$G$1:$M$7,MATCH($D58,база!$G$1:$G$7,0),MATCH(I$4,база!$G$1:$M$1,0)) -> 57.68 | J61: 1.5 | K61: =SUMIFS(Таблица18[сумма],Таблица18[коэф],"1.5",Таблица18[р/р],"4/8",Таблица18[Ф. И. О.],B59) -> 0 | L61: =IF(K61=0,0,SUMIFS(Таблица18[Столбец1],Таблица18[р/р],"4/8",Таблица18[коэф],"1.5",Таблица18[Ф. И. О.],B59)) -> 0 | N61: 1.5 | O61: =SUMIFS(#REF!,#REF!,"1.5",#REF!,"3/12",#REF!,B59) ->  | Q61: =INDEX(база!$G$1:$M$7,MATCH($D58,база!$G$1:$G$7,0),MATCH(Q$4,база!$G$1:$M$1,0)) -> 69.36 | R61: 1.5 | S61: =SUMIFS(Таблица18[сумма],Таблица18[р/р],"3/16",Таблица18[коэф],"1.5",Таблица18[Ф. И. О.],B59) -> 0 | T61: =IF(S61=0,0,SUMIFS(Таблица18[Столбец1],Таблица18[р/р],"3/16",Таблица18[коэф],"1.5",Таблица18[Ф. И. О.],B59)) -> 0 | U61: =INDEX(база!$G$1:$M$7,MATCH($D58,база!$G$1:$G$7,0),MATCH(U$4,база!$G$1:$M$1,0)) -> 81.04 | V61: 1.5 | W61: =SUMIFS(Таблица18[сумма],Таблица18[коэф],"1.5",Таблица18[р/р],"3/24",Таблица18[Ф. И. О.],B59) -> 0 | X61: =IF(W61=0,0,SUMIFS(Таблица18[Столбец1],Таблица18[р/р],"3/24",Таблица18[коэф],"1.5",Таблица18[Ф. И. О.],Лист1!B59)) -> 0
A62: 15 | C62: =INDEX(база!$E:$E, MATCH(B63,база!$B:$B,0)) -> 15237 | D62: =INDEX(база!$D:$D, MATCH(B63,база!$B:$B,0)) -> 3 | E62: =INDEX(база!$G$1:$M$7,MATCH($D62,база!$G$1:$G$7,0),MATCH(E$4,база!$G$1:$M$1,0)) -> 51.84 | F62: 1 | G62: =SUMIFS(Таблица18[сумма],Таблица18[коэф],"1",Таблица18[р/р],"2/4",Таблица18[Ф. И. О.],B63) -> 0 | H62: =IF(G62=0,0,SUMIFS(Таблица18[Столбец1],Таблица18[р/р],"2/4",Таблица18[коэф],"1",Таблица18[Ф. И. О.],B63)) -> 0 | I62: =INDEX(база!$G$1:$M$7,MATCH($D62,база!$G$1:$G$7,0),MATCH(I$4,база!$G$1:$M$1,0)) -> 57.68 | J62: 1 | K62: =SUMIFS(Таблица18[сумма],Таблица18[коэф],"1",Таблица18[р/р],"2/8",Таблица18[Ф. И. О.],B63) -> 0 | L62: =IF(K62=0,0,SUMIFS(Таблица18[Столбец1],Таблица18[р/р],"2/8",Таблица18[коэф],"1",Таблица18[Ф. И. О.],B63)) -> 0 | N62: 1 | O62: =SUMIFS(#REF!,#REF!,"1",#REF!,"3/12",#REF!,B63) ->  | Q62: =INDEX(база!$G$1:$M$7,MATCH($D62,база!$G$1:$G$7,0),MATCH(Q$4,база!$G$1:$M$1,0)) -> 69.36 | R62: 1 | S62: =SUMIFS(Таблица18[сумма],Таблица18[коэф],"1",Таблица18[р/р],"3/16",Таблица18[Ф. И. О.],B63) -> 0 | T62: =IF(S62=0,0,SUMIFS(Таблица18[Столбец1],Таблица18[р/р],"3/16",Таблица18[коэф],"1",Таблица18[Ф. И. О.],B63)) -> 0 | U62: =INDEX(база!$G$1:$M$7,MATCH($D62,база!$G$1:$G$7,0),MATCH(U$4,база!$G$1:$M$1,0)) -> 81.04 | V62: 1 | W62: =SUMIFS(Таблица18[сумма],Таблица18[коэф],"1",Таблица18[р/р],"3/24",Таблица18[Ф. И. О.],B63) -> 0 | X62: =IF(W62=0,0,SUMIFS(Таблица18[Столбец1],Таблица18[р/р],"3/24",Таблица18[коэф],"1",Таблица18[Ф. И. О.],Лист1!B63)) -> 0 | Y62: =SUM(W62:W65,S62:S65,K62:K65,G62:G65) -> 0 | Z62: =SUM(H62:H65,L62:L65,T62:T65,X62:X65) -> 0
B63: работник17 | E63: =INDEX(база!$G$1:$M$7,MATCH($D62,база!$G$1:$G$7,0),MATCH(E$4,база!$G$1:$M$1,0)) -> 51.84 | F63: 1 | G63: =SUMIFS(Таблица18[сумма],Таблица18[коэф],"1",Таблица18[р/р],"3/4",Таблица18[Ф. И. О.],B63) -> 0 | H63: =IF(G63=0,0,SUMIFS(Таблица18[Столбец1],Таблица18[р/р],"3/4",Таблица18[коэф],"1",Таблица18[Ф. И. О.],B63)) -> 0 | I63: =INDEX(база!$G$1:$M$7,MATCH($D62,база!$G$1:$G$7,0),MATCH(I$4,база!$G$1:$M$1,0)) -> 57.68 | J63: 1 | K63: =SUMIFS(Таблица18[сумма],Таблица18[коэф],"1",Таблица18[р/р],"3/8",Таблица18[Ф. И. О.],B63) -> 0 | L63: =IF(K63=0,0,SUMIFS(Таблица18[Столбец1],Таблица18[р/р],"3/8",Таблица18[коэф],"1",Таблица18[Ф. И. О.],B63)) -> 0 | N63: 1 | O63: =SUMIFS(#REF!,#REF!,"1",#REF!,"4/12",#REF!,B63) ->  | P63: =ROUND(M63*O63,2) ->  | Q63: =INDEX(база!$G$1:$M$7,MATCH($D62,база!$G$1:$G$7,0),MATCH(Q$4,база!$G$1:$M$1,0)) -> 69.36 | R63: 1 | S63: =SUMIFS(Таблица18[сумма],Таблица18[р/р],"4/16",Таблица18[коэф],"1",Таблица18[Ф. И. О.],B63) -> 0 | T63: =IF(S63=0,0,SUMIFS(Таблица18[Столбец1],Таблица18[р/р],"4/16",Таблица18[коэф],"1",Таблица18[Ф. И. О.],B63)) -> 0 | U63: =INDEX(база!$G$1:$M$7,MATCH($D62,база!$G$1:$G$7,0),MATCH(U$4,база!$G$1:$M$1,0)) -> 81.04 | V63: 1 | W63: =SUMIFS(Таблица18[сумма],Таблица18[коэф],"1",Таблица18[р/р],"4/24",Таблица18[Ф. И. О.],B63) -> 0 | X63: =IF(W63=0,0,SUMIFS(Таблица18[Столбец1],Таблица18[р/р],"4/24",Таблица18[коэф],"1",Таблица18[Ф. И. О.],Лист1!B63)) -> 0 | AC63: =IF(SUMIFS(Таблица18[Столбец1],Таблица18[Ф. И. О.],B63)=Z62,"",B63&" СУММА не верна") -> 
E64: =INDEX(база!$G$1:$M$7,MATCH($D62,база!$G$1:$G$7,0),MATCH(E$4,база!$G$1:$M$1,0)) -> 51.84 | H64: =IF(G64=0,0,SUMIFS(Таблица18[Столбец1],Таблица18[р/р],"3/4",Таблица18[коэф],"1.1",Таблица18[Ф. И. О.],B63)) -> 0 | I64: =INDEX(база!$G$1:$M$7,MATCH($D62,база!$G$1:$G$7,0),MATCH(I$4,база!$G$1:$M$1,0)) -> 57.68 | J64: 1.1 | K64: =SUMIFS(Таблица18[сумма],Таблица18[коэф],"1",Таблица18[р/р],"3/8",Таблица18[Ф. И. О.],B64) -> 0 | L64: =IF(K64=0,0,SUMIFS(Таблица18[Столбец1],Таблица18[р/р],"3/8",Таблица18[коэф],"1.1",Таблица18[Ф. И. О.],B63)) -> 0 | N64: 1.1 | O64: =SUMIFS(#REF!,#REF!,"1.1",#REF!,"3/12",#REF!,B63) ->  | P64: =ROUND(M64*N64*O64,2) ->  | Q64: =INDEX(база!$G$1:$M$7,MATCH($D62,база!$G$1:$G$7,0),MATCH(Q$4,база!$G$1:$M$1,0)) -> 69.36 | R64: 1.1 | S64: =SUMIFS(Таблица18[сумма],Таблица18[р/р],"3/16",Таблица18[коэф],"1.1",Таблица18[Ф. И. О.],B63) -> 0 | T64: =IF(S64=0,0,SUMIFS(Таблица18[Столбец1],Таблица18[р/р],"3/16",Таблица18[коэф],"1.1",Таблица18[Ф. И. О.],B63)) -> 0 | U64: =INDEX(база!$G$1:$M$7,MATCH($D62,база!$G$1:$G$7,0),MATCH(U$4,база!$G$1:$M$1,0)) -> 81.04 | V64: 1.1 | W64: =SUMIFS(Таблица18[сумма],Таблица18[коэф],"1.1",Таблица18[р/р],"3/24",Таблица18[Ф. И. О.],B63) -> 0 | X64: =IF(W64=0,0,SUMIFS(Таблица18[Столбец1],Таблица18[р/р],"3/24",Таблица18[коэф],"1.1",Таблица18[Ф. И. О.],Лист1!B63)) -> 0 | AC64: =IF(SUMIFS(Таблица18[сумма],Таблица18[Ф. И. О.],B63)=Y62,"",B63&" часы не верны") -> 
E65: =INDEX(база!$G$1:$M$7,MATCH($D62,база!$G$1:$G$7,0),MATCH(E$4,база!$G$1:$M$1,0)) -> 51.84 | F65: 1.5 | G65: =SUMIFS(Таблица18[сумма],Таблица18[коэф],"1.5",Таблица18[р/р],"2/4",Таблица18[Ф. И. О.],B63) -> 0 | H65: =IF(G65=0,0,SUMIFS(Таблица18[Столбец1],Таблица18[р/р],"2/4",Таблица18[коэф],"1.5",Таблица18[Ф. И. О.],B63)) -> 0 | I65: =INDEX(база!$G$1:$M$7,MATCH($D62,база!$G$1:$G$7,0),MATCH(I$4,база!$G$1:$M$1,0)) -> 57.68 | J65: 1.5 | K65: =SUMIFS(Таблица18[сумма],Таблица18[коэф],"1.5",Таблица18[р/р],"4/8",Таблица18[Ф. И. О.],B63) -> 0 | L65: =IF(K65=0,0,SUMIFS(Таблица18[Столбец1],Таблица18[р/р],"4/8",Таблица18[коэф],"1.5",Таблица18[Ф. И. О.],B63)) -> 0 | N65: 1.5 | O65: =SUMIFS(#REF!,#REF!,"1.5",#REF!,"3/12",#REF!,B63) ->  | Q65: =INDEX(база!$G$1:$M$7,MATCH($D62,база!$G$1:$G$7,0),MATCH(Q$4,база!$G$1:$M$1,0)) -> 69.36 | R65: 1.5 | S65: =SUMIFS(Таблица18[сумма],Таблица18[р/р],"3/16",Таблица18[коэф],"1.5",Таблица18[Ф. И. О.],B63) -> 0 | T65: =IF(S65=0,0,SUMIFS(Таблица18[Столбец1],Таблица18[р/р],"3/16",Таблица18[коэф],"1.5",Таблица18[Ф. И. О.],B63)) -> 0 | U65: =INDEX(база!$G$1:$M$7,MATCH($D62,база!$G$1:$G$7,0),MATCH(U$4,база!$G$1:$M$1,0)) -> 81.04 | V65: 1.5 | W65: =SUMIFS(Таблица18[сумма],Таблица18[коэф],"1.5",Таблица18[р/р],"3/24",Таблица18[Ф. И. О.],B63) -> 0 | X65: =IF(W65=0,0,SUMIFS(Таблица18[Столбец1],Таблица18[р/р],"3/24",Таблица18[коэф],"1.5",Таблица18[Ф. И. О.],Лист1!B63)) -> 0
A66: 16 | C66: =INDEX(база!$E:$E, MATCH(B67,база!$B:$B,0)) -> 14693 | D66: =INDEX(база!$D:$D, MATCH(B67,база!$B:$B,0)) -> 3 | E66: =INDEX(база!$G$1:$M$7,MATCH($D66,база!$G$1:$G$7,0),MATCH(E$4,база!$G$1:$M$1,0)) -> 51.84 | F66: 1 | G66: =SUMIFS(Таблица18[сумма],Таблица18[коэф],"1",Таблица18[р/р],"2/4",Таблица18[Ф. И. О.],B67) -> 0 | H66: =IF(G66=0,0,SUMIFS(Таблица18[Столбец1],Таблица18[р/р],"2/4",Таблица18[коэф],"1",Таблица18[Ф. И. О.],B67)) -> 0 | I66: =INDEX(база!$G$1:$M$7,MATCH($D66,база!$G$1:$G$7,0),MATCH(I$4,база!$G$1:$M$1,0)) -> 57.68 | J66: 1 | K66: =SUMIFS(Таблица18[сумма],Таблица18[коэф],"1",Таблица18[р/р],"2/8",Таблица18[Ф. И. О.],B67) -> 0 | L66: =IF(K66=0,0,SUMIFS(Таблица18[Столбец1],Таблица18[р/р],"2/8",Таблица18[коэф],"1",Таблица18[Ф. И. О.],B67)) -> 0 | N66: 1 | O66: =SUMIFS(#REF!,#REF!,"1",#REF!,"3/12",#REF!,B67) ->  | Q66: =INDEX(база!$G$1:$M$7,MATCH($D66,база!$G$1:$G$7,0),MATCH(Q$4,база!$G$1:$M$1,0)) -> 69.36 | R66: 1 | S66: =SUMIFS(Таблица18[сумма],Таблица18[коэф],"1",Таблица18[р/р],"3/16",Таблица18[Ф. И. О.],B67) -> 0 | T66: =IF(S66=0,0,SUMIFS(Таблица18[Столбец1],Таблица18[р/р],"3/16",Таблица18[коэф],"1",Таблица18[Ф. И. О.],B67)) -> 0 | U66: =INDEX(база!$G$1:$M$7,MATCH($D66,база!$G$1:$G$7,0),MATCH(U$4,база!$G$1:$M$1,0)) -> 81.04 | V66: 1 | W66: =SUMIFS(Таблица18[сумма],Таблица18[коэф],"1",Таблица18[р/р],"3/24",Таблица18[Ф. И. О.],B67) -> 0 | X66: =IF(W66=0,0,SUMIFS(Таблица18[Столбец1],Таблица18[р/р],"3/24",Таблица18[коэф],"1",Таблица18[Ф. И. О.],Лист1!B67)) -> 0 | Y66: =SUM(W66:W69,S66:S69,K66:K69,G66:G69) -> 0 | Z66: =SUM(H66:H69,L66:L69,T66:T69,X66:X69) -> 0
B67: работник18 | E67: =INDEX(база!$G$1:$M$7,MATCH($D66,база!$G$1:$G$7,0),MATCH(E$4,база!$G$1:$M$1,0)) -> 51.84 | F67: 1 | G67: =SUMIFS(Таблица18[сумма],Таблица18[коэф],"1",Таблица18[р/р],"3/4",Таблица18[Ф. И. О.],B67) -> 0 | H67: =IF(G67=0,0,SUMIFS(Таблица18[Столбец1],Таблица18[р/р],"3/4",Таблица18[коэф],"1",Таблица18[Ф. И. О.],B67)) -> 0 | I67: =INDEX(база!$G$1:$M$7,MATCH($D66,база!$G$1:$G$7,0),MATCH(I$4,база!$G$1:$M$1,0)) -> 57.68 | J67: 1 | K67: =SUMIFS(Таблица18[сумма],Таблица18[коэф],"1",Таблица18[р/р],"3/8",Таблица18[Ф. И. О.],B67) -> 0 | L67: =IF(K67=0,0,SUMIFS(Таблица18[Столбец1],Таблица18[р/р],"3/8",Таблица18[коэф],"1",Таблица18[Ф. И. О.],B67)) -> 0 | N67: 1 | O67: =SUMIFS(#REF!,#REF!,"1",#REF!,"4/12",#REF!,B67) ->  | P67: =ROUND(M67*O67,2) ->  | Q67: =INDEX(база!$G$1:$M$7,MATCH($D66,база!$G$1:$G$7,0),MATCH(Q$4,база!$G$1:$M$1,0)) -> 69.36 | R67: 1 | S67: =SUMIFS(Таблица18[сумма],Таблица18[р/р],"4/16",Таблица18[коэф],"1",Таблица18[Ф. И. О.],B67) -> 0 | T67: =IF(S67=0,0,SUMIFS(Таблица18[Столбец1],Таблица18[р/р],"4/16",Таблица18[коэф],"1",Таблица18[Ф. И. О.],B67)) -> 0 | U67: =INDEX(база!$G$1:$M$7,MATCH($D66,база!$G$1:$G$7,0),MATCH(U$4,база!$G$1:$M$1,0)) -> 81.04 | V67: 1 | W67: =SUMIFS(Таблица18[сумма],Таблица18[коэф],"1",Таблица18[р/р],"4/24",Таблица18[Ф. И. О.],B67) -> 0 | X67: =IF(W67=0,0,SUMIFS(Таблица18[Столбец1],Таблица18[р/р],"4/24",Таблица18[коэф],"1",Таблица18[Ф. И. О.],Лист1!B67)) -> 0 | AC67: =IF(SUMIFS(Таблица18[Столбец1],Таблица18[Ф. И. О.],B67)=Z66,"",B67&" СУММА не верна") -> 
E68: =INDEX(база!$G$1:$M$7,MATCH($D66,база!$G$1:$G$7,0),MATCH(E$4,база!$G$1:$M$1,0)) -> 51.84 | H68: =IF(G68=0,0,SUMIFS(Таблица18[Столбец1],Таблица18[р/р],"3/4",Таблица18[коэф],"1.1",Таблица18[Ф. И. О.],B67)) -> 0 | I68: =INDEX(база!$G$1:$M$7,MATCH($D66,база!$G$1:$G$7,0),MATCH(I$4,база!$G$1:$M$1,0)) -> 57.68 | J68: 1.1 | K68: =SUMIFS(Таблица18[сумма],Таблица18[коэф],"1",Таблица18[р/р],"3/8",Таблица18[Ф. И. О.],B68) -> 0 | L68: =IF(K68=0,0,SUMIFS(Таблица18[Столбец1],Таблица18[р/р],"3/8",Таблица18[коэф],"1.1",Таблица18[Ф. И. О.],B67)) -> 0 | N68: 1.1 | O68: =SUMIFS(#REF!,#REF!,"1.1",#REF!,"3/12",#REF!,B67) ->  | P68: =ROUND(M68*N68*O68,2) ->  | Q68: =INDEX(база!$G$1:$M$7,MATCH($D66,база!$G$1:$G$7,0),MATCH(Q$4,база!$G$1:$M$1,0)) -> 69.36 | R68: 1.1 | S68: =SUMIFS(Таблица18[сумма],Таблица18[р/р],"3/16",Таблица18[коэф],"1.1",Таблица18[Ф. И. О.],B67) -> 0 | T68: =IF(S68=0,0,SUMIFS(Таблица18[Столбец1],Таблица18[р/р],"3/16",Таблица18[коэф],"1.1",Таблица18[Ф. И. О.],B67)) -> 0 | U68: =INDEX(база!$G$1:$M$7,MATCH($D66,база!$G$1:$G$7,0),MATCH(U$4,база!$G$1:$M$1,0)) -> 81.04 | V68: 1.1 | W68: =SUMIFS(Таблица18[сумма],Таблица18[коэф],"1.1",Таблица18[р/р],"3/24",Таблица18[Ф. И. О.],B67) -> 0 | X68: =IF(W68=0,0,SUMIFS(Таблица18[Столбец1],Таблица18[р/р],"3/24",Таблица18[коэф],"1.1",Таблица18[Ф. И. О.],Лист1!B67)) -> 0 | AC68: =IF(SUMIFS(Таблица18[сумма],Таблица18[Ф. И. О.],B67)=Y66,"",B67&" часы не верны") -> 
E69: =INDEX(база!$G$1:$M$7,MATCH($D66,база!$G$1:$G$7,0),MATCH(E$4,база!$G$1:$M$1,0)) -> 51.84 | F69: 1.5 | G69: =SUMIFS(Таблица18[сумма],Таблица18[коэф],"1.5",Таблица18[р/р],"2/4",Таблица18[Ф. И. О.],B67) -> 0 | H69: =IF(G69=0,0,SUMIFS(Таблица18[Столбец1],Таблица18[р/р],"2/4",Таблица18[коэф],"1.5",Таблица18[Ф. И. О.],B67)) -> 0 | I69: =INDEX(база!$G$1:$M$7,MATCH($D66,база!$G$1:$G$7,0),MATCH(I$4,база!$G$1:$M$1,0)) -> 57.68 | J69: 1.5 | K69: =SUMIFS(Таблица18[сумма],Таблица18[коэф],"1.5",Таблица18[р/р],"4/8",Таблица18[Ф. И. О.],B67) -> 0 | L69: =IF(K69=0,0,SUMIFS(Таблица18[Столбец1],Таблица18[р/р],"4/8",Таблица18[коэф],"1.5",Таблица18[Ф. И. О.],B67)) -> 0 | N69: 1.5 | O69: =SUMIFS(#REF!,#REF!,"1.5",#REF!,"3/12",#REF!,B67) ->  | Q69: =INDEX(база!$G$1:$M$7,MATCH($D66,база!$G$1:$G$7,0),MATCH(Q$4,база!$G$1:$M$1,0)) -> 69.36 | R69: 1.5 | S69: =SUMIFS(Таблица18[сумма],Таблица18[р/р],"3/16",Таблица18[коэф],"1.5",Таблица18[Ф. И. О.],B67) -> 0 | T69: =IF(S69=0,0,SUMIFS(Таблица18[Столбец1],Таблица18[р/р],"3/16",Таблица18[коэф],"1.5",Таблица18[Ф. И. О.],B67)) -> 0 | U69: =INDEX(база!$G$1:$M$7,MATCH($D66,база!$G$1:$G$7,0),MATCH(U$4,база!$G$1:$M$1,0)) -> 81.04 | V69: 1.5 | W69: =SUMIFS(Таблица18[сумма],Таблица18[коэф],"1.5",Таблица18[р/р],"3/24",Таблица18[Ф. И. О.],B67) -> 0 | X69: =IF(W69=0,0,SUMIFS(Таблица18[Столбец1],Таблица18[р/р],"3/24",Таблица18[коэф],"1.5",Таблица18[Ф. И. О.],Лист1!B67)) -> 0
A70: 17 | C70: =INDEX(база!$E:$E, MATCH(B71,база!$B:$B,0)) -> 14988 | D70: =INDEX(база!$D:$D, MATCH(B71,база!$B:$B,0)) -> 3 | E70: =INDEX(база!$G$1:$M$7,MATCH($D70,база!$G$1:$G$7,0),MATCH(E$4,база!$G$1:$M$1,0)) -> 51.84 | F70: 1 | G70: =SUMIFS(Таблица18[сумма],Таблица18[коэф],"1",Таблица18[р/р],"2/4",Таблица18[Ф. И. О.],B71) -> 0 | H70: =IF(G70=0,0,SUMIFS(Таблица18[Столбец1],Таблица18[р/р],"2/4",Таблица18[коэф],"1",Таблица18[Ф. И. О.],B71)) -> 0 | I70: =INDEX(база!$G$1:$M$7,MATCH($D70,база!$G$1:$G$7,0),MATCH(I$4,база!$G$1:$M$1,0)) -> 57.68 | J70: 1 | K70: =SUMIFS(Таблица18[сумма],Таблица18[коэф],"1",Таблица18[р/р],"2/8",Таблица18[Ф. И. О.],B71) -> 0 | L70: =IF(K70=0,0,SUMIFS(Таблица18[Столбец1],Таблица18[р/р],"2/8",Таблица18[коэф],"1",Таблица18[Ф. И. О.],B71)) -> 0 | N70: 1 | O70: =SUMIFS(#REF!,#REF!,"1",#REF!,"3/12",#REF!,B71) ->  | Q70: =INDEX(база!$G$1:$M$7,MATCH($D70,база!$G$1:$G$7,0),MATCH(Q$4,база!$G$1:$M$1,0)) -> 69.36 | R70: 1 | S70: =SUMIFS(Таблица18[сумма],Таблица18[коэф],"1",Таблица18[р/р],"3/16",Таблица18[Ф. И. О.],B71) -> 0 | T70: =IF(S70=0,0,SUMIFS(Таблица18[Столбец1],Таблица18[р/р],"3/16",Таблица18[коэф],"1",Таблица18[Ф. И. О.],B71)) -> 0 | U70: =INDEX(база!$G$1:$M$7,MATCH($D70,база!$G$1:$G$7,0),MATCH(U$4,база!$G$1:$M$1,0)) -> 81.04 | V70: 1 | W70: =SUMIFS(Таблица18[сумма],Таблица18[коэф],"1",Таблица18[р/р],"3/24",Таблица18[Ф. И. О.],B71) -> 0 | X70: =IF(W70=0,0,SUMIFS(Таблица18[Столбец1],Таблица18[р/р],"3/24",Таблица18[коэф],"1",Таблица18[Ф. И. О.],Лист1!B71)) -> 0 | Y70: =SUM(W70:W73,S70:S73,K70:K73,G70:G73) -> 0 | Z70: =SUM(H70:H73,L70:L73,T70:T73,X70:X73) -> 0
B71: работник19 | E71: =INDEX(база!$G$1:$M$7,MATCH($D70,база!$G$1:$G$7,0),MATCH(E$4,база!$G$1:$M$1,0)) -> 51.84 | F71: 1 | G71: =SUMIFS(Таблица18[сумма],Таблица18[коэф],"1",Таблица18[р/р],"3/4",Таблица18[Ф. И. О.],B71) -> 0 | H71: =IF(G71=0,0,SUMIFS(Таблица18[Столбец1],Таблица18[р/р],"3/4",Таблица18[коэф],"1",Таблица18[Ф. И. О.],B71)) -> 0 | I71: =INDEX(база!$G$1:$M$7,MATCH($D70,база!$G$1:$G$7,0),MATCH(I$4,база!$G$1:$M$1,0)) -> 57.68 | J71: 1 | K71: =SUMIFS(Таблица18[сумма],Таблица18[коэф],"1",Таблица18[р/р],"3/8",Таблица18[Ф. И. О.],B71) -> 0 | L71: =IF(K71=0,0,SUMIFS(Таблица18[Столбец1],Таблица18[р/р],"3/8",Таблица18[коэф],"1",Таблица18[Ф. И. О.],B71)) -> 0 | N71: 1 | O71: =SUMIFS(#REF!,#REF!,"1",#REF!,"4/12",#REF!,B71) ->  | P71: =ROUND(M71*O71,2) ->  | Q71: =INDEX(база!$G$1:$M$7,MATCH($D70,база!$G$1:$G$7,0),MATCH(Q$4,база!$G$1:$M$1,0)) -> 69.36 | R71: 1 | S71: =SUMIFS(Таблица18[сумма],Таблица18[р/р],"4/16",Таблица18[коэф],"1",Таблица18[Ф. И. О.],B71) -> 0 | T71: =IF(S71=0,0,SUMIFS(Таблица18[Столбец1],Таблица18[р/р],"4/16",Таблица18[коэф],"1",Таблица18[Ф. И. О.],B71)) -> 0 | U71: =INDEX(база!$G$1:$M$7,MATCH($D70,база!$G$1:$G$7,0),MATCH(U$4,база!$G$1:$M$1,0)) -> 81.04 | V71: 1 | W71: =SUMIFS(Таблица18[сумма],Таблица18[коэф],"1",Таблица18[р/р],"4/24",Таблица18[Ф. И. О.],B71) -> 0 | X71: =IF(W71=0,0,SUMIFS(Таблица18[Столбец1],Таблица18[р/р],"4/24",Таблица18[коэф],"1",Таблица18[Ф. И. О.],Лист1!B71)) -> 0 | AC71: =IF(SUMIFS(Таблица18[Столбец1],Таблица18[Ф. И. О.],B71)=Z70,"",B71&" СУММА не верна") -> 
E72: =INDEX(база!$G$1:$M$7,MATCH($D70,база!$G$1:$G$7,0),MATCH(E$4,база!$G$1:$M$1,0)) -> 51.84 | H72: =IF(G72=0,0,SUMIFS(Таблица18[Столбец1],Таблица18[р/р],"3/4",Таблица18[коэф],"1.1",Таблица18[Ф. И. О.],B71)) -> 0 | I72: =INDEX(база!$G$1:$M$7,MATCH($D70,база!$G$1:$G$7,0),MATCH(I$4,база!$G$1:$M$1,0)) -> 57.68 | J72: 1.1 | K72: =SUMIFS(Таблица18[сумма],Таблица18[коэф],"1",Таблица18[р/р],"3/8",Таблица18[Ф. И. О.],B72) -> 0 | L72: =IF(K72=0,0,SUMIFS(Таблица18[Столбец1],Таблица18[р/р],"3/8",Таблица18[коэф],"1.1",Таблица18[Ф. И. О.],B71)) -> 0 | N72: 1.1 | O72: =SUMIFS(#REF!,#REF!,"1.1",#REF!,"3/12",#REF!,B71) ->  | P72: =ROUND(M72*N72*O72,2) ->  | Q72: =INDEX(база!$G$1:$M$7,MATCH($D70,база!$G$1:$G$7,0),MATCH(Q$4,база!$G$1:$M$1,0)) -> 69.36 | R72: 1.1 | S72: =SUMIFS(Таблица18[сумма],Таблица18[р/р],"3/16",Таблица18[коэф],"1.1",Таблица18[Ф. И. О.],B71) -> 0 | T72: =IF(S72=0,0,SUMIFS(Таблица18[Столбец1],Таблица18[р/р],"3/16",Таблица18[коэф],"1.1",Таблица18[Ф. И. О.],B71)) -> 0 | U72: =INDEX(база!$G$1:$M$7,MATCH($D70,база!$G$1:$G$7,0),MATCH(U$4,база!$G$1:$M$1,0)) -> 81.04 | V72: 1.1 | W72: =SUMIFS(Таблица18[сумма],Таблица18[коэф],"1.1",Таблица18[р/р],"3/24",Таблица18[Ф. И. О.],B71) -> 0 | X72: =IF(W72=0,0,SUMIFS(Таблица18[Столбец1],Таблица18[р/р],"3/24",Таблица18[коэф],"1.1",Таблица18[Ф. И. О.],Лист1!B71)) -> 0 | AC72: =IF(SUMIFS(Таблица18[сумма],Таблица18[Ф. И. О.],B71)=Y70,"",B71&" часы не верны") -> 
E73: =INDEX(база!$G$1:$M$7,MATCH($D70,база!$G$1:$G$7,0),MATCH(E$4,база!$G$1:$M$1,0)) -> 51.84 | F73: 1.5 | G73: =SUMIFS(Таблица18[сумма],Таблица18[коэф],"1.5",Таблица18[р/р],"2/4",Таблица18[Ф. И. О.],B71) -> 0 | H73: =IF(G73=0,0,SUMIFS(Таблица18[Столбец1],Таблица18[р/р],"2/4",Таблица18[коэф],"1.5",Таблица18[Ф. И. О.],B71)) -> 0 | I73: =INDEX(база!$G$1:$M$7,MATCH($D70,база!$G$1:$G$7,0),MATCH(I$4,база!$G$1:$M$1,0)) -> 57.68 | J73: 1.5 | K73: =SUMIFS(Таблица18[сумма],Таблица18[коэф],"1.5",Таблица18[р/р],"4/8",Таблица18[Ф. И. О.],B71) -> 0 | L73: =IF(K73=0,0,SUMIFS(Таблица18[Столбец1],Таблица18[р/р],"4/8",Таблица18[коэф],"1.5",Таблица18[Ф. И. О.],B71)) -> 0 | N73: 1.5 | O73: =SUMIFS(#REF!,#REF!,"1.5",#REF!,"3/12",#REF!,B71) ->  | Q73: =INDEX(база!$G$1:$M$7,MATCH($D70,база!$G$1:$G$7,0),MATCH(Q$4,база!$G$1:$M$1,0)) -> 69.36 | R73: 1.5 | S73: =SUMIFS(Таблица18[сумма],Таблица18[р/р],"3/16",Таблица18[коэф],"1.5",Таблица18[Ф. И. О.],B71) -> 0 | T73: =IF(S73=0,0,SUMIFS(Таблица18[Столбец1],Таблица18[р/р],"3/16",Таблица18[коэф],"1.5",Таблица18[Ф. И. О.],B71)) -> 0 | U73: =INDEX(база!$G$1:$M$7,MATCH($D70,база!$G$1:$G$7,0),MATCH(U$4,база!$G$1:$M$1,0)) -> 81.04 | V73: 1.5 | W73: =SUMIFS(Таблица18[сумма],Таблица18[коэф],"1.5",Таблица18[р/р],"3/24",Таблица18[Ф. И. О.],B71) -> 0 | X73: =IF(W73=0,0,SUMIFS(Таблица18[Столбец1],Таблица18[р/р],"3/24",Таблица18[коэф],"1.5",Таблица18[Ф. И. О.],Лист1!B71)) -> 0
A74: 18 | C74: =INDEX(база!$E:$E, MATCH(B75,база!$B:$B,0)) -> 15889 | D74: =INDEX(база!$D:$D, MATCH(B75,база!$B:$B,0)) -> 4 | E74: =INDEX(база!$G$1:$M$7,MATCH($D74,база!$G$1:$G$7,0),MATCH(E$4,база!$G$1:$M$1,0)) -> 66.9 | F74: 1 | G74: =SUMIFS(Таблица18[сумма],Таблица18[коэф],"1",Таблица18[р/р],"2/4",Таблица18[Ф. И. О.],B75) -> 0 | H74: =IF(G74=0,0,SUMIFS(Таблица18[Столбец1],Таблица18[р/р],"2/4",Таблица18[коэф],"1",Таблица18[Ф. И. О.],B75)) -> 0 | I74: =INDEX(база!$G$1:$M$7,MATCH($D74,база!$G$1:$G$7,0),MATCH(I$4,база!$G$1:$M$1,0)) -> 73.32 | J74: 1 | K74: =SUMIFS(Таблица18[сумма],Таблица18[коэф],"1",Таблица18[р/р],"2/8",Таблица18[Ф. И. О.],B75) -> 0 | L74: =IF(K74=0,0,SUMIFS(Таблица18[Столбец1],Таблица18[р/р],"2/8",Таблица18[коэф],"1",Таблица18[Ф. И. О.],B75)) -> 0 | N74: 1 | O74: =SUMIFS(#REF!,#REF!,"1",#REF!,"3/12",#REF!,B75) ->  | Q74: =INDEX(база!$G$1:$M$7,MATCH($D74,база!$G$1:$G$7,0),MATCH(Q$4,база!$G$1:$M$1,0)) -> 86.16 | R74: 1 | S74: =SUMIFS(Таблица18[сумма],Таблица18[коэф],"1",Таблица18[р/р],"3/16",Таблица18[Ф. И. О.],B75) -> 0 | T74: =IF(S74=0,0,SUMIFS(Таблица18[Столбец1],Таблица18[р/р],"3/16",Таблица18[коэф],"1",Таблица18[Ф. И. О.],B75)) -> 0 | U74: =INDEX(база!$G$1:$M$7,MATCH($D74,база!$G$1:$G$7,0),MATCH(U$4,база!$G$1:$M$1,0)) -> 99 | V74: 1 | W74: =SUMIFS(Таблица18[сумма],Таблица18[коэф],"1",Таблица18[р/р],"3/24",Таблица18[Ф. И. О.],B75) -> 0 | X74: =IF(W74=0,0,SUMIFS(Таблица18[Столбец1],Таблица18[р/р],"3/24",Таблица18[коэф],"1",Таблица18[Ф. И. О.],Лист1!B75)) -> 0 | Y74: =SUM(W74:W77,S74:S77,K74:K77,G74:G77) -> 0 | Z74: =SUM(H74:H77,L74:L77,T74:T77,X74:X77) -> 0
B75: работник20 | E75: =INDEX(база!$G$1:$M$7,MATCH($D74,база!$G$1:$G$7,0),MATCH(E$4,база!$G$1:$M$1,0)) -> 66.9 | F75: 1 | G75: =SUMIFS(Таблица18[сумма],Таблица18[коэф],"1",Таблица18[р/р],"3/4",Таблица18[Ф. И. О.],B75) -> 0 | H75: =IF(G75=0,0,SUMIFS(Таблица18[Столбец1],Таблица18[р/р],"3/4",Таблица18[коэф],"1",Таблица18[Ф. И. О.],B75)) -> 0 | I75: =INDEX(база!$G$1:$M$7,MATCH($D74,база!$G$1:$G$7,0),MATCH(I$4,база!$G$1:$M$1,0)) -> 73.32 | J75: 1 | K75: =SUMIFS(Таблица18[сумма],Таблица18[коэф],"1",Таблица18[р/р],"3/8",Таблица18[Ф. И. О.],B75) -> 0 | L75: =IF(K75=0,0,SUMIFS(Таблица18[Столбец1],Таблица18[р/р],"3/8",Таблица18[коэф],"1",Таблица18[Ф. И. О.],B75)) -> 0 | N75: 1 | O75: =SUMIFS(#REF!,#REF!,"1",#REF!,"4/12",#REF!,B75) ->  | P75: =ROUND(M75*O75,2) ->  | Q75: =INDEX(база!$G$1:$M$7,MATCH($D74,база!$G$1:$G$7,0),MATCH(Q$4,база!$G$1:$M$1,0)) -> 86.16 | R75: 1 | S75: =SUMIFS(Таблица18[сумма],Таблица18[р/р],"4/16",Таблица18[коэф],"1",Таблица18[Ф. И. О.],B75) -> 0 | T75: =IF(S75=0,0,SUMIFS(Таблица18[Столбец1],Таблица18[р/р],"4/16",Таблица18[коэф],"1",Таблица18[Ф. И. О.],B75)) -> 0 | U75: =INDEX(база!$G$1:$M$7,MATCH($D74,база!$G$1:$G$7,0),MATCH(U$4,база!$G$1:$M$1,0)) -> 99 | V75: 1 | W75: =SUMIFS(Таблица18[сумма],Таблица18[коэф],"1",Таблица18[р/р],"4/24",Таблица18[Ф. И. О.],B75) -> 0 | X75: =IF(W75=0,0,SUMIFS(Таблица18[Столбец1],Таблица18[р/р],"4/24",Таблица18[коэф],"1",Таблица18[Ф. И. О.],Лист1!B75)) -> 0 | AC75: =IF(SUMIFS(Таблица18[Столбец1],Таблица18[Ф. И. О.],B75)=Z74,"",B75&" СУММА не верна") -> 
E76: =INDEX(база!$G$1:$M$7,MATCH($D74,база!$G$1:$G$7,0),MATCH(E$4,база!$G$1:$M$1,0)) -> 66.9 | H76: =IF(G76=0,0,SUMIFS(Таблица18[Столбец1],Таблица18[р/р],"3/4",Таблица18[коэф],"1.1",Таблица18[Ф. И. О.],B75)) -> 0 | I76: =INDEX(база!$G$1:$M$7,MATCH($D74,база!$G$1:$G$7,0),MATCH(I$4,база!$G$1:$M$1,0)) -> 73.32 | J76: 1.1 | K76: =SUMIFS(Таблица18[сумма],Таблица18[коэф],"1",Таблица18[р/р],"3/8",Таблица18[Ф. И. О.],B76) -> 0 | L76: =IF(K76=0,0,SUMIFS(Таблица18[Столбец1],Таблица18[р/р],"3/8",Таблица18[коэф],"1.1",Таблица18[Ф. И. О.],B75)) -> 0 | N76: 1.1 | O76: =SUMIFS(#REF!,#REF!,"1.1",#REF!,"3/12",#REF!,B75) ->  | P76: =ROUND(M76*N76*O76,2) ->  | Q76: =INDEX(база!$G$1:$M$7,MATCH($D74,база!$G$1:$G$7,0),MATCH(Q$4,база!$G$1:$M$1,0)) -> 86.16 | R76: 1.1 | S76: =SUMIFS(Таблица18[сумма],Таблица18[р/р],"3/16",Таблица18[коэф],"1.1",Таблица18[Ф. И. О.],B75) -> 0 | T76: =IF(S76=0,0,SUMIFS(Таблица18[Столбец1],Таблица18[р/р],"3/16",Таблица18[коэф],"1.1",Таблица18[Ф. И. О.],B75)) -> 0 | U76: =INDEX(база!$G$1:$M$7,MATCH($D74,база!$G$1:$G$7,0),MATCH(U$4,база!$G$1:$M$1,0)) -> 99 | V76: 1.1 | W76: =SUMIFS(Таблица18[сумма],Таблица18[коэф],"1.1",Таблица18[р/р],"3/24",Таблица18[Ф. И. О.],B75) -> 0 | X76: =IF(W76=0,0,SUMIFS(Таблица18[Столбец1],Таблица18[р/р],"3/24",Таблица18[коэф],"1.1",Таблица18[Ф. И. О.],Лист1!B75)) -> 0 | AC76: =IF(SUMIFS(Таблица18[сумма],Таблица18[Ф. И. О.],B75)=Y74,"",B75&" часы не верны") -> 
E77: =INDEX(база!$G$1:$M$7,MATCH($D74,база!$G$1:$G$7,0),MATCH(E$4,база!$G$1:$M$1,0)) -> 66.9 | F77: 1.5 | G77: =SUMIFS(Таблица18[сумма],Таблица18[коэф],"1.5",Таблица18[р/р],"2/4",Таблица18[Ф. И. О.],B75) -> 0 | H77: =IF(G77=0,0,SUMIFS(Таблица18[Столбец1],Таблица18[р/р],"2/4",Таблица18[коэф],"1.5",Таблица18[Ф. И. О.],B75)) -> 0 | I77: =INDEX(база!$G$1:$M$7,MATCH($D74,база!$G$1:$G$7,0),MATCH(I$4,база!$G$1:$M$1,0)) -> 73.32 | J77: 1.5 | K77: =SUMIFS(Таблица18[сумма],Таблица18[коэф],"1.5",Таблица18[р/р],"4/8",Таблица18[Ф. И. О.],B75) -> 0 | L77: =IF(K77=0,0,SUMIFS(Таблица18[Столбец1],Таблица18[р/р],"4/8",Таблица18[коэф],"1.5",Таблица18[Ф. И. О.],B75)) -> 0 | N77: 1.5 | O77: =SUMIFS(#REF!,#REF!,"1.5",#REF!,"3/12",#REF!,B75) ->  | Q77: =INDEX(база!$G$1:$M$7,MATCH($D74,база!$G$1:$G$7,0),MATCH(Q$4,база!$G$1:$M$1,0)) -> 86.16 | R77: 1.5 | S77: =SUMIFS(Таблица18[сумма],Таблица18[р/р],"3/16",Таблица18[коэф],"1.5",Таблица18[Ф. И. О.],B75) -> 0 | T77: =IF(S77=0,0,SUMIFS(Таблица18[Столбец1],Таблица18[р/р],"3/16",Таблица18[коэф],"1.5",Таблица18[Ф. И. О.],B75)) -> 0 | U77: =INDEX(база!$G$1:$M$7,MATCH($D74,база!$G$1:$G$7,0),MATCH(U$4,база!$G$1:$M$1,0)) -> 99 | V77: 1.5 | W77: =SUMIFS(Таблица18[сумма],Таблица18[коэф],"1.5",Таблица18[р/р],"3/24",Таблица18[Ф. И. О.],B75) -> 0 | X77: =IF(W77=0,0,SUMIFS(Таблица18[Столбец1],Таблица18[р/р],"3/24",Таблица18[коэф],"1.5",Таблица18[Ф. И. О.],Лист1!B75)) -> 0
A78: 19 | C78: =INDEX(база!$E:$E, MATCH(B79,база!$B:$B,0)) -> 16889 | D78: =INDEX(база!$D:$D, MATCH(B79,база!$B:$B,0)) -> 3 | E78: =INDEX(база!$G$1:$M$7,MATCH($D78,база!$G$1:$G$7,0),MATCH(E$4,база!$G$1:$M$1,0)) -> 51.84 | F78: 1 | G78: =SUMIFS(Таблица18[сумма],Таблица18[коэф],"1",Таблица18[р/р],"2/4",Таблица18[Ф. И. О.],B79) -> 0 | H78: =IF(G78=0,0,SUMIFS(Таблица18[Столбец1],Таблица18[р/р],"2/4",Таблица18[коэф],"1",Таблица18[Ф. И. О.],B79)) -> 0 | I78: =INDEX(база!$G$1:$M$7,MATCH($D78,база!$G$1:$G$7,0),MATCH(I$4,база!$G$1:$M$1,0)) -> 57.68 | J78: 1 | K78: =SUMIFS(Таблица18[сумма],Таблица18[коэф],"1",Таблица18[р/р],"2/8",Таблица18[Ф. И. О.],B79) -> 0 | L78: =IF(K78=0,0,SUMIFS(Таблица18[Столбец1],Таблица18[р/р],"2/8",Таблица18[коэф],"1",Таблица18[Ф. И. О.],B79)) -> 0 | N78: 1 | O78: =SUMIFS(#REF!,#REF!,"1",#REF!,"3/12",#REF!,B79) ->  | Q78: =INDEX(база!$G$1:$M$7,MATCH($D78,база!$G$1:$G$7,0),MATCH(Q$4,база!$G$1:$M$1,0)) -> 69.36 | R78: 1 | S78: =SUMIFS(Таблица18[сумма],Таблица18[коэф],"1",Таблица18[р/р],"3/16",Таблица18[Ф. И. О.],B79) -> 0 | T78: =IF(S78=0,0,SUMIFS(Таблица18[Столбец1],Таблица18[р/р],"3/16",Таблица18[коэф],"1",Таблица18[Ф. И. О.],B79)) -> 0 | U78: =INDEX(база!$G$1:$M$7,MATCH($D78,база!$G$1:$G$7,0),MATCH(U$4,база!$G$1:$M$1,0)) -> 81.04 | V78: 1 | W78: =SUMIFS(Таблица18[сумма],Таблица18[коэф],"1",Таблица18[р/р],"3/24",Таблица18[Ф. И. О.],B79) -> 0 | X78: =IF(W78=0,0,SUMIFS(Таблица18[Столбец1],Таблица18[р/р],"3/24",Таблица18[коэф],"1",Таблица18[Ф. И. О.],Лист1!B79)) -> 0 | Y78: =SUM(W78:W81,S78:S81,K78:K81,G78:G81) -> 0 | Z78: =SUM(H78:H81,L78:L81,T78:T81,X78:X81) -> 0
B79: работник21 | E79: =INDEX(база!$G$1:$M$7,MATCH($D78,база!$G$1:$G$7,0),MATCH(E$4,база!$G$1:$M$1,0)) -> 51.84 | F79: 1 | G79: =SUMIFS(Таблица18[сумма],Таблица18[коэф],"1",Таблица18[р/р],"3/4",Таблица18[Ф. И. О.],B79) -> 0 | H79: =IF(G79=0,0,SUMIFS(Таблица18[Столбец1],Таблица18[р/р],"3/4",Таблица18[коэф],"1",Таблица18[Ф. И. О.],B79)) -> 0 | I79: =INDEX(база!$G$1:$M$7,MATCH($D78,база!$G$1:$G$7,0),MATCH(I$4,база!$G$1:$M$1,0)) -> 57.68 | J79: 1 | K79: =SUMIFS(Таблица18[сумма],Таблица18[коэф],"1",Таблица18[р/р],"3/8",Таблица18[Ф. И. О.],B79) -> 0 | L79: =IF(K79=0,0,SUMIFS(Таблица18[Столбец1],Таблица18[р/р],"3/8",Таблица18[коэф],"1",Таблица18[Ф. И. О.],B79)) -> 0 | N79: 1 | O79: =SUMIFS(#REF!,#REF!,"1",#REF!,"4/12",#REF!,B79) ->  | P79: =ROUND(M79*O79,2) ->  | Q79: =INDEX(база!$G$1:$M$7,MATCH($D78,база!$G$1:$G$7,0),MATCH(Q$4,база!$G$1:$M$1,0)) -> 69.36 | R79: 1 | S79: =SUMIFS(Таблица18[сумма],Таблица18[р/р],"4/16",Таблица18[коэф],"1",Таблица18[Ф. И. О.],B79) -> 0 | T79: =IF(S79=0,0,SUMIFS(Таблица18[Столбец1],Таблица18[р/р],"4/16",Таблица18[коэф],"1",Таблица18[Ф. И. О.],B79)) -> 0 | U79: =INDEX(база!$G$1:$M$7,MATCH($D78,база!$G$1:$G$7,0),MATCH(U$4,база!$G$1:$M$1,0)) -> 81.04 | V79: 1 | W79: =SUMIFS(Таблица18[сумма],Таблица18[коэф],"1",Таблица18[р/р],"4/24",Таблица18[Ф. И. О.],B79) -> 0 | X79: =IF(W79=0,0,SUMIFS(Таблица18[Столбец1],Таблица18[р/р],"4/24",Таблица18[коэф],"1",Таблица18[Ф. И. О.],Лист1!B79)) -> 0 | AC79: =IF(SUMIFS(Таблица18[Столбец1],Таблица18[Ф. И. О.],B79)=Z78,"",B79&" СУММА не верна") -> 
E80: =INDEX(база!$G$1:$M$7,MATCH($D78,база!$G$1:$G$7,0),MATCH(E$4,база!$G$1:$M$1,0)) -> 51.84 | H80: =IF(G80=0,0,SUMIFS(Таблица18[Столбец1],Таблица18[р/р],"3/4",Таблица18[коэф],"1.1",Таблица18[Ф. И. О.],B79)) -> 0 | I80: =INDEX(база!$G$1:$M$7,MATCH($D78,база!$G$1:$G$7,0),MATCH(I$4,база!$G$1:$M$1,0)) -> 57.68 | J80: 1.1 | K80: =SUMIFS(Таблица18[сумма],Таблица18[коэф],"1",Таблица18[р/р],"3/8",Таблица18[Ф. И. О.],B80) -> 0 | L80: =IF(K80=0,0,SUMIFS(Таблица18[Столбец1],Таблица18[р/р],"3/8",Таблица18[коэф],"1.1",Таблица18[Ф. И. О.],B79)) -> 0 | N80: 1.1 | O80: =SUMIFS(#REF!,#REF!,"1.1",#REF!,"3/12",#REF!,B79) ->  | P80: =ROUND(M80*N80*O80,2) ->  | Q80: =INDEX(база!$G$1:$M$7,MATCH($D78,база!$G$1:$G$7,0),MATCH(Q$4,база!$G$1:$M$1,0)) -> 69.36 | R80: 1.1 | S80: =SUMIFS(Таблица18[сумма],Таблица18[р/р],"3/16",Таблица18[коэф],"1.1",Таблица18[Ф. И. О.],B79) -> 0 | T80: =IF(S80=0,0,SUMIFS(Таблица18[Столбец1],Таблица18[р/р],"3/16",Таблица18[коэф],"1.1",Таблица18[Ф. И. О.],B79)) -> 0 | U80: =INDEX(база!$G$1:$M$7,MATCH($D78,база!$G$1:$G$7,0),MATCH(U$4,база!$G$1:$M$1,0)) -> 81.04 | V80: 1.1 | W80: =SUMIFS(Таблица18[сумма],Таблица18[коэф],"1.1",Таблица18[р/р],"3/24",Таблица18[Ф. И. О.],B79) -> 0 | X80: =IF(W80=0,0,SUMIFS(Таблица18[Столбец1],Таблица18[р/р],"3/24",Таблица18[коэф],"1.1",Таблица18[Ф. И. О.],Лист1!B79)) -> 0 | AC80: =IF(SUMIFS(Таблица18[сумма],Таблица18[Ф. И. О.],B79)=Y78,"",B79&" часы не верны") -> 
E81: =INDEX(база!$G$1:$M$7,MATCH($D78,база!$G$1:$G$7,0),MATCH(E$4,база!$G$1:$M$1,0)) -> 51.84 | F81: 1.5 | G81: =SUMIFS(Таблица18[сумма],Таблица18[коэф],"1.5",Таблица18[р/р],"2/4",Таблица18[Ф. И. О.],B79) -> 0 | H81: =IF(G81=0,0,SUMIFS(Таблица18[Столбец1],Таблица18[р/р],"2/4",Таблица18[коэф],"1.5",Таблица18[Ф. И. О.],B79)) -> 0 | I81: =INDEX(база!$G$1:$M$7,MATCH($D78,база!$G$1:$G$7,0),MATCH(I$4,база!$G$1:$M$1,0)) -> 57.68 | J81: 1.5 | K81: =SUMIFS(Таблица18[сумма],Таблица18[коэф],"1.5",Таблица18[р/р],"4/8",Таблица18[Ф. И. О.],B79) -> 0 | L81: =IF(K81=0,0,SUMIFS(Таблица18[Столбец1],Таблица18[р/р],"4/8",Таблица18[коэф],"1.5",Таблица18[Ф. И. О.],B79)) -> 0 | N81: 1.5 | O81: =SUMIFS(#REF!,#REF!,"1.5",#REF!,"3/12",#REF!,B79) ->  | Q81: =INDEX(база!$G$1:$M$7,MATCH($D78,база!$G$1:$G$7,0),MATCH(Q$4,база!$G$1:$M$1,0)) -> 69.36 | R81: 1.5 | S81: =SUMIFS(Таблица18[сумма],Таблица18[р/р],"3/16",Таблица18[коэф],"1.5",Таблица18[Ф. И. О.],B79) -> 0 | T81: =IF(S81=0,0,SUMIFS(Таблица18[Столбец1],Таблица18[р/р],"3/16",Таблица18[коэф],"1.5",Таблица18[Ф. И. О.],B79)) -> 0 | U81: =INDEX(база!$G$1:$M$7,MATCH($D78,база!$G$1:$G$7,0),MATCH(U$4,база!$G$1:$M$1,0)) -> 81.04 | V81: 1.5 | W81: =SUMIFS(Таблица18[сумма],Таблица18[коэф],"1.5",Таблица18[р/р],"3/24",Таблица18[Ф. И. О.],B79) -> 0 | X81: =IF(W81=0,0,SUMIFS(Таблица18[Столбец1],Таблица18[р/р],"3/24",Таблица18[коэф],"1.5",Таблица18[Ф. И. О.],Лист1!B79)) -> 0
A82: 20 | C82: =INDEX(база!$E:$E, MATCH(B83,база!$B:$B,0)) -> 13897 | D82: =INDEX(база!$D:$D, MATCH(B83,база!$B:$B,0)) -> 3 | E82: =INDEX(база!$G$1:$M$7,MATCH($D82,база!$G$1:$G$7,0),MATCH(E$4,база!$G$1:$M$1,0)) -> 51.84 | F82: 1 | G82: =SUMIFS(Таблица18[сумма],Таблица18[коэф],"1",Таблица18[р/р],"2/4",Таблица18[Ф. И. О.],B83) -> 0 | H82: =IF(G82=0,0,SUMIFS(Таблица18[Столбец1],Таблица18[р/р],"2/4",Таблица18[коэф],"1",Таблица18[Ф. И. О.],B83)) -> 0 | I82: =INDEX(база!$G$1:$M$7,MATCH($D82,база!$G$1:$G$7,0),MATCH(I$4,база!$G$1:$M$1,0)) -> 57.68 | J82: 1 | K82: =SUMIFS(Таблица18[сумма],Таблица18[коэф],"1",Таблица18[р/р],"2/8",Таблица18[Ф. И. О.],B83) -> 0 | L82: =IF(K82=0,0,SUMIFS(Таблица18[Столбец1],Таблица18[р/р],"2/8",Таблица18[коэф],"1",Таблица18[Ф. И. О.],B83)) -> 0 | N82: 1 | O82: =SUMIFS(#REF!,#REF!,"1",#REF!,"3/12",#REF!,B83) ->  | Q82: =INDEX(база!$G$1:$M$7,MATCH($D82,база!$G$1:$G$7,0),MATCH(Q$4,база!$G$1:$M$1,0)) -> 69.36 | R82: 1 | S82: =SUMIFS(Таблица18[сумма],Таблица18[коэф],"1",Таблица18[р/р],"3/16",Таблица18[Ф. И. О.],B83) -> 0 | T82: =IF(S82=0,0,SUMIFS(Таблица18[Столбец1],Таблица18[р/р],"3/16",Таблица18[коэф],"1",Таблица18[Ф. И. О.],B83)) -> 0 | U82: =INDEX(база!$G$1:$M$7,MATCH($D82,база!$G$1:$G$7,0),MATCH(U$4,база!$G$1:$M$1,0)) -> 81.04 | V82: 1 | W82: =SUMIFS(Таблица18[сумма],Таблица18[коэф],"1",Таблица18[р/р],"3/24",Таблица18[Ф. И. О.],B83) -> 0 | X82: =IF(W82=0,0,SUMIFS(Таблица18[Столбец1],Таблица18[р/р],"3/24",Таблица18[коэф],"1",Таблица18[Ф. И. О.],Лист1!B83)) -> 0 | Y82: =SUM(W82:W85,S82:S85,K82:K85,G82:G85) -> 0 | Z82: =SUM(H82:H85,L82:L85,T82:T85,X82:X85) -> 0
B83: работник22 | E83: =INDEX(база!$G$1:$M$7,MATCH($D82,база!$G$1:$G$7,0),MATCH(E$4,база!$G$1:$M$1,0)) -> 51.84 | F83: 1 | G83: =SUMIFS(Таблица18[сумма],Таблица18[коэф],"1",Таблица18[р/р],"3/4",Таблица18[Ф. И. О.],B83) -> 0 | H83: =IF(G83=0,0,SUMIFS(Таблица18[Столбец1],Таблица18[р/р],"3/4",Таблица18[коэф],"1",Таблица18[Ф. И. О.],B83)) -> 0 | I83: =INDEX(база!$G$1:$M$7,MATCH($D82,база!$G$1:$G$7,0),MATCH(I$4,база!$G$1:$M$1,0)) -> 57.68 | J83: 1 | K83: =SUMIFS(Таблица18[сумма],Таблица18[коэф],"1",Таблица18[р/р],"3/8",Таблица18[Ф. И. О.],B83) -> 0 | L83: =IF(K83=0,0,SUMIFS(Таблица18[Столбец1],Таблица18[р/р],"3/8",Таблица18[коэф],"1",Таблица18[Ф. И. О.],B83)) -> 0 | N83: 1 | O83: =SUMIFS(#REF!,#REF!,"1",#REF!,"4/12",#REF!,B83) ->  | P83: =ROUND(M83*O83,2) ->  | Q83: =INDEX(база!$G$1:$M$7,MATCH($D82,база!$G$1:$G$7,0),MATCH(Q$4,база!$G$1:$M$1,0)) -> 69.36 | R83: 1 | S83: =SUMIFS(Таблица18[сумма],Таблица18[р/р],"4/16",Таблица18[коэф],"1",Таблица18[Ф. И. О.],B83) -> 0 | T83: =IF(S83=0,0,SUMIFS(Таблица18[Столбец1],Таблица18[р/р],"4/16",Таблица18[коэф],"1",Таблица18[Ф. И. О.],B83)) -> 0 | U83: =INDEX(база!$G$1:$M$7,MATCH($D82,база!$G$1:$G$7,0),MATCH(U$4,база!$G$1:$M$1,0)) -> 81.04 | V83: 1 | W83: =SUMIFS(Таблица18[сумма],Таблица18[коэф],"1",Таблица18[р/р],"4/24",Таблица18[Ф. И. О.],B83) -> 0 | X83: =IF(W83=0,0,SUMIFS(Таблица18[Столбец1],Таблица18[р/р],"4/24",Таблица18[коэф],"1",Таблица18[Ф. И. О.],Лист1!B83)) -> 0 | AC83: =IF(SUMIFS(Таблица18[Столбец1],Таблица18[Ф. И. О.],B83)=Z82,"",B83&" СУММА не верна") -> 
E84: =INDEX(база!$G$1:$M$7,MATCH($D82,база!$G$1:$G$7,0),MATCH(E$4,база!$G$1:$M$1,0)) -> 51.84 | H84: =IF(G84=0,0,SUMIFS(Таблица18[Столбец1],Таблица18[р/р],"3/4",Таблица18[коэф],"1.1",Таблица18[Ф. И. О.],B83)) -> 0 | I84: =INDEX(база!$G$1:$M$7,MATCH($D82,база!$G$1:$G$7,0),MATCH(I$4,база!$G$1:$M$1,0)) -> 57.68 | J84: 1.1 | K84: =SUMIFS(Таблица18[сумма],Таблица18[коэф],"1",Таблица18[р/р],"3/8",Таблица18[Ф. И. О.],B84) -> 0 | L84: =IF(K84=0,0,SUMIFS(Таблица18[Столбец1],Таблица18[р/р],"3/8",Таблица18[коэф],"1.1",Таблица18[Ф. И. О.],B83)) -> 0 | N84: 1.1 | O84: =SUMIFS(#REF!,#REF!,"1.1",#REF!,"3/12",#REF!,B83) ->  | P84: =ROUND(M84*N84*O84,2) ->  | Q84: =INDEX(база!$G$1:$M$7,MATCH($D82,база!$G$1:$G$7,0),MATCH(Q$4,база!$G$1:$M$1,0)) -> 69.36 | R84: 1.1 | S84: =SUMIFS(Таблица18[сумма],Таблица18[р/р],"3/16",Таблица18[коэф],"1.1",Таблица18[Ф. И. О.],B83) -> 0 | T84: =IF(S84=0,0,SUMIFS(Таблица18[Столбец1],Таблица18[р/р],"3/16",Таблица18[коэф],"1.1",Таблица18[Ф. И. О.],B83)) -> 0 | U84: =INDEX(база!$G$1:$M$7,MATCH($D82,база!$G$1:$G$7,0),MATCH(U$4,база!$G$1:$M$1,0)) -> 81.04 | V84: 1.1 | W84: =SUMIFS(Таблица18[сумма],Таблица18[коэф],"1.1",Таблица18[р/р],"3/24",Таблица18[Ф. И. О.],B83) -> 0 | X84: =IF(W84=0,0,SUMIFS(Таблица18[Столбец1],Таблица18[р/р],"3/24",Таблица18[коэф],"1.1",Таблица18[Ф. И. О.],Лист1!B83)) -> 0 | AC84: =IF(SUMIFS(Таблица18[сумма],Таблица18[Ф. И. О.],B83)=Y82,"",B83&" часы не верны") -> 
E85: =INDEX(база!$G$1:$M$7,MATCH($D82,база!$G$1:$G$7,0),MATCH(E$4,база!$G$1:$M$1,0)) -> 51.84 | F85: 1.5 | G85: =SUMIFS(Таблица18[сумма],Таблица18[коэф],"1.5",Таблица18[р/р],"2/4",Таблица18[Ф. И. О.],B83) -> 0 | H85: =IF(G85=0,0,SUMIFS(Таблица18[Столбец1],Таблица18[р/р],"2/4",Таблица18[коэф],"1.5",Таблица18[Ф. И. О.],B83)) -> 0 | I85: =INDEX(база!$G$1:$M$7,MATCH($D82,база!$G$1:$G$7,0),MATCH(I$4,база!$G$1:$M$1,0)) -> 57.68 | J85: 1.5 | K85: =SUMIFS(Таблица18[сумма],Таблица18[коэф],"1.5",Таблица18[р/р],"4/8",Таблица18[Ф. И. О.],B83) -> 0 | L85: =IF(K85=0,0,SUMIFS(Таблица18[Столбец1],Таблица18[р/р],"4/8",Таблица18[коэф],"1.5",Таблица18[Ф. И. О.],B83)) -> 0 | N85: 1.5 | O85: =SUMIFS(#REF!,#REF!,"1.5",#REF!,"3/12",#REF!,B83) ->  | Q85: =INDEX(база!$G$1:$M$7,MATCH($D82,база!$G$1:$G$7,0),MATCH(Q$4,база!$G$1:$M$1,0)) -> 69.36 | R85: 1.5 | S85: =SUMIFS(Таблица18[сумма],Таблица18[р/р],"3/16",Таблица18[коэф],"1.5",Таблица18[Ф. И. О.],B83) -> 0 | T85: =IF(S85=0,0,SUMIFS(Таблица18[Столбец1],Таблица18[р/р],"3/16",Таблица18[коэф],"1.5",Таблица18[Ф. И. О.],B83)) -> 0 | U85: =INDEX(база!$G$1:$M$7,MATCH($D82,база!$G$1:$G$7,0),MATCH(U$4,база!$G$1:$M$1,0)) -> 81.04 | V85: 1.5 | W85: =SUMIFS(Таблица18[сумма],Таблица18[коэф],"1.5",Таблица18[р/р],"3/24",Таблица18[Ф. И. О.],B83) -> 0 | X85: =IF(W85=0,0,SUMIFS(Таблица18[Столбец1],Таблица18[р/р],"3/24",Таблица18[коэф],"1.5",Таблица18[Ф. И. О.],Лист1!B83)) -> 0
A86: 21 | C86: =INDEX(база!$E:$E, MATCH(B87,база!$B:$B,0)) -> 007 | D86: =INDEX(база!$D:$D, MATCH(B87,база!$B:$B,0)) -> 2 | E86: =INDEX(база!$G$1:$M$7,MATCH($D86,база!$G$1:$G$7,0),MATCH(E$4,база!$G$1:$M$1,0)) -> 36.78 | F86: 1 | G86: =SUMIFS(Таблица18[сумма],Таблица18[коэф],"1",Таблица18[р/р],"2/4",Таблица18[Ф. И. О.],B87) -> 0 | H86: =IF(G86=0,0,SUMIFS(Таблица18[Столбец1],Таблица18[р/р],"2/4",Таблица18[коэф],"1",Таблица18[Ф. И. О.],B87)) -> 0 | I86: =INDEX(база!$G$1:$M$7,MATCH($D86,база!$G$1:$G$7,0),MATCH(I$4,база!$G$1:$M$1,0)) -> 42.04 | J86: 1 | K86: =SUMIFS(Таблица18[сумма],Таблица18[коэф],"1",Таблица18[р/р],"2/8",Таблица18[Ф. И. О.],B87) -> 0 | L86: =IF(K86=0,0,SUMIFS(Таблица18[Столбец1],Таблица18[р/р],"2/8",Таблица18[коэф],"1",Таблица18[Ф. И. О.],B87)) -> 0 | N86: 1 | O86: =SUMIFS(#REF!,#REF!,"1",#REF!,"3/12",#REF!,B87) ->  | Q86: =INDEX(база!$G$1:$M$7,MATCH($D86,база!$G$1:$G$7,0),MATCH(Q$4,база!$G$1:$M$1,0)) -> 52.56 | R86: 1 | S86: =SUMIFS(Таблица18[сумма],Таблица18[коэф],"1",Таблица18[р/р],"3/16",Таблица18[Ф. И. О.],B87) -> 0 | T86: =IF(S86=0,0,SUMIFS(Таблица18[Столбец1],Таблица18[р/р],"3/16",Таблица18[коэф],"1",Таблица18[Ф. И. О.],B87)) -> 0 | U86: =INDEX(база!$G$1:$M$7,MATCH($D86,база!$G$1:$G$7,0),MATCH(U$4,база!$G$1:$M$1,0)) -> 63.08 | V86: 1 | W86: =SUMIFS(Таблица18[сумма],Таблица18[коэф],"1",Таблица18[р/р],"3/24",Таблица18[Ф. И. О.],B87) -> 0 | X86: =IF(W86=0,0,SUMIFS(Таблица18[Столбец1],Таблица18[р/р],"3/24",Таблица18[коэф],"1",Таблица18[Ф. И. О.],Лист1!B87)) -> 0 | Y86: =SUM(W86:W89,S86:S89,K86:K89,G86:G89) -> 0 | Z86: =SUM(H86:H89,L86:L89,T86:T89,X86:X89) -> 0
B87: Джеймс Бонд | E87: =INDEX(база!$G$1:$M$7,MATCH($D86,база!$G$1:$G$7,0),MATCH(E$4,база!$G$1:$M$1,0)) -> 36.78 | F87: 1 | G87: =SUMIFS(Таблица18[сумма],Таблица18[коэф],"1",Таблица18[р/р],"3/4",Таблица18[Ф. И. О.],B87) -> 0 | H87: =IF(G87=0,0,SUMIFS(Таблица18[Столбец1],Таблица18[р/р],"3/4",Таблица18[коэф],"1",Таблица18[Ф. И. О.],B87)) -> 0 | I87: =INDEX(база!$G$1:$M$7,MATCH($D86,база!$G$1:$G$7,0),MATCH(I$4,база!$G$1:$M$1,0)) -> 42.04 | J87: 1 | K87: =SUMIFS(Таблица18[сумма],Таблица18[коэф],"1",Таблица18[р/р],"3/8",Таблица18[Ф. И. О.],B87) -> 0 | L87: =IF(K87=0,0,SUMIFS(Таблица18[Столбец1],Таблица18[р/р],"3/8",Таблица18[коэф],"1",Таблица18[Ф. И. О.],B87)) -> 0 | N87: 1 | O87: =SUMIFS(#REF!,#REF!,"1",#REF!,"4/12",#REF!,B87) ->  | P87: =ROUND(M87*O87,2) ->  | Q87: =INDEX(база!$G$1:$M$7,MATCH($D86,база!$G$1:$G$7,0),MATCH(Q$4,база!$G$1:$M$1,0)) -> 52.56 | R87: 1 | S87: =SUMIFS(Таблица18[сумма],Таблица18[р/р],"4/16",Таблица18[коэф],"1",Таблица18[Ф. И. О.],B87) -> 0 | T87: =IF(S87=0,0,SUMIFS(Таблица18[Столбец1],Таблица18[р/р],"4/16",Таблица18[коэф],"1",Таблица18[Ф. И. О.],B87)) -> 0 | U87: =INDEX(база!$G$1:$M$7,MATCH($D86,база!$G$1:$G$7,0),MATCH(U$4,база!$G$1:$M$1,0)) -> 63.08 | V87: 1 | W87: =SUMIFS(Таблица18[сумма],Таблица18[коэф],"1",Таблица18[р/р],"4/24",Таблица18[Ф. И. О.],B87) -> 0 | X87: =IF(W87=0,0,SUMIFS(Таблица18[Столбец1],Таблица18[р/р],"4/24",Таблица18[коэф],"1",Таблица18[Ф. И. О.],Лист1!B87)) -> 0 | AC87: =IF(SUMIFS(Таблица18[Столбец1],Таблица18[Ф. И. О.],B87)=Z86,"",B87&" СУММА не верна") -> 
E88: =INDEX(база!$G$1:$M$7,MATCH($D86,база!$G$1:$G$7,0),MATCH(E$4,база!$G$1:$M$1,0)) -> 36.78 | H88: =IF(G88=0,0,SUMIFS(Таблица18[Столбец1],Таблица18[р/р],"3/4",Таблица18[коэф],"1.1",Таблица18[Ф. И. О.],B87)) -> 0 | I88: =INDEX(база!$G$1:$M$7,MATCH($D86,база!$G$1:$G$7,0),MATCH(I$4,база!$G$1:$M$1,0)) -> 42.04 | J88: 1.1 | K88: =SUMIFS(Таблица18[сумма],Таблица18[коэф],"1",Таблица18[р/р],"3/8",Таблица18[Ф. И. О.],B88) -> 0 | L88: =IF(K88=0,0,SUMIFS(Таблица18[Столбец1],Таблица18[р/р],"3/8",Таблица18[коэф],"1.1",Таблица18[Ф. И. О.],B87)) -> 0 | N88: 1.1 | O88: =SUMIFS(#REF!,#REF!,"1.1",#REF!,"3/12",#REF!,B87) ->  | P88: =ROUND(M88*N88*O88,2) ->  | Q88: =INDEX(база!$G$1:$M$7,MATCH($D86,база!$G$1:$G$7,0),MATCH(Q$4,база!$G$1:$M$1,0)) -> 52.56 | R88: 1.1 | S88: =SUMIFS(Таблица18[сумма],Таблица18[р/р],"3/16",Таблица18[коэф],"1.1",Таблица18[Ф. И. О.],B87) -> 0 | T88: =IF(S88=0,0,SUMIFS(Таблица18[Столбец1],Таблица18[р/р],"3/16",Таблица18[коэф],"1.1",Таблица18[Ф. И. О.],B87)) -> 0 | U88: =INDEX(база!$G$1:$M$7,MATCH($D86,база!$G$1:$G$7,0),MATCH(U$4,база!$G$1:$M$1,0)) -> 63.08 | V88: 1.1 | W88: =SUMIFS(Таблица18[сумма],Таблица18[коэф],"1.1",Таблица18[р/р],"3/24",Таблица18[Ф. И. О.],B87) -> 0 | X88: =IF(W88=0,0,SUMIFS(Таблица18[Столбец1],Таблица18[р/р],"3/24",Таблица18[коэф],"1.1",Таблица18[Ф. И. О.],Лист1!B87)) -> 0 | AC88: =IF(SUMIFS(Таблица18[сумма],Таблица18[Ф. И. О.],B87)=Y86,"",B87&" часы не верны") -> 
E89: =INDEX(база!$G$1:$M$7,MATCH($D86,база!$G$1:$G$7,0),MATCH(E$4,база!$G$1:$M$1,0)) -> 36.78 | F89: 1.5 | G89: =SUMIFS(Таблица18[сумма],Таблица18[коэф],"1.5",Таблица18[р/р],"2/4",Таблица18[Ф. И. О.],B87) -> 0 | H89: =IF(G89=0,0,SUMIFS(Таблица18[Столбец1],Таблица18[р/р],"2/4",Таблица18[коэф],"1.5",Таблица18[Ф. И. О.],B87)) -> 0 | I89: =INDEX(база!$G$1:$M$7,MATCH($D86,база!$G$1:$G$7,0),MATCH(I$4,база!$G$1:$M$1,0)) -> 42.04 | J89: 1.5 | K89: =SUMIFS(Таблица18[сумма],Таблица18[коэф],"1.5",Таблица18[р/р],"4/8",Таблица18[Ф. И. О.],B87) -> 0 | L89: =IF(K89=0,0,SUMIFS(Таблица18[Столбец1],Таблица18[р/р],"4/8",Таблица18[коэф],"1.5",Таблица18[Ф. И. О.],B87)) -> 0 | N89: 1.5 | O89: =SUMIFS(#REF!,#REF!,"1.5",#REF!,"3/12",#REF!,B87) ->  | Q89: =INDEX(база!$G$1:$M$7,MATCH($D86,база!$G$1:$G$7,0),MATCH(Q$4,база!$G$1:$M$1,0)) -> 52.56 | R89: 1.5 | S89: =SUMIFS(Таблица18[сумма],Таблица18[р/р],"3/16",Таблица18[коэф],"1.5",Таблица18[Ф. И. О.],B87) -> 0 | T89: =IF(S89=0,0,SUMIFS(Таблица18[Столбец1],Таблица18[р/р],"3/16",Таблица18[коэф],"1.5",Таблица18[Ф. И. О.],B87)) -> 0 | U89: =INDEX(база!$G$1:$M$7,MATCH($D86,база!$G$1:$G$7,0),MATCH(U$4,база!$G$1:$M$1,0)) -> 63.08 | V89: 1.5 | W89: =SUMIFS(Таблица18[сумма],Таблица18[коэф],"1.5",Таблица18[р/р],"3/24",Таблица18[Ф. И. О.],B87) -> 0 | X89: =IF(W89=0,0,SUMIFS(Таблица18[Столбец1],Таблица18[р/р],"3/24",Таблица18[коэф],"1.5",Таблица18[Ф. И. О.],Лист1!B87)) -> 0

Sheet расчет (hidden)
A1: производств уч. № 1
J2: ЗП | L2: декабрь | T2: 2021
K3: СВЕРХУРОЧНАЯ РАБОТА
B4: ФИО | C4: Табельный номер | D4: разряд работника | E4: 0.04 | I4: 0.08 | M4: 0.12 | Q4: 0.16 | U4: 0.24 | Y4: итого часы | Z4: итого сумма, руб | AA4: подпись работник
E5: тариф | F5: коэффициент | G5: часы | H5: сумма | I5: тариф | J5: коэффициент | K5: часы | L5: сумма | M5: тариф | N5: коэффициент | O5: часы | P5: сумма | Q5: тариф | R5: коэффициент | S5: часы | T5: сумма | U5: тариф | V5: коэффициент | W5: часы | X5: сумма
A6: 1 | C6: =INDEX(база!E2:E24, MATCH(B7,база!B2:B24,0)) -> 15894 | D6: =INDEX(база!D2:D24, MATCH(B7,база!B2:B24,0)) -> 3 | E6: =IF(D6<=3,база!I4,база!I5) -> 51.84 | F6: 1 | G6: =SUMIFS(Таблица18[сумма],Таблица18[коэф],"1",Таблица18[р/р],"2/4",Таблица18[Ф. И. О.],B7) -> 0 | H6: =SUM(IFERROR(--TEXT(MMULT(TRANSPOSE(Таблица18[[1]:[30]]*(Таблица18[Ф. И. О.]=$B7)*(Таблица18[р/р]=расчет!$D6&"/"&TRUNC(расчет!E4*100))),Таблица18[год]^0*2)-1,"0;\0;\0"),))*E6*F6 -> 259.2 | I6: =IF(D6<=3,база!J4,база!J5) -> 57.68 | J6: 1 | K6: =SUMIFS(Таблица18[сумма],Таблица18[коэф],"1",Таблица18[р/р],"2/8",Таблица18[Ф. И. О.],B7) -> 0 | L6: =SUM(IFERROR(--TEXT(MMULT(TRANSPOSE(Таблица18[[1]:[30]]*(Таблица18[Ф. И. О.]=$B7)*(Таблица18[р/р]=расчет!$D6&"/"&TRUNC(расчет!I4*100))),Таблица18[год]^0*2)-1,"0;\0;\0"),))*I6*J6 -> 0 | N6: 1 | O6: =SUMIFS(#REF!,#REF!,"1",#REF!,"3/12",#REF!,B7) ->  | P6: =ROUND(M6*N6*O6,2) ->  | Q6: =IF(D6<=3,база!L4,база!L5) -> 69.36 | R6: 1 | S6: =SUMIFS(Таблица18[сумма],Таблица18[коэф],"1",Таблица18[р/р],"3/16",Таблица18[Ф. И. О.],B7) -> 4.8 | T6: =SUM(IFERROR(--TEXT(MMULT(TRANSPOSE(Таблица18[[1]:[30]]*(Таблица18[Ф. И. О.]=$B7)*(Таблица18[р/р]=расчет!$D6&"/"&TRUNC(расчет!Q4*100))),Таблица18[год]^0*2)-1,"0;\0;\0"),))*Q6*R6 -> 554.88 | U6: =IF(D6<=3,база!M4,база!M5) -> 81.04 | V6: 1 | W6: =SUMIFS(Таблица18[сумма],Таблица18[коэф],"1",Таблица18[р/р],"3/24",Таблица18[Ф. И. О.],B7) -> 3 | X6: =SUM(IFERROR(--TEXT(MMULT(TRANSPOSE(Таблица18[[1]:[30]]*(Таблица18[Ф. И. О.]=$B7)*(Таблица18[р/р]=расчет!$D6&"/"&TRUNC(расчет!U4*100))),Таблица18[год]^0*2)-1,"0;\0;\0"),))*U6*V6 -> 405.2 | Y6: =SUM(W6:W9,S6:S9,K6:K9,G6:G9) -> 14.8 | Z6: =SUM(H6:H9,L6:L9,T6:T9,X6:X9) -> 2662.76
B7: работник6 | E7: =IF(D6<=3,база!I4,база!I5) -> 51.84 | F7: 1 | G7: =SUMIFS(Таблица18[сумма],Таблица18[коэф],"1",Таблица18[р/р],"3/4",Таблица18[Ф. И. О.],B7) -> 3 | H7: =SUM(IFERROR(--TEXT(MMULT(TRANSPOSE(Таблица18[[1]:[30]]*(Таблица18[Ф. И. О.]=$B7)*(Таблица18[р/р]=расчет!$D6&"/"&TRUNC(расчет!E4*100))),Таблица18[год]^0*2)-1,"0;\0;\0"),))*E7*F7 -> 259.2 | I7: =IF(D6<=3,база!J4,база!J5) -> 57.68 | J7: 1 | K7: =SUMIFS(Таблица18[сумма],Таблица18[коэф],"1",Таблица18[р/р],"3/8",Таблица18[Ф. И. О.],B7) -> 0 | L7: =SUM(IFERROR(--TEXT(MMULT(TRANSPOSE(Таблица18[[1]:[30]]*(Таблица18[[#This Row],[Ф. И. О.]]=$B7)*(Таблица18[[#This Row],[р/р]]=расчет!$D6&"/"&TRUNC(расчет!I4*100))),Таблица18[год]^0*2)-1,"0;\0;\0"),))*I7*J7 -> 0 | N7: 1 | O7: =SUMIFS(#REF!,#REF!,"1",#REF!,"4/12",#REF!,B7) ->  | P7: =ROUND(M7*O7,2) ->  | Q7: =база!L5 -> 86.16 | R7: 1 | S7: =SUMIFS(Таблица18[сумма],Таблица18[р/р],"4/16",Таблица18[коэф],"1",Таблица18[Ф. И. О.],B7) -> 0 | T7: =SUM(IFERROR(--TEXT(MMULT(TRANSPOSE(Таблица18[[1]:[30]]*(Таблица18[Ф. И. О.]=$B7)*(Таблица18[р/р]=расчет!$D6&"/"&TRUNC(расчет!Q4*100))),Таблица18[год]^0*2)-1,"0;\0;\0"),))*Q7*R7 -> 689.28 | U7: =база!M5 -> 99 | V7: 1 | W7: =SUMIFS(Таблица18[сумма],Таблица18[коэф],"1",Таблица18[р/р],"4/24",Таблица18[Ф. И. О.],B7) -> 0 | X7: =SUM(IFERROR(--TEXT(MMULT(TRANSPOSE(Таблица18[[1]:[30]]*(Таблица18[Ф. И. О.]=$B7)*(Таблица18[р/р]=расчет!$D6&"/"&TRUNC(расчет!U4*100))),Таблица18[год]^0*2)-1,"0;\0;\0"),))*U7*V7 -> 495
H8: =SUM(IFERROR(--TEXT(MMULT(TRANSPOSE(Таблица18[[1]:[30]]*(Таблица18[[#This Row],[Ф. И. О.]]=$B7)*(Таблица18[[#This Row],[р/р]]=расчет!$D6&"/"&TRUNC(расчет!E5*100))),Таблица18[год]^0*2)-1,"0;\0;\0"),))*E8*F8 -> 0 | L8: =SUM(IFERROR(--TEXT(MMULT(TRANSPOSE(Таблица18[[1]:[30]]*(Таблица18[[#This Row],[Ф. И. О.]]=$B7)*(Таблица18[[#This Row],[р/р]]=расчет!$D6&"/"&TRUNC(расчет!I5*100))),Таблица18[год]^0*2)-1,"0;\0;\0"),))*I8*J8 -> 0 | N8: 1.1 | O8: =SUMIFS(#REF!,#REF!,"1.1",#REF!,"3/12",#REF!,B7) ->  | P8: =ROUND(M8*N8*O8,2) ->  | Q8: =база!L4 -> 69.36 | R8: 1.1 | S8: =SUMIFS(Таблица18[сумма],Таблица18[р/р],"3/16",Таблица18[коэф],"1.1",Таблица18[Ф. И. О.],B7) -> 0 | T8: =SUM(IFERROR(--TEXT(MMULT(TRANSPOSE(Таблица18[[1]:[30]]*(Таблица18[[#This Row],[Ф. И. О.]]=$B7)*(Таблица18[[#This Row],[р/р]]=расчет!$D6&"/"&TRUNC(расчет!Q5*100))),Таблица18[год]^0*2)-1,"0;\0;\0"),))*Q8*R8 -> 0 | U8: =база!M4 -> 81.04 | V8: 1.1 | W8: =SUMIFS(Таблица18[сумма],Таблица18[коэф],"1.1",Таблица18[р/р],"3/24",Таблица18[Ф. И. О.],B7) -> 0 | X8: =SUM(IFERROR(--TEXT(MMULT(TRANSPOSE(Таблица18[[1]:[30]]*(Таблица18[[#This Row],[Ф. И. О.]]=$B7)*(Таблица18[[#This Row],[р/р]]=расчет!$D6&"/"&TRUNC(расчет!U5*100))),Таблица18[год]^0*2)-1,"0;\0;\0"),))*U8*V8 -> 0
F9: 1.5 | G9: =SUMIFS(Таблица18[сумма],Таблица18[коэф],"1.5",Таблица18[р/р],"2/4",Таблица18[Ф. И. О.],B7) -> 0 | H9: =SUM(IFERROR(--TEXT(MMULT(TRANSPOSE(Таблица18[[1]:[30]]*(Таблица18[[#This Row],[Ф. И. О.]]=$B7)*(Таблица18[[#This Row],[р/р]]=расчет!$D6&"/"&TRUNC(расчет!E6*100))),Таблица18[год]^0*2)-1,"0;\0;\0"),))*E9*F9 -> 0 | I9: =база!J5 -> 73.32 | J9: 1.5 | K9: =SUMIFS(Таблица18[сумма],Таблица18[коэф],"1.5",Таблица18[р/р],"4/8",Таблица18[Ф. И. О.],B7) -> 4 | L9: =SUM(IFERROR(--TEXT(MMULT(TRANSPOSE(Таблица18[[1]:[30]]*(Таблица18[[#This Row],[Ф. И. О.]]=$B7)*(Таблица18[[#This Row],[р/р]]=расчет!$D6&"/"&TRUNC(расчет!I6*100))),Таблица18[год]^0*2)-1,"0;\0;\0"),))*I9*J9 -> 0 | N9: 1.5 | O9: =SUMIFS(#REF!,#REF!,"1.5",#REF!,"3/12",#REF!,B7) ->  | P9: =ROUND(M9*N9*O9,2) ->  | Q9: =база!L4 -> 69.36 | R9: 1.5 | S9: =SUMIFS(Таблица18[сумма],Таблица18[р/р],"3/16",Таблица18[коэф],"1.5",Таблица18[Ф. И. О.],B7) -> 0 | T9: =SUM(IFERROR(--TEXT(MMULT(TRANSPOSE(Таблица18[[1]:[30]]*(Таблица18[[#This Row],[Ф. И. О.]]=$B7)*(Таблица18[[#This Row],[р/р]]=расчет!$D6&"/"&TRUNC(расчет!Q6*100))),Таблица18[год]^0*2)-1,"0;\0;\0"),))*Q9*R9 -> 0 | U9: =база!M4 -> 81.04 | V9: 1.5 | W9: =SUMIFS(Таблица18[сумма],Таблица18[коэф],"1.5",Таблица18[р/р],"3/24",Таблица18[Ф. И. О.],B7) -> 0 | X9: =SUM(IFERROR(--TEXT(MMULT(TRANSPOSE(Таблица18[[1]:[30]]*(Таблица18[[#This Row],[Ф. И. О.]]=$B7)*(Таблица18[[#This Row],[р/р]]=расчет!$D6&"/"&TRUNC(расчет!U6*100))),Таблица18[год]^0*2)-1,"0;\0;\0"),))*U9*V9 -> 0
B11: значение в ячейке "СУММА" =сумма первых двух часов одного дня, помноженная*1.5 *на тариф *на коэф (Q*R*2 часа*1.5)+ сумма оставшегося времени в этот же день,умноженная на два на тариф и коэф(Q*R*оставшееся время*2)
S12: "+ второй день+третий день…и так далее"
